Workbook

Sheet 汇总
A1: 附件6
A2: 部门绩效自评结果公开汇总表
A3: 主管部门：石家庄市城市管理综合行政执法局 | J3: 单位：万元
A4: 序号 | B4: 项目名称 | C4: 项目实施单位 | D4: 预算数（调整后） | G4: 执行数（至2024年底） | I4: 结余数 | J4: 结余交回财政数 | K4: 自评得分 | L4: 自评结果应用意见
D5: 中央 | E5: 省级 | F5: 市级 | G5: 市级 | H5: 县（市）区级
A6: 1 | B6: 既有燃气管道用户加装安全装置经费 | C6: 石家庄市城市管理综合行政执法局系统 | F6: 1000 | H6: 1000 | J6: 0 | K6: 100 | L6: 完成较好
A7: 2 | B7: 环卫工人协助管理非机动车停放秩序奖补资金 | C7: 石家庄市城市管理综合行政执法局系统 | F7: 499 | G7: 0 | H7: 0 | I7: 499 | J7: 0 | K7: 0 | L7: 2024年7月，通过上半年绩效监控发现裕华区、新华区、长安区、桥西区普遍存在环卫工人清扫压力大，清扫保洁工作任务繁重，无法同时进行非机动车停放秩序维护工作，为不影响环卫工人清扫保洁本职工作，故终止该项目实施。
A8: 3 | B8: 中央大气污染防治资金 | C8: 石家庄市城市管理综合行政执法局系统 | D8: 1548 | H8: 842.46 | I8: 705.54 | J8: 0 | K8: 95.4 | L8: 完成较好
A9: 4 | B9: 2023年市区支路整修工程 | C9: 石家庄市城市管理综合行政执法局系统 | F9: 314 | H9: 314 | J9: 0 | K9: 100 | L9: 完成较好
A10: 5 | B10: 2023-2024年采暖季农村“双代”市级运行补助 | C10: 石家庄市城市管理综合行政执法局系统 | F10: 463.8 | H10: 463.8 | J10: 0 | K10: 100 | L10: 完成较好
A11: 6 | B11: 仓丰东路雨水泵站新建工程国债项目 | C11: 石家庄市城市管理综合行政执法局本级 | D11: 4705 | E11: 235.25 | F11: 177.75 | G11: 3993.37 | I11: 1124.63 | J11: 177.01 | K11: 97.8 | L11: 完成较好
A12: 7 | B12: 东南退水明渠建设国债项目 | C12: 石家庄市城市管理综合行政执法局本级 | D12: 134709 | E12: 3367.72 | F12: 40035.37 | G12: 109813.31 | I12: 68298.78 | J12: 397.56 | K12: 80.57 | L12: 完成较好
A13: 8 | B13: 明珠街、石铜路、槐中路雨水调蓄设施新建工程国债项目 | C13: 石家庄市城市管理综合行政执法局本级 | D13: 10443 | E13: 522.15 | F13: 2088.85 | G13: 7411.09 | I13: 5642.91 | J13: 2087.32 | K13: 95.68 | L13: 完成较好
A14: 9 | B14: 石家庄市移动排涝能力提升项目国债项目 | C14: 石家庄市城市管理综合行政执法局本级 | D14: 28756 | E14: 1437.8 | F14: 5752.2 | G14: 34829.79 | I14: 1116.21 | J14: 1116.21 | K14: 100 | L14: 完成较好
A15: 10 | B15: 雨水调蓄设施建设工程国债项目 | C15: 石家庄市城市管理综合行政执法局本级 | D15: 30652 | E15: 1532.6 | F15: 6131.4 | G15: 24562.02 | H15: 0 | I15: 13753.98 | J15: 6126.88 | K15: 96.41 | L15: 完成较好
A16: 11 | B16: 市区积水点整治工程国债项目 | C16: 石家庄市城市管理综合行政执法局本级 | D16: 3478 | E16: 173.9 | F16: 696.1 | G16: 3178.45 | H16: 0 | I16: 1169.55 | J16: 695.52 | K16: 97.31 | L16: 完成较好
A17: 12 | B17: 四支渠（新华路-南泄洪渠）新建工程国债项目 | C17: 石家庄市城市管理综合行政执法局本级 | D17: 47548 | E17: 1188.7 | F17: 1263.3 | G17: 28347.67 | H17: 0 | I17: 21652.33 | J17: 1256.3 | K17: 85.87 | L17: 完成较好
A18: 13 | B18: 农机街泵站新建工程国债项目 | C18: 石家庄市城市管理综合行政执法局本级 | D18: 7142 | E18: 357.1 | F18: 1429 | G18: 6472.97 | H18: 0 | I18: 2455.13 | J18: 1428.98 | K18: 97.25 | L18: 完成较好
A19: 14 | B19: 污水污泥处理经费 | C19: 石家庄市城市管理综合行政执法局本级 | F19: 39200.5 | G19: 39198.83 | H19: 0 | I19: 1.67 | J19: 1.67 | K19: 100 | L19: 完成较好
A20: 15 | B20: 农机街泵站新建工程国债项目征地费用市级补助 | C20: 石家庄市城市管理综合行政执法局本级 | F20: 2667 | G20: 2667 | H20: 0 | I20: 0 | J20: 0 | K20: 100 | L20: 完成较好
A21: 16 | B21: 仓丰东路雨水泵站新建工程国债项目征地费用市级补助 | C21: 石家庄市城市管理综合行政执法局本级 | F21: 1432 | G21: 1002 | H21: 0 | I21: 430 | J21: 430 | K21: 97 | L21: 完成较好
A22: 17 | B22: 2024年城市更新行动城市建设项目 | C22: 石家庄市城市管理综合行政执法局本级 | F22: 20000 | G22: 0 | H22: 0 | J22: 0 | K22: 0 | L22: 部分使用中央财政资金的项目正在加紧推进前期手续办理，项目资料暂未齐全，暂不具备中央财政资金拨付条件。本着资金拨付审批程序和手续完整、规范的原则，部分中央财政资金暂未执行。根据目前城市更新行动推进计划，将进一步推动项目各项工作进展，按照各级资金管理办法及财务要求，在项目满足资金拨付条件后，尽快完成资金拨付工作。
A23: 18 | B23: 液化气居民用户安装物联报警器 和自动切断装置项目 | C23: 石家庄市城市管理综合行政执法局本级 | D23: 1917 | G23: 12.78 | I23: 1904.22 | J23: 0 | K23: 69 | L23: 由于安装进度滞后，预算执行率较低。下一步整改措施：加强宣传动员，优化安装流程，确保按期完成安装任务，提高预算执行率。
A24: 19 | B24: 2023年城管局机关城建项目资金 | C24: 石家庄市城市管理综合行政执法局本级 | F24: 151.85 | G24: 151.85 | H24: 0 | I24: 0 | J24: 0 | K24: 100 | L24: 完成较好
A25: 20 | B25: DLP高清拼接屏采购项目尾款 | C25: 石家庄市城市管理综合行政执法局本级 | F25: 94.77 | G25: 94.77 | H25: 0 | I25: 0 | J25: 0 | K25: 100 | L25: 完成较好
A26: 21 | B26: 安全生产监督工作经费 | C26: 石家庄市城市管理综合行政执法局本级 | F26: 15 | G26: 15 | H26: 0 | I26: 0 | J26: 0 | K26: 100 | L26: 完成较好
A27: 22 | B27: 城区防汛汛期应急指挥车租赁经费 | C27: 石家庄市城市管理综合行政执法局本级 | F27: 10.2 | G27: 10.2 | H27: 0 | I27: 0 | J27: 0 | K27: 100 | L27: 完成较好
A28: 23 | B28: 城市运营中心场地租用费 | C28: 石家庄市城市管理综合行政执法局本级 | F28: 61 | G28: 61 | H28: 0 | I28: 0 | J28: 0 | K28: 100 | L28: 完成较好
A29: 24 | B29: 党组织活动经费 | C29: 石家庄市城市管理综合行政执法局本级 | F29: 9.17 | G29: 9.17 | H29: 0 | I29: 0 | J29: 0 | K29: 100 | L29: 完成较好
A30: 25 | B30: 电梯运维费 | C30: 石家庄市城市管理综合行政执法局本级 | F30: 1.4 | G30: 1.4 | H30: 0 | I30: 0 | J30: 0 | K30: 100 | L30: 完成较好
A31: 26 | B31: 供水水质监测经费 | C31: 石家庄市城市管理综合行政执法局本级 | F31: 10 | G31: 10 | H31: 0 | I31: 0 | J31: 0 | K31: 100 | L31: 完成较好
A32: 27 | B32: 国家节水型城市复查迎检工作经费 | C32: 石家庄市城市管理综合行政执法局本级 | F32: 85.1 | G32: 85.1 | H32: 0 | I32: 0 | J32: 0 | K32: 99 | L32: 完成较好
A33: 28 | B33: 绿色社区创建三年行动办公室工作经费 | C33: 石家庄市城市管理综合行政执法局本级 | F33: 33.02 | G33: 33.02 | H33: 0 | I33: 0 | J33: 0 | K33: 100 | L33: 完成较好
A34: 29 | B34: 生活垃圾分类运行经费 | C34: 石家庄市城市管理综合行政执法局本级 | F34: 58.99 | G34: 58.99 | H34: 0 | I34: 0 | J34: 0 | K34: 100 | L34: 完成较好
A35: 30 | B35: 生活垃圾分类运行资金 | C35: 石家庄市城市管理综合行政执法局本级 | F35: 20 | G35: 20 | H35: 0 | I35: 0 | J35: 0 | K35: 100 | L35: 完成较好
A36: 31 | B36: 市渣土办工作经费 | C36: 石家庄市城市管理综合行政执法局本级 | F36: 36.8 | G36: 36.8 | H36: 0 | I36: 0 | J36: 0 | K36: 100 | L36: 完成较好
A37: 32 | B37: 污水处理补贴资金 | C37: 石家庄市城市管理综合行政执法局本级 | F37: 15846 | G37: 15846 | H37: 0 | I37: 0 | J37: 0 | K37: 100 | L37: 完成较好
A38: 33 | B38: 污水处理费代征手续费 | C38: 石家庄市城市管理综合行政执法局本级 | F38: 345 | G38: 345 | H38: 0 | I38: 0 | J38: 0 | K38: 100 | L38: 完成较好
A39: 34 | B39: 物业管理费 | C39: 石家庄市城市管理综合行政执法局本级 | F39: 25.55 | G39: 25.55 | H39: 0 | I39: 0 | J39: 0 | K39: 100 | L39: 完成较好
A40: 35 | B40: 执法制式服装费尾款 | C40: 石家庄市城市管理综合行政执法局本级 | F40: 5.71 | G40: 5.71 | H40: 0 | I40: 0 | J40: 0 | K40: 100 | L40: 完成较好
A41: 36 | B41: 文件资料印刷费 | C41: 石家庄市城市管理综合行政执法局本级 | F41: 11 | G41: 10.99 | H41: 0 | I41: 0.01 | J41: 0.01 | K41: 100 | L41: 完成较好
A42: 37 | B42: 专用设备维修费 | C42: 石家庄市城市管理综合行政执法局本级 | F42: 30 | G42: 29.98 | H42: 0 | I42: 0.02 | J42: 0.02 | K42: 100 | L42: 完成较好
A43: 38 | B43: 防汛经费 | C43: 石家庄市城市管理综合行政执法局本级 | F43: 29.98 | G43: 29.83 | H43: 0 | I43: 0.15 | J43: 0.15 | K43: 100 | L43: 完成较好
A44: 39 | B44: 生活垃圾分类工作经费 | C44: 石家庄市城市管理综合行政执法局本级 | F44: 100 | G44: 99.8 | H44: 0 | I44: 0.2 | J44: 0.2 | K44: 100 | L44: 完成较好
A45: 40 | B45: 城市更新示范城市申报工作专班工作经费 | C45: 石家庄市城市管理综合行政执法局本级 | F45: 16.25 | G45: 15.93 | H45: 0 | I45: 0.32 | J45: 0.32 | K45: 99.8 | L45: 完成较好
A46: 41 | B46: 城管全民动员大会及宣传活动经费 | C46: 石家庄市城市管理综合行政执法局本级 | F46: 39.43 | G46: 38.57 | H46: 0 | I46: 0.86 | J46: 0.86 | K46: 99.8 | L46: 完成较好
A47: 42 | B47: 双代办第三方评估监督经费 | C47: 石家庄市城市管理综合行政执法局本级 | F47: 30 | G47: 28.36 | H47: 0 | I47: 1.64 | J47: 1.64 | K47: 99.45 | L47: 完成较好
A48: 43 | B48: 业务培训费 | C48: 石家庄市城市管理综合行政执法局本级 | F48: 40 | G48: 37.36 | H48: 0 | I48: 2.64 | J48: 2.64 | K48: 99.3 | L48: 完成较好
A49: 44 | B49: 市双代办工作经费 | C49: 石家庄市城市管理综合行政执法局本级 | F49: 33.19 | G49: 30.27 | H49: 0 | I49: 2.92 | J49: 2.92 | K49: 99.12 | L49: 完成较好
A50: 45 | B50: 普法工作经费 | C50: 石家庄市城市管理综合行政执法局本级 | F50: 39 | G50: 32.7 | H50: 0 | I50: 6.3 | J50: 6.3 | K50: 98.4 | L50: 完成较好
A51: 46 | B51: 正太广场、解放广场及周边区域管理办公室工作经费 | C51: 石家庄市城市管理综合行政执法局本级 | F51: 23.52 | G51: 22.6 | H51: 0 | I51: 0.92 | J51: 0.92 | K51: 99.6 | L51: 完成较好
A52: 47 | B52: 市景观办工作经费 | C52: 石家庄市城市管理综合行政执法局本级 | F52: 52.9 | G52: 40.84 | H52: 0 | I52: 12.06 | J52: 12.06 | K52: 98 | L52: 完成较好
A53: 48 | B53: 特许经营项目咨询服务经费 | C53: 石家庄市城市管理综合行政执法局本级 | F53: 30 | G53: 17.82 | H53: 0 | I53: 12.18 | J53: 12.18 | K53: 96 | L53: 完成较好
A54: 49 | B54: 户外广告拍卖方案编制经费 | C54: 石家庄市城市管理综合行政执法局本级 | F54: 30 | G54: 14.5 | H54: 0 | I54: 15.5 | J54: 15.5 | K54: 95 | L54: 完成较好
A55: 50 | B55: 办公设备购置 | C55: 石家庄市城市管理综合行政执法局本级 | F55: 82 | G55: 65.62 | H55: 0 | I55: 16.38 | J55: 16.38 | K55: 98 | L55: 完成较好
A56: 51 | B56: 海绵城市方案编制及海绵办工作经费 | C56: 石家庄市城市管理综合行政执法局本级 | F56: 34.02 | G56: 16.19 | H56: 0 | I56: 17.83 | J56: 17.83 | K56: 94 | L56: 完成较好
A57: 52 | B57: 给水、污水再生利用工程两项规划编制经费 | C57: 石家庄市城市管理综合行政执法局本级 | F57: 208 | G57: 186.54 | H57: 0 | I57: 21.46 | J57: 21.46 | K57: 99 | L57: 完成较好
A58: 53 | B58: 环卫工人意外伤害救助金 | C58: 石家庄市城市管理综合行政执法局本级 | F58: 43.81 | G58: 10.38 | H58: 0 | I58: 33.43 | J58: 33.43 | K58: 92.4 | L58: 完成较好
A59: 54 | B59: 城市宣传费 | C59: 石家庄市城市管理综合行政执法局本级 | F59: 80 | G59: 39.9 | H59: 0 | I59: 40.1 | J59: 40.1 | K59: 95 | L59: 完成较好
A60: 55 | B60: 建设南大街35号院前楼修缮项目资金 | C60: 石家庄市城市管理综合行政执法局本级 | F60: 80 | G60: 38.25 | H60: 0 | I60: 41.75 | J60: 41.75 | K60: 94.8 | L60: 完成较好
A61: 56 | B61: 城市管理运行经费 | C61: 石家庄市城市管理综合行政执法局本级 | F61: 50.87 | G61: 0 | H61: 0 | I61: 50.87 | J61: 50.87 | K61: 0 | L61: 城市管理运行经费执行率为0%，主要因全年未发生相关突发事件。下一步将建立预算动态调整机制，优先评估项目资金使用必要性，优化预算分配结构，提升资金使用精准性与应急响应灵活性。
A62: 57 | B62: 业务咨询委托费 | C62: 石家庄市城市管理综合行政执法局本级 | F62: 138.68 | G62: 62.31 | H62: 0 | I62: 76.37 | J62: 76.37 | K62: 94.5 | L62: 完成较好
A63: 58 | B63: 正太广场、解放广场及周边区域管护资金 | C63: 石家庄市城市管理综合行政执法局本级 | F63: 264.33 | G63: 139.52 | H63: 0 | I63: 124.81 | J63: 124.81 | K63: 96 | L63: 完成较好
A64: 59 | B64: 中华大街景观提升工程 | C64: 石家庄市城市管理综合行政执法局本级 | F64: 151 | G64: 0 | H64: 0 | I64: 151 | J64: 151 | K64: 0 | L64: 中华大街景观提升工程预算执行率较低，主要因施工单位无法开具正式发票导致资金未拨付。下一步将积极协调解决开票问题，加快资金支付进度，提高预算执行率。
A65: 60 | B65: 2024年生活垃圾分类运行费用 | C65: 石家庄市城市管理综合行政执法局本级 | F65: 180 | G65: 35.88 | H65: 0 | I65: 144.12 | J65: 144.12 | K65: 70 | L65: 2024年生活垃圾分类运行费用预算执行率较低，主要原因是项目前期审批时间较长以及工程概况调整，影响了原定进度计划。下一步将合理调整财政支出结构，确保资金保障到位。
A66: 61 | B66: 垃圾监测整治经费 | C66: 石家庄市城市管理综合行政执法局本级 | F66: 450 | G66: 183.52 | H66: 0 | I66: 266.48 | J66: 266.48 | K66: 94.1 | L66: 完成较好
A67: 62 | B67: 公益广告设置经费 | C67: 石家庄市城市管理综合行政执法局本级 | F67: 300 | G67: 0 | H67: 0 | I67: 300 | J67: 300 | K67: 0 | L67: 公益广告设置经费预算执行率较低，主要由于部分广告点位选址调整及施工进度滞后，导致尚未达到合同约定的付款条件。下一步将加快协调施工进度，完善验收流程，确保达到付款条件后及时支付，提高预算执行效率。
A68: 63 | B68: 城市地下市政基础设施普查工作经费 | C68: 石家庄市城市管理综合行政执法局本级 | F68: 600 | G68: 0 | H68: 0 | I68: 600 | J68: 600 | K68: 0 | L68: 地下市政基础设施普查工作经费预算执行率较低，主要由于项目推进较慢导致采购程序延迟，影响了整体项目进度。下一步将加快完成招标采购流程，优化工作专班调度机制，确保按期完成普查任务并提高资金使用效益。
A69: 64 | B69: 城管局机关2023年及以前年度城建项目资金 | C69: 石家庄市城市管理综合行政执法局本级 | F69: 2391 | G69: 1294.2 | H69: 0 | I69: 1096.8 | J69: 0 | K69: 95.4 | L69: 完成较好
A70: 65 | B70: 平安大街提升工程 | C70: 石家庄市城市管理综合行政执法局本级 | F70: 3300 | G70: 930 | H70: 0 | I70: 2370 | J70: 2370 | K70: 93 | L70: 完成较好
A71: 66 | B71: 党组织活动经费 | C71: 石家庄市市容环卫服务中心 | F71: 0.76 | G71: 0.75 | H71: 0 | I71: 0.01 | J71: 0.01 | K71: 99.87 | L71: 完成较好
A72: 67 | B72: 办公设备购置 | C72: 石家庄市市容环卫服务中心 | F72: 1.59 | G72: 1.59 | H72: 0 | I72: 0 | J72: 0 | K72: 100 | L72: 完成较好
A73: 68 | B73: 物业管理费 | C73: 石家庄市市容环卫服务中心 | F73: 11.98 | G73: 11.98 | H73: 0 | I73: 0 | J73: 0 | K73: 100 | L73: 完成较好
A74: 69 | B74: 冬季融雪及移动公厕运行经费 | C74: 石家庄市市容环卫服务中心 | F74: 57 | G74: 57 | H74: 0 | I74: 0 | J74: 0 | K74: 100 | L74: 完成较好
A75: 70 | B75: 事业单位更新电脑设备经费 | C75: 石家庄市市容环卫服务中心 | F75: 1.33 | G75: 1.33 | H75: 0 | I75: 0 | J75: 0 | K75: 100 | L75: 完成较好
A76: 71 | B76: 党组织活动经费 | C76: 石家庄市环境卫生事务中心 | F76: 2.27 | G76: 2.27 | H76: 0 | I76: 0 | J76: 0 | K76: 100 | L76: 完成较好
A77: 72 | B77: 办公设备购置 | C77: 石家庄市环境卫生事务中心 | F77: 7.75 | G77: 7.72 | H77: 0 | I77: 0.03 | J77: 0.03 | K77: 99.96 | L77: 完成较好
A78: 73 | B78: 信息化项目运行维护费 | C78: 石家庄市环境卫生事务中心 | F78: 8.88 | G78: 8.88 | H78: 0 | I78: 0 | J78: 0 | K78: 100 | L78: 完成较好
A79: 74 | B79: 代收生活垃圾处理费手续费经费 | C79: 石家庄市环境卫生事务中心 | F79: 490 | G79: 490 | H79: 0 | I79: 0 | J79: 0 | K79: 99.64 | L79: 完成较好
A80: 75 | B80: 生活垃圾处理补助资金 | C80: 石家庄市环境卫生事务中心 | F80: 13700 | G80: 13700 | H80: 0 | I80: 0 | J80: 0 | K80: 99.75 | L80: 完成较好
A81: 76 | B81: 环境卫生绩效考核奖励资金 | C81: 石家庄市环境卫生事务中心 | F81: 1200 | G81: 1200 | H81: 0 | I81: 0 | J81: 0 | K81: 100 | L81: 完成较好
A82: 77 | B82: 环境卫生事务专项业务经费 | C82: 石家庄市环境卫生事务中心 | F82: 54.97 | G82: 54.97 | H82: 0 | I82: 0 | J82: 0 | K82: 100 | L82: 完成较好
A83: 78 | B83: 环卫维护资金 | C83: 石家庄市环境卫生事务中心 | F83: 551.94 | G83: 547.74 | H83: 0 | I83: 4.2 | J83: 4.2 | K83: 99.92 | L83: 完成较好
A84: 79 | B84: 物业管理费 | C84: 石家庄市环境卫生事务中心 | F84: 20 | G84: 20 | H84: 0 | I84: 0 | J84: 0 | K84: 100 | L84: 完成较好
A85: 80 | B85: 加固改造办公楼资金 | C85: 石家庄市环境卫生事务中心 | F85: 300 | G85: 300 | H85: 0 | I85: 0 | J85: 0 | K85: 100 | L85: 完成较好
A86: 81 | B86: 事业单位更新电脑设备经费 | C86: 石家庄市环境卫生事务中心 | F86: 7.04 | G86: 7.04 | H86: 0 | I86: 0 | J86: 0 | K86: 100 | L86: 完成较好
A87: 82 | B87: 融雪剂采购资金 | C87: 石家庄市环境卫生事务中心 | F87: 249.84 | G87: 249.84 | H87: 0 | I87: 0 | J87: 0 | K87: 100 | L87: 完成较好
A88: 83 | B88: 支援涿州清运垃圾租用车辆等费用 | C88: 石家庄市环境卫生事务中心 | F88: 35.02 | G88: 35.02 | H88: 0 | I88: 0 | J88: 0 | K88: 100 | L88: 完成较好
A89: 84 | B89: 劳动聘用人员经费 | C89: 石家庄市环境卫生事务中心 | F89: 325 | G89: 325 | H89: 0 | I89: 0 | J89: 0 | K89: 100 | L89: 完成较好
A90: 85 | B90: 2024年劳动聘用人员经费 | C90: 石家庄市环境卫生事务中心 | F90: 23 | G90: 22.48 | H90: 0 | I90: 0.52 | J90: 0.52 | K90: 99.77 | L90: 完成较好
A91: 86 | B91: 办公设备购置 | C91: 石家庄市市容管理考评中心 | F91: 9.84 | G91: 9.84 | H91: 0 | I91: 0 | J91: 0 | K91: 100 | L91: 完成较好
A92: 87 | B92: 党组织活动经费 | C92: 石家庄市市容管理考评中心 | F92: 2.18 | G92: 2.18 | H92: 0 | I92: 0 | J92: 0 | K92: 100 | L92: 完成较好
A93: 88 | B93: 工作场地租赁费 | C93: 石家庄市市容管理考评中心 | F93: 207.37 | G93: 207.37 | H93: 0 | I93: 0 | J93: 0 | K93: 100 | L93: 完成较好
A94: 89 | B94: 数字化城市管理运行经费 | C94: 石家庄市市容管理考评中心 | F94: 1114.11 | G94: 1109.38 | H94: 0 | I94: 4.73 | J94: 4.73 | K94: 99.96 | L94: 完成较好
A95: 90 | B95: 劳动聘用人员经费 | C95: 石家庄市市容管理考评中心 | F95: 1755.9 | G95: 1755.9 | H95: 0 | I95: 0 | J95: 0 | K95: 99.64 | L95: 完成较好
A96: 91 | B96: 2024年劳动聘用人员经费 | C96: 石家庄市市容管理考评中心 | F96: 168.8 | G96: 147.51 | H96: 0 | I96: 21.29 | J96: 21.29 | K96: 98.62 | L96: 完成较好
A97: 92 | B97: 党组织活动经费 | C97: 石家庄市道桥设施管护中心 | F97: 3.86 | G97: 3.86 | H97: 0 | I97: 0 | J97: 0 | K97: 100 | L97: 完成较好
A98: 93 | B98: 办公设备购置资金 | C98: 石家庄市道桥设施管护中心 | F98: 4 | G98: 4 | H98: 0 | I98: 0 | J98: 0 | K98: 100 | L98: 完成较好
A99: 94 | B99: 信息化项目运行维护费 | C99: 石家庄市道桥设施管护中心 | F99: 6 | G99: 6 | H99: 0 | I99: 0 | J99: 0 | K99: 100 | L99: 完成较好
A100: 95 | B100: 公务用车租赁费 | C100: 石家庄市道桥设施管护中心 | F100: 4.8 | G100: 4.8 | H100: 0 | I100: 0 | J100: 0 | K100: 100 | L100: 完成较好
A101: 96 | B101: 道桥管护中心桥涵所办公区及桥梁检测站加固维修经费 | C101: 石家庄市道桥设施管护中心 | F101: 21.16 | G101: 17.13 | H101: 0 | I101: 4.03 | J101: 0 | K101: 98.1 | L101: 完成较好
A102: 97 | B102: 道桥设施管护中心办公楼加固改造及恢复工程经费 | C102: 石家庄市道桥设施管护中心 | F102: 266 | G102: 208.45 | H102: 0 | I102: 57.55 | J102: 0 | K102: 97.8 | L102: 完成较好
A103: 98 | B103: 公务用车购置经费 | C103: 石家庄市道桥设施管护中心 | F103: 7.58 | G103: 7.58 | H103: 0 | I103: 0 | J103: 0 | K103: 100 | L103: 完成较好
A104: 99 | B104: 道路灾害预警雷达系统尾款 | C104: 石家庄市道桥设施管护中心 | F104: 54.35 | G104: 54.35 | H104: 0 | I104: 0 | J104: 0 | K104: 100 | L104: 完成较好
A105: 100 | B105: 事业单位更新电脑设备经费 | C105: 石家庄市道桥设施管护中心 | F105: 29.64 | G105: 29.64 | H105: 0 | I105: 0 | J105: 0 | K105: 100 | L105: 完成较好
A106: 101 | B106: 三环路积水点改造工程 | C106: 石家庄市道桥设施管护中心 | D106: 5050 | G106: 2898.94 | H106: 0 | I106: 2151.06 | J106: 0 | K106: 92 | L106: 完成较好
A107: 102 | B107: 桥梁检测仪器采购资金 | C107: 石家庄市道桥设施管护中心 | F107: 26.67 | G107: 0 | H107: 0 | I107: 26.67 | J107: 0 | K107: 0 | L107: 根据《石家庄市推动大规模设备更新和消费品以旧换新实施方案》和河北省人民政府关于印发《推动大规模设备更新和消费品以旧换新行动方案》的通知等文件精神申报了设备更新计划，针对已经列入2024年采购计划的桥梁检测仪器不再进行采购。
A108: 103 | B108: 桥梁巡检升降车采购资金 | C108: 石家庄市道桥设施管护中心 | F108: 120 | G108: 111.44 | H108: 0 | I108: 8.56 | J108: 0 | K108: 99.29 | L108: 完成较好
A109: 104 | B109: 掘路修复费 | C109: 石家庄市道桥设施管护中心 | F109: 1483.5 | G109: 1479 | H109: 0 | I109: 4.5 | J109: 4.5 | K109: 99.97 | L109: 完成较好
A110: 105 | B110: 城市道路桥梁设施维护费 | C110: 石家庄市道桥设施管护中心 | F110: 9427 | G110: 9426.11 | H110: 0 | I110: 0.89 | J110: 0.89 | K110: 100 | L110: 完成较好
A111: 106 | B111: 道桥中心2023年及以前年度城建项目资金 | C111: 石家庄市道桥设施管护中心 | F111: 100 | G111: 100 | H111: 0 | I111: 0 | J111: 0 | K111: 100 | L111: 完成较好
A112: 107 | B112: 党组织活动经费 | C112: 石家庄市城市照明管护中心 | F112: 1.69 | G112: 1.69 | H112: 0 | I112: 0 | J112: 0 | K112: 100 | L112: 完成较好
A113: 108 | B113: 办公设备购置资金 | C113: 石家庄市城市照明管护中心 | F113: 1.29 | G113: 1.29 | H113: 0 | I113: 0 | J113: 0 | K113: 100 | L113: 完成较好
A114: 109 | B114: 公务用车租赁费 | C114: 石家庄市城市照明管护中心 | F114: 9.36 | G114: 9.36 | H114: 0 | I114: 0 | J114: 0 | K114: 100 | L114: 完成较好
A115: 110 | B115: 事业单位更新电脑设备经费 | C115: 石家庄市城市照明管护中心 | F115: 7.35 | G115: 7.35 | H115: 0 | I115: 0 | J115: 0 | K115: 100 | L115: 完成较好
A116: 111 | B116: 照明设施维护经费 | C116: 石家庄市城市照明管护中心 | F116: 7225 | G116: 7225 | H116: 0 | I116: 0 | J116: 0 | K116: 100 | L116: 完成较好
A117: 112 | B117: 照明中心2023年及以前年度城建项目资金 | C117: 石家庄市城市照明管护中心 | F117: 1805 | G117: 1805 | H117: 0 | I117: 0 | J117: 0 | K117: 100 | L117: 完成较好
A118: 113 | B118: 街道照明设施提升工程 | C118: 石家庄市城市照明管护中心 | F118: 350 | G118: 337.55 | H118: 0 | I118: 12.45 | J118: 12.45 | K118: 99.6 | L118: 完成较好
A119: 114 | B119: 公益广告设置经费 | C119: 石家庄市城市照明管护中心 | F119: 296 | G119: 296 | H119: 0 | I119: 0 | J119: 0 | K119: 100 | L119: 完成较好
A120: 115 | B120: 党组织活动经费 | C120: 石家庄市危险废弃物处置场 | F120: 0.31 | G120: 0.31 | H120: 0 | I120: 0 | J120: 0 | K120: 100 | L120: 完成较好
A121: 116 | B121: 办公设备购置 | C121: 石家庄市危险废弃物处置场 | F121: 0.5 | G121: 0.5 | H121: 0 | I121: 0 | J121: 0 | K121: 100 | L121: 完成较好
A122: 117 | B122: 废旧电池处置运行费 | C122: 石家庄市危险废弃物处置场 | F122: 66 | G122: 66 | H122: 0 | I122: 0 | J122: 0 | K122: 100 | L122: 完成较好
A123: 118 | B123: 党组织活动经费 | C123: 石家庄市生活固体废弃物处置服务中心 | F123: 0.63 | G123: 0.63 | H123: 0 | I123: 0 | J123: 0 | K123: 100 | L123: 完成较好
A124: 119 | B124: 公务用车租赁费 | C124: 石家庄市生活固体废弃物处置服务中心 | F124: 17.08 | G124: 17.08 | H124: 0 | I124: 0 | J124: 0 | K124: 100 | L124: 完成较好
A125: 120 | B125: 办公设备购置 | C125: 石家庄市生活固体废弃物处置服务中心 | F125: 1 | G125: 1 | H125: 0 | I125: 0 | J125: 0 | K125: 100 | L125: 完成较好
A126: 121 | B126: 党组织活动经费 | C126: 石家庄市卫生垃圾太行填埋场 | F126: 1.07 | G126: 1.02 | H126: 0 | I126: 0.05 | J126: 0.05 | K126: 99.53 | L126: 完成较好
A127: 122 | B127: 办公设备购置 | C127: 石家庄市卫生垃圾太行填埋场 | F127: 0.14 | G127: 0.14 | H127: 0 | I127: 0 | J127: 0 | K127: 100 | L127: 完成较好
A128: 123 | B128: 生活垃圾卫生填埋运行费 | C128: 石家庄市卫生垃圾太行填埋场 | F128: 847.48 | G128: 788.49 | H128: 0 | I128: 58.99 | J128: 58.99 | K128: 99.3 | L128: 完成较好
A129: 124 | B129: 事业单位更新电脑设备经费 | C129: 石家庄市卫生垃圾太行填埋场 | F129: 1.32 | G129: 1.32 | H129: 0 | I129: 0 | J129: 0 | K129: 100 | L129: 完成较好
A130: 125 | B130: 总退水渠维护费 | C130: 石家庄市总退水渠管理所 | F130: 162 | G130: 161.78 | H130: 0 | I130: 0.22 | J130: 0.22 | K130: 100 | L130: 完成较好
A131: 126 | B131: 党组织活动经费 | C131: 石家庄市二环路管护中心 | F131: 2 | G131: 2 | H131: 0 | I131: 0 | J131: 0 | K131: 100 | L131: 完成较好
A132: 127 | B132: 办公设备购置 | C132: 石家庄市二环路管护中心 | F132: 5.27 | G132: 5.27 | H132: 0 | I132: 0 | J132: 0 | K132: 100 | L132: 完成较好
A133: 128 | B133: 公务用车租赁费 | C133: 石家庄市二环路管护中心 | F133: 4.38 | G133: 4.38 | H133: 0 | I133: 0 | J133: 0 | K133: 100 | L133: 完成较好
A134: 129 | B134: 二环路设施维护费 | C134: 石家庄市二环路管护中心 | F134: 7405.13 | G134: 7405.13 | H134: 0 | I134: 0 | J134: 0 | K134: 100 | L134: 完成较好
A135: 130 | B135: 掘路修复费 | C135: 石家庄市二环路管护中心 | F135: 46.68 | G135: 46.68 | H135: 0 | I135: 0 | J135: 0 | K135: 100 | L135: 完成较好
A136: 131 | B136: 二环中心2023年及以前年度城建项目资金 | C136: 石家庄市二环路管护中心 | F136: 1046 | G136: 1046 | H136: 0 | I136: 0 | J136: 0 | K136: 100 | L136: 完成较好
A137: 132 | B137: 二环路铁路地道桥美化亮化工程 | C137: 石家庄市二环路管护中心 | F137: 110 | G137: 110 | H137: 0 | I137: 0 | J137: 0 | K137: 100 | L137: 完成较好
A138: 133 | B138: 北二环路慢行系统改造 | C138: 石家庄市二环路管护中心 | F138: 500 | G138: 386.86 | H138: 0 | I138: 113.14 | J138: 0 | K138: 97.7 | L138: 完成较好
A139: 134 | B139: 事业单位更新电脑设备经费 | C139: 石家庄市二环路管护中心 | F139: 15.34 | G139: 15.34 | H139: 0 | I139: 0 | J139: 0 | K139: 100 | L139: 完成较好
A140: 135 | B140: 环卫作业车辆采购项目 | C140: 石家庄市二环路管护中心 | F140: 3832 | G140: 3828 | H140: 0 | I140: 4 | J140: 4 | K140: 99.99 | L140: 完成较好
A141: 136 | B141: 执法业务费 | C141: 石家庄市城市管理综合保障中心 | F141: 10.53 | G141: 10.53 | H141: 0 | I141: 0 | J141: 0 | K141: 100 | L141: 完成较好
A142: 137 | B142: 工作场地租赁费 | C142: 石家庄市城市管理综合保障中心 | F142: 332.77 | G142: 332.77 | H142: 0 | I142: 0 | J142: 0 | K142: 100 | L142: 完成较好
A143: 138 | B143: 劳动聘用人员经费 | C143: 石家庄市城市管理综合保障中心 | F143: 529.6 | G143: 529.6 | H143: 0 | I143: 0 | J143: 0 | K143: 98 | L143: 完成较好
A144: 139 | B144: 物业管理费 | C144: 石家庄市城市管理综合保障中心 | F144: 30 | G144: 29.82 | H144: 0 | I144: 0.18 | J144: 0.18 | K144: 99.94 | L144: 完成较好
A145: 140 | B145: 党组织活动经费 | C145: 石家庄市城市管理综合保障中心 | F145: 10.97 | G145: 10.66 | H145: 0 | I145: 0.31 | J145: 0.31 | K145: 99.72 | L145: 完成较好
A146: 141 | B146: 办公设备购置 | C146: 石家庄市城市管理综合保障中心 | F146: 40 | G146: 39.84 | H146: 0 | I146: 0.16 | J146: 0.16 | K146: 99.96 | L146: 完成较好
A147: 142 | B147: 文件资料印刷费 | C147: 石家庄市燃气中心 | F147: 1.6 | G147: 1.6 | H147: 0 | I147: 0 | J147: 0 | K147: 100 | L147: 完成较好
A148: 143 | B148: 第三方燃气风险辨识与安全大讲堂经费 | C148: 石家庄市燃气中心 | F148: 55.13 | G148: 53.89 | H148: 0 | I148: 1.24 | J148: 1.24 | K148: 99.78 | L148: 完成较好
A149: 144 | B149: 劳动聘用人员经费 | C149: 石家庄市燃气中心 | F149: 45.7 | G149: 45.7 | H149: 0 | I149: 0 | J149: 0 | K149: 100 | L149: 完成较好
A150: 145 | B150: 2024年劳动聘用人员经费 | C150: 石家庄市燃气中心 | F150: 9.7 | G150: 9.7 | H150: 0 | I150: 0 | J150: 0 | K150: 100 | L150: 完成较好
A151: 146 | B151: 专项邮电费 | C151: 石家庄市燃气中心 | F151: 1.8 | G151: 1.8 | H151: 0 | I151: 0 | J151: 0 | K151: 100 | L151: 完成较好
A152: 147 | B152: 事业单位更新电脑设备经费 | C152: 石家庄市燃气中心 | F152: 1.48 | G152: 1.48 | H152: 0 | I152: 0 | J152: 0 | K152: 100 | L152: 完成较好
A153: 148 | B153: 党组织活动经费 | C153: 石家庄市燃气中心 | F153: 0.39 | G153: 0.39 | H153: 0 | I153: 0 | J153: 0 | K153: 100 | L153: 完成较好
A154: 149 | B154: 业务咨询委托费 | C154: 石家庄市燃气中心 | F154: 30 | G154: 29.89 | H154: 0 | I154: 0.11 | J154: 0.11 | K154: 99.96 | L154: 完成较好
A155: 150 | B155: 事业单位更新电脑设备经费 | C155: 石家庄市城市管理便民服务中心 | F155: 4.4 | G155: 4.4 | H155: 0 | I155: 0 | J155: 0 | K155: 100 | L155: 完成较好
A156: 151 | B156: 办公设备购置 | C156: 石家庄市城市管理便民服务中心 | F156: 2.37 | G156: 2.37 | H156: 0 | I156: 0 | J156: 0 | K156: 100 | L156: 完成较好
A157: 152 | B157: 城管热线运行维护费 | C157: 石家庄市城市管理便民服务中心 | F157: 32 | G157: 31.69 | H157: 0 | I157: 0.31 | J157: 0.31 | K157: 98.9 | L157: 完成较好
A158: 153 | B158: 文件资料印刷费 | C158: 石家庄市城市管理便民服务中心 | F158: 2.1 | G158: 2.07 | H158: 0 | I158: 0.03 | J158: 0.03 | K158: 100 | L158: 完成较好
A159: 154 | B159: 党组织活动经费 | C159: 石家庄市城市管理便民服务中心 | F159: 0.28 | G159: 0.26 | H159: 0 | I159: 0.02 | J159: 0.02 | K159: 97.3 | L159: 完成较好
A160: 155 | B160: 业务培训费 | C160: 石家庄市城市管理便民服务中心 | F160: 18.7 | G160: 18.7 | H160: 0 | I160: 0 | J160: 0 | K160: 100 | L160: 完成较好
A161: 156 | B161: 劳动聘用人员经费 | C161: 石家庄市城市管理便民服务中心 | F161: 151.6 | G161: 151.6 | H161: 0 | I161: 0 | J161: 0 | K161: 100 | L161: 完成较好
A162: 157 | B162: 党组织活动经费 | C162: 石家庄市供热事务中心 | F162: 0.85 | G162: 0.8 | H162: 0 | I162: 0.05 | J162: 0.05 | K162: 99.4 | L162: 完成较好
A163: 158 | B163: 业务咨询委托费 | C163: 石家庄市供热事务中心 | F163: 33.64 | G163: 19.72 | H163: 0 | I163: 13.92 | J163: 13.92 | K163: 94 | L163: 完成较好
A164: 159 | B164: 专项邮电费 | C164: 石家庄市供热事务中心 | F164: 6.2 | G164: 6.2 | H164: 0 | I164: 0 | J164: 0 | K164: 100 | L164: 完成较好
A165: 160 | B165: 物业管理费 | C165: 石家庄市供热事务中心 | F165: 5.5 | G165: 4.74 | H165: 0 | I165: 0.76 | J165: 0.76 | K165: 98.6 | L165: 完成较好
A166: 161 | B166: 劳动聘用人员经费 | C166: 石家庄市供热事务中心 | F166: 36.6 | G166: 36.6 | H166: 0 | I166: 0 | J166: 0 | K166: 100 | L166: 完成较好
A167: 162 | B167: 2024年劳动聘用人员经费 | C167: 石家庄市供热事务中心 | F167: 7.9 | G167: 7.75 | H167: 0 | I167: 0.15 | J167: 0.15 | K167: 99.8 | L167: 完成较好
A168: 163 | B168: 市城市集中供热专项规划编制费 | C168: 石家庄市供热事务中心 | F168: 39.36 | G168: 39.36 | H168: 0 | I168: 0 | J168: 0 | K168: 100 | L168: 完成较好
A169: 164 | B169: 供热智慧管理平台扩容项目质保金 | C169: 石家庄市供热事务中心 | F169: 8.28 | G169: 8.28 | H169: 0 | I169: 0 | J169: 0 | K169: 100 | L169: 完成较好
A170: 165 | B170: 原热一区域替代锅炉占地经费 | C170: 石家庄市供热事务中心 | F170: 43 | G170: 43 | H170: 0 | I170: 0 | J170: 0 | K170: 100 | L170: 完成较好
A171: 166 | B171: 主城区供热质量第三方监督服务费 | C171: 石家庄市供热事务中心 | F171: 100 | G171: 77.84 | H171: 0 | I171: 22.16 | J171: 22.16 | K171: 97.8 | L171: 完成较好
A172: 167 | B172: 供热补贴资金 | C172: 石家庄市供热事务中心 | F172: 43000 | G172: 43000 | H172: 0 | I172: 0 | J172: 0 | K172: 100 | L172: 完成较好
A173: 168 | B173: 2022-2023年采暖季石热九期燃机机组居民部分供热补贴资金 | C173: 石家庄市供热事务中心 | F173: 4523.45 | G173: 4523.45 | H173: 0 | I173: 0 | J173: 0 | K173: 100 | L173: 完成较好
A174: 169 | B174: 主城区安装居民室温采集系统经费 | C174: 石家庄市供热事务中心 | F174: 31.69 | G174: 31.69 | H174: 0 | I174: 0 | J174: 0 | K174: 100 | L174: 完成较好
A175: 170 | B175: 电梯运维费 | C175: 石家庄市排水管护中心 | F175: 1.4 | G175: 1.4 | H175: 0 | I175: 0 | J175: 0 | K175: 100 | L175: 完成较好
A176: 171 | B176: 办公设备购置 | C176: 石家庄市排水管护中心 | F176: 14.34 | G176: 14.34 | H176: 0 | I176: 0 | J176: 0 | K176: 100 | L176: 完成较好
A177: 172 | B177: 事业单位更新电脑设备经费 | C177: 石家庄市排水管护中心 | F177: 15.14 | G177: 15.14 | H177: 0 | I177: 0 | J177: 0 | K177: 100 | L177: 完成较好
A178: 173 | B178: 党组织活动经费 | C178: 石家庄市排水管护中心 | F178: 7 | G178: 7 | H178: 0 | I178: 0 | J178: 0 | K178: 100 | L178: 完成较好
A179: 174 | B179: 排水设施维护费 | C179: 石家庄市排水管护中心 | F179: 4922.16 | G179: 4922.16 | H179: 0 | I179: 0 | J179: 0 | K179: 100 | L179: 完成较好
A180: 175 | B180: 城区防汛监控系统运行费 | C180: 石家庄市排水管护中心 | F180: 59 | G180: 59 | H180: 0 | I180: 0 | J180: 0 | K180: 100 | L180: 完成较好
A181: 176 | B181: 特大暴雨防汛费 | C181: 石家庄市排水管护中心 | F181: 122.99 | G181: 122.99 | H181: 0 | I181: 0 | J181: 0 | K181: 100 | L181: 完成较好
A182: 177 | B182: 民心河维护费 | C182: 石家庄市排水管护中心 | F182: 1898 | G182: 1898 | H182: 0 | I182: 0 | J182: 0 | K182: 100 | L182: 完成较好
A183: 178 | B183: 南栗明渠通水费 | C183: 石家庄市排水管护中心 | F183: 140 | G183: 140 | H183: 0 | I183: 0 | J183: 0 | K183: 100 | L183: 完成较好
A184: 179 | B184: 南栗明渠通水经费 | C184: 石家庄市排水管护中心 | F184: 145 | G184: 144.75 | H184: 0 | I184: 0.25 | J184: 0.25 | K184: 99.98 | L184: 完成较好
A185: 180 | B185: 城市排水（雨水）防涝综合规划编制费 | C185: 石家庄市排水管护中心 | F185: 144 | G185: 144 | H185: 0 | I185: 0 | J185: 0 | K185: 100 | L185: 完成较好
A186: 181 | B186: 地道桥雨水泵站规划编制费 | C186: 石家庄市排水管护中心 | F186: 118 | G186: 118 | H186: 0 | I186: 0 | J186: 0 | K186: 100 | L186: 完成较好
A187: 182 | B187: 智慧排水系统运行费 | C187: 石家庄市排水管护中心 | F187: 9.84 | G187: 9.84 | H187: 0 | I187: 0 | J187: 0 | K187: 100 | L187: 完成较好
A188: 183 | B188: 排水监测站监测运行费 | C188: 石家庄市排水管护中心 | F188: 109.39 | G188: 109.39 | H188: 0 | I188: 0 | J188: 0 | K188: 100 | L188: 完成较好
A189: 184 | B189: 排水仪器设备及车辆购置经费 | C189: 石家庄市排水管护中心 | F189: 122.6 | G189: 122.6 | H189: 0 | I189: 0 | J189: 0 | K189: 100 | L189: 完成较好
A190: 185 | B190: 排水收费所工作经费 | C190: 石家庄市排水管护中心 | F190: 19.5 | G190: 19.43 | H190: 0 | I190: 0.07 | J190: 0.07 | K190: 99.96 | L190: 完成较好
A191: 186 | B191: 执法业务费 | C191: 石家庄市排水管护中心 | F191: 50.45 | G191: 50.45 | H191: 0 | I191: 0 | J191: 0 | K191: 100 | L191: 完成较好
A192: 187 | B192: 执法专用设备购置经费 | C192: 石家庄市排水管护中心 | F192: 23.51 | G192: 23.51 | H192: 0 | I192: 0 | J192: 0 | K192: 100 | L192: 完成较好
A193: 188 | B193: 业务咨询委托费 | C193: 石家庄市排水管护中心 | F193: 6 | G193: 6 | H193: 0 | I193: 0 | J193: 0 | K193: 100 | L193: 完成较好
A194: 189 | B194: 摔伤人员及损坏车辆赔偿费 | C194: 石家庄市排水管护中心 | F194: 8 | G194: 6.03 | H194: 0 | I194: 1.97 | J194: 1.97 | K194: 97.54 | L194: 完成较好
A195: 190 | B195: 劳动聘用人员经费 | C195: 石家庄市排水管护中心 | F195: 798.9 | G195: 797.24 | H195: 0 | I195: 1.66 | J195: 1.66 | K195: 100 | L195: 完成较好
A196: 191 | B196: 2024年劳动聘用人员经费 | C196: 石家庄市排水管护中心 | F196: 139.7 | G196: 101.61 | H196: 0 | I196: 38.09 | J196: 38.09 | K196: 97.3 | L196: 完成较好
A197: 192 | B197: 排水中心2023年及以前年度城建项目资金 | C197: 石家庄市排水管护中心 | F197: 200 | G197: 200 | H197: 0 | I197: 0 | J197: 0 | K197: 100 | L197: 完成较好
A198: 193 | B198: 办公设备购置 | C198: 石家庄市市政建设服务中心 | F198: 0.9 | G198: 0.9 | H198: 0 | I198: 0 | J198: 0 | K198: 100 | L198: 完成较好
A199: 194 | B199: 党组织活动经费 | C199: 石家庄市市政建设服务中心 | F199: 0.67 | G199: 0.67 | H199: 0 | I199: 0 | J199: 0 | K199: 100 | L199: 完成较好
A200: 195 | B200: 质量监督抽测经费 | C200: 石家庄市市政建设服务中心 | F200: 2 | G200: 2 | H200: 0 | I200: 0 | J200: 0 | K200: 100 | L200: 完成较好
... 11 more rows

Sheet 财政局部门预算文本 (hidden)
A1: 序号 | B1: 项目名称 | C1: 项目实施单位 | D1: 预算数（调整后） | G1: 执行数（至2024年底） | I1: 结余数 | J1: 结余交回财政数 | K1: 自评得分 | L1: 自评结果应用意见 | P1: 结转
D2: 中央 | E2: 省级 | F2: 市级 | G2: 市级 | H2: 县（市）区级
A3: 附件6
A4: 部门绩效自评结果公开汇总表
A5: 主管部门：石家庄市城市管理综合行政执法局 | J5: 单位：万元 | M5: 已报送 | N5: 未报送 | O5: 重点自评
A6: 序号 | B6: 项目名称 | C6: 项目实施单位 | D6: 预算数（调整后） | G6: 执行数（至2024年底） | I6: 结余数 | J6: 结余交回财政数 | K6: 自评得分 | L6: 自评结果应用意见 | P6: 结转
D7: 中央 | E7: 省级 | F7: 市级 | G7: 市级 | H7: 县（市）区级
A8: 1 | B8: 既有燃气管道用户加装安全装置经费 | C8: 石家庄市城市管理综合行政执法局系统 | F8: 1000 | H8: 1000 | I8: =D8+E8+F8-G8-H8 -> 0 | J8: =I8 -> 0 | K8: 100 | M8: 燃热科 | O8: 重点自评 | P8: 0
A9: 2 | B9: 环卫工人协助管理非机动车停放秩序奖补资金 | C9: 石家庄市城市管理综合行政执法局系统 | F9: 2960 | H9: 499 | I9: 2461 | J9: 2461 | K9: 70 | M9: 市容科 | O9: 重点自评 | P9: 0
A10: 3 | B10: 中央大气污染防治资金 | C10: 石家庄市城市管理综合行政执法局系统 | D10: 6082.3 | H10: 6082.3 | I10: 0 | J10: 0 | K10: 100 | M10: 双代办 | O10: 重点自评 | P10: 0
A11: 4 | B11: 仓丰东路雨水泵站新建工程国债项目 | C11: 石家庄市城市管理综合行政执法局本级 | D11: 4705 | E11: 235.25 | F11: 177.75 | G11: 3993.37 | I11: =D11+E11+F11-G11 -> 1124.63 | J11: 1124.63 | K11: 97.8 | M11: 市政科 | O11: 重点自评 | P11: 830 | Q11: =I11-P11 -> 294.63
A12: 5 | B12: 东南退水明渠建设国债项目 | C12: 石家庄市城市管理综合行政执法局本级 | D12: 134709 | E12: 3367.72 | F12: 40035.37 | G12: 109813.31 | I12: 68298.78 | J12: 68298.78 | K12: 80.57 | M12: 市政科 | O12: 重点自评 | P12: 67901.22 | Q12: =I12-P12 -> 397.56
A13: 6 | B13: 明珠街、石铜路、槐中路雨水调蓄设施新建工程国债项目 | C13: 石家庄市城市管理综合行政执法局本级 | D13: 10443 | E13: 522.15 | F13: 2088.85 | G13: 7411.09 | I13: 5642.91 | J13: 5642.91 | K13: 95.68 | M13: 市政科 | O13: 重点自评 | P13: 3555.59 | Q13: 2087.32
A14: 7 | B14: 石家庄市移动排涝能力提升项目国债项目 | C14: 石家庄市城市管理综合行政执法局本级 | D14: 28756 | E14: 1437.8 | F14: 5752.2 | G14: 34829.79 | I14: 1116.21 | J14: 1116.21 | K14: 100 | M14: 市政科 | O14: 重点自评 | P14: =VLOOKUP(B14,粘贴!B:L,11,0) -> 
A15: 8 | B15: 雨水调蓄设施建设工程国债项目 | C15: 石家庄市城市管理综合行政执法局本级 | D15: 30652 | E15: 1532.6 | F15: 6131.4 | G15: 24562.02 | I15: 13753.98 | J15: 13753.98 | K15: 96.41 | M15: 市政科 | O15: 重点自评 | P15: 7627.1 | Q15: 6126.88
A16: 9 | B16: 市区积水点整治工程国债项目 | C16: 石家庄市城市管理综合行政执法局本级 | D16: 3478 | E16: 173.9 | F16: 696.1 | G16: 3178.45 | I16: 1169.55 | J16: 1169.55 | K16: 97.31 | M16: 市政科 | O16: 重点自评 | P16: 474.03 | Q16: 695.52
A17: 10 | B17: 四支渠（新华路-南泄洪渠）新建工程国债项目 | C17: 石家庄市城市管理综合行政执法局本级 | D17: 47548 | E17: 1188.7 | F17: 1263.3 | G17: 28347.67 | I17: 21652.33 | J17: 21652.33 | K17: 85.87 | M17: 市政科 | O17: 重点自评 | P17: =VLOOKUP(B17,粘贴!B:L,11,0) -> 0 | Q17: 21652.33
A18: 11 | B18: 农机街泵站新建工程国债项目 | C18: 石家庄市城市管理综合行政执法局本级 | D18: 7142 | E18: 357.1 | F18: 1429 | G18: 6472.97 | I18: 2455.13 | J18: 2455.13 | K18: 97.25 | M18: 市政科 | O18: 重点自评 | P18: 1026.15 | Q18: 1428.98
A19: 12 | B19: 排水管网改造项目经费（桥西区四项工程） | C19: 石家庄市城市管理综合行政执法局本级 | F19: 2166.38 | I19: =D19+E19+F19-G19-H19 -> 2166.38 | J19: 2166.38 | K19: 0 | L19: 完成一般 | M19: 防汛办 | O19: 重点自评 | P19: =VLOOKUP(B19,粘贴!B:L,11,0) -> 
A20: 13 | B20: 排水管网改造项目经费（新华区五项工程） | C20: 石家庄市城市管理综合行政执法局本级 | F20: 1021.31 | I20: 1021.31 | J20: 1021.31 | K20: 0 | L20: 完成一般 | M20: 防汛办 | O20: 重点自评 | P20: =VLOOKUP(B20,粘贴!B:L,11,0) -> 
A21: 14 | B21: 育才街(和平路-方北路、裕华路-民心河)雨污水提升改造工程经费 | C21: 石家庄市城市管理综合行政执法局本级 | F21: 1952.3 | I21: 1952.3 | J21: 1952.3 | K21: 0 | L21: 完成一般 | M21: 防汛办 | O21: 重点自评 | P21: =VLOOKUP(B21,粘贴!B:L,11,0) -> 
A22: 15 | B22: 市区支路增设雨水管道工程经费 | C22: 石家庄市城市管理综合行政执法局本级 | F22: 4493.34 | I22: 4493.34 | J22: 4493.34 | K22: 0 | L22: 完成一般 | M22: 防汛办 | O22: 重点自评 | P22: =VLOOKUP(B22,粘贴!B:L,11,0) -> 
A23: 16 | B23: 泰华街雨污水干管新建工程经费 | C23: 石家庄市城市管理综合行政执法局本级 | F23: 2175.5 | I23: 2175.5 | J23: 2175.5 | K23: 0 | L23: 完成一般 | M23: 防汛办 | O23: 重点自评 | P23: =VLOOKUP(B23,粘贴!B:L,11,0) -> 
A24: 17 | B24: 污水污泥处理经费 | C24: 石家庄市城市管理综合行政执法局本级 | F24: 39200.5 | G24: 39198.83 | I24: =D24+E24+F24-G24 -> 1.67 | J24: 1.67 | K24: 100 | M24: 供水科 | O24: 重点自评 | P24: =VLOOKUP(B24,粘贴!B:L,11,0) -> 0 | Q24: 1.67
A25: 18 | B25: 农机街泵站新建工程国债项目征地费用市级补助 | C25: 石家庄市城市管理综合行政执法局本级 | F25: 2667 | G25: 2667 | I25: 0 | J25: 0 | K25: 100 | M25: 市政科 | P25: =VLOOKUP(B25,粘贴!B:L,11,0) -> 
A26: 19 | B26: 仓丰东路雨水泵站新建工程国债项目征地费用市级补助 | C26: 石家庄市城市管理综合行政执法局本级 | F26: 1432 | G26: 1002 | I26: 430 | J26: 430 | K26: 97 | M26: 市政科 | P26: =VLOOKUP(B26,粘贴!B:L,11,0) -> 
A27: 20 | B27: 2024年城市更新行动城市建设项目 | C27: 石家庄市城市管理综合行政执法局本级 | F27: 20000 | I27: =D27+E27+F27-G27-H27 -> 20000 | J27: 20000 | K27: 68 | L27: 完成一般 | P27: =VLOOKUP(B27,粘贴!B:L,11,0) -> 
A28: 21 | B28: 液化气居民用户安装物联报警器 和自动切断装置项目 | C28: 石家庄市城市管理综合行政执法局本级 | D28: 1917 | G28: 12.78 | I28: =D28+E28+F28-G28 -> 1904.22 | J28: =I28 -> 1904.22 | K28: 69 | M28: 燃热科 | P28: =VLOOKUP(B28,粘贴!B:L,11,0) -> 1904.22 | Q28: 0
A29: 22 | B29: 2023年城管局机关城建项目资金 | C29: 石家庄市城市管理综合行政执法局本级 | F29: 151.85 | G29: 151.85 | I29: 0 | J29: 0 | K29: 100 | M29: 景观科 | P29: 1096.8 | Q29: -1096.8
A30: 23 | B30: DLP高清拼接屏采购项目尾款 | C30: 石家庄市城市管理综合行政执法局本级 | F30: 94.77 | G30: 94.77 | I30: 0 | J30: 0 | K30: 100 | M30: 市容科 | P30: =VLOOKUP(B30,粘贴!B:L,11,0) -> 
A31: 24 | B31: 安全生产监督工作经费 | C31: 石家庄市城市管理综合行政执法局本级 | F31: 15 | G31: 15 | I31: 0 | J31: 0 | K31: 100 | M31: 安全科 | P31: =VLOOKUP(B31,粘贴!B:L,11,0) -> 0 | Q31: 0
A32: 25 | B32: 城区防汛汛期应急指挥车租赁经费 | C32: 石家庄市城市管理综合行政执法局本级 | F32: 10.2 | G32: 10.2 | I32: 0 | J32: 0 | K32: 100 | M32: 办公室 | P32: =VLOOKUP(B32,粘贴!B:L,11,0) -> 0 | Q32: 0
A33: 26 | B33: 城市运营中心场地租用费 | C33: 石家庄市城市管理综合行政执法局本级 | F33: 61 | G33: 61 | I33: 0 | J33: 0 | K33: 100 | M33: 燃热科 | P33: 0 | Q33: 0
A34: 27 | B34: 党组织活动经费 | C34: 石家庄市城市管理综合行政执法局本级 | F34: 9.17 | G34: 9.17 | I34: 0 | J34: 0 | K34: 100 | M34: 党办 | P34: =VLOOKUP(B34,粘贴!B:L,11,0) -> 0 | Q34: 0
A35: 28 | B35: 电梯运维费 | C35: 石家庄市城市管理综合行政执法局本级 | F35: 1.4 | G35: 1.4 | I35: 0 | J35: 0 | K35: 100 | M35: 办公室 | P35: =VLOOKUP(B35,粘贴!B:L,11,0) -> 0 | Q35: 0
A36: 29 | B36: 供水水质监测经费 | C36: 石家庄市城市管理综合行政执法局本级 | F36: 10 | G36: 10 | I36: 0 | J36: 0 | K36: 100 | M36: 供水科 | P36: =VLOOKUP(B36,粘贴!B:L,11,0) -> 0 | Q36: 0
A37: 30 | B37: 国家节水型城市复查迎检工作经费 | C37: 石家庄市城市管理综合行政执法局本级 | F37: 85.1 | G37: 85.1 | I37: 0 | J37: 0 | K37: 99 | M37: 供水科 | P37: =VLOOKUP(B37,粘贴!B:L,11,0) -> 0 | Q37: 0
A38: 31 | B38: 绿色社区创建三年行动办公室工作经费 | C38: 石家庄市城市管理综合行政执法局本级 | F38: 33.02 | G38: 33.02 | I38: 0 | J38: 0 | K38: 100 | M38: 创绿办 | P38: =VLOOKUP(B38,粘贴!B:L,11,0) -> 
A39: 32 | B39: 生活垃圾分类运行经费 | C39: 石家庄市城市管理综合行政执法局本级 | F39: 58.99 | G39: 58.99 | I39: 0 | J39: 0 | K39: 100 | M39: 垃分办 | P39: 0 | Q39: 0
A40: 33 | B40: 生活垃圾分类运行资金 | C40: 石家庄市城市管理综合行政执法局本级 | F40: 20 | G40: 20 | I40: 0 | J40: 0 | K40: 100 | M40: 垃分办 | P40: =VLOOKUP(B40,粘贴!B:L,11,0) -> 0 | Q40: 0
A41: 34 | B41: 市渣土办工作经费 | C41: 石家庄市城市管理综合行政执法局本级 | F41: 36.8 | G41: 36.8 | I41: 0 | J41: 0 | K41: 100 | M41: 渣土科 | P41: =VLOOKUP(B41,粘贴!B:L,11,0) -> 
A42: 35 | B42: 污水处理补贴资金 | C42: 石家庄市城市管理综合行政执法局本级 | F42: 15846 | G42: 15846 | I42: 0 | J42: 0 | K42: 100 | M42: 供水科 | P42: =VLOOKUP(B42,粘贴!B:L,11,0) -> 
A43: 36 | B43: 污水处理费代征手续费 | C43: 石家庄市城市管理综合行政执法局本级 | F43: 345 | G43: 345 | I43: 0 | J43: 0 | K43: 100 | M43: 供水科 | P43: =VLOOKUP(B43,粘贴!B:L,11,0) -> 
A44: 37 | B44: 物业管理费 | C44: 石家庄市城市管理综合行政执法局本级 | F44: 25.55 | G44: 25.55 | I44: 0 | J44: 0 | K44: 100 | M44: 办公室 | P44: =VLOOKUP(B44,粘贴!B:L,11,0) -> 0 | Q44: =I44-P44 -> 0
A45: 38 | B45: 执法制式服装费尾款 | C45: 石家庄市城市管理综合行政执法局本级 | F45: 5.71 | G45: 5.71 | I45: 0 | J45: 0 | K45: 100 | M45: 执法科 | P45: =VLOOKUP(B45,粘贴!B:L,11,0) -> 
A46: 39 | B46: 文件资料印刷费 | C46: 石家庄市城市管理综合行政执法局本级 | F46: 11 | G46: 10.99 | I46: 0.01 | J46: 0.01 | K46: 100 | M46: 办公室 | P46: =VLOOKUP(B46,粘贴!B:L,11,0) -> 
A47: 40 | B47: 专用设备维修费 | C47: 石家庄市城市管理综合行政执法局本级 | F47: 30 | G47: 29.98 | I47: 0.02 | J47: 0.02 | K47: 100 | M47: 办公室 | P47: 0 | Q47: 0.02
A48: 41 | B48: 防汛经费 | C48: 石家庄市城市管理综合行政执法局本级 | F48: 29.98 | G48: 29.83 | I48: 0.15 | J48: 0.15 | K48: 100 | M48: 防汛办 | P48: =VLOOKUP(B48,粘贴!B:L,11,0) -> 0 | Q48: 0.15
A49: 42 | B49: 生活垃圾分类工作经费 | C49: 石家庄市城市管理综合行政执法局本级 | F49: 100 | G49: 99.8 | I49: 0.2 | J49: 0.2 | K49: 100 | M49: 垃分办 | P49: =VLOOKUP(B49,粘贴!B:L,11,0) -> 0 | Q49: 0.2
A50: 43 | B50: 城市更新示范城市申报工作专班工作经费 | C50: 石家庄市城市管理综合行政执法局本级 | F50: 16.25 | G50: 15.93 | I50: 0.32 | J50: 0.32 | K50: 99.8 | M50: 供水科 | P50: =VLOOKUP(B50,粘贴!B:L,11,0) -> 
A51: 44 | B51: 城管全民动员大会及宣传活动经费 | C51: 石家庄市城市管理综合行政执法局本级 | F51: 39.43 | G51: 38.57 | I51: 0.86 | J51: 0.86 | K51: 99.8 | M51: 办公室 | P51: =VLOOKUP(B51,粘贴!B:L,11,0) -> 0 | Q51: 0.86
A52: 45 | B52: 双代办第三方评估监督经费 | C52: 石家庄市城市管理综合行政执法局本级 | F52: 30 | G52: 28.36 | I52: 1.64 | J52: 1.64 | K52: 99.45 | M52: 双代办 | P52: =VLOOKUP(B52,粘贴!B:L,11,0) -> 0 | Q52: 1.64
A53: 46 | B53: 业务培训费 | C53: 石家庄市城市管理综合行政执法局本级 | F53: 40 | G53: 37.36 | I53: 2.64 | J53: 2.64 | K53: 99.3 | M53: 财务科 | P53: =VLOOKUP(B53,粘贴!B:L,11,0) -> 0 | Q53: 2.64
A54: 47 | B54: 市双代办工作经费 | C54: 石家庄市城市管理综合行政执法局本级 | F54: 33.19 | G54: 30.27 | I54: 2.92 | J54: 2.92 | K54: 99.12 | M54: 双代办 | P54: =VLOOKUP(B54,粘贴!B:L,11,0) -> 0 | Q54: 2.92
A55: 48 | B55: 普法工作经费 | C55: 石家庄市城市管理综合行政执法局本级 | F55: 39 | G55: 32.7 | I55: 6.3 | J55: 6.3 | K55: 98.4 | M55: 法规科 | P55: =VLOOKUP(B55,粘贴!B:L,11,0) -> 0 | Q55: 6.3
A56: 49 | B56: 正太广场、解放广场及周边区域管理办公室工作经费 | C56: 石家庄市城市管理综合行政执法局本级 | F56: 23.52 | G56: 22.6 | I56: 0.92 | J56: 0.92 | K56: 99.6 | M56: 正太广场 | P56: =VLOOKUP(B56,粘贴!B:L,11,0) -> 0 | Q56: 0.92
A57: 50 | B57: 市景观办工作经费 | C57: 石家庄市城市管理综合行政执法局本级 | F57: 52.9 | G57: 40.84 | I57: 12.06 | J57: 12.06 | K57: 98 | M57: 景观办 | P57: =VLOOKUP(B57,粘贴!B:L,11,0) -> 
A58: 51 | B58: 特许经营项目咨询服务经费 | C58: 石家庄市城市管理综合行政执法局本级 | F58: 30 | G58: 17.82 | I58: 12.18 | J58: 12.18 | K58: 96 | M58: 供水科 | P58: =VLOOKUP(B58,粘贴!B:L,11,0) -> 0 | Q58: 12.18
A59: 52 | B59: 户外广告拍卖方案编制经费 | C59: 石家庄市城市管理综合行政执法局本级 | F59: 30 | G59: 14.5 | I59: 15.5 | J59: 15.5 | K59: 95 | M59: 市容科 | P59: =VLOOKUP(B59,粘贴!B:L,11,0) -> 
A60: 53 | B60: 办公设备购置 | C60: 石家庄市城市管理综合行政执法局本级 | F60: 82 | G60: 65.62 | I60: 16.38 | J60: 16.38 | K60: 98 | M60: 办公室 | P60: =VLOOKUP(B60,粘贴!B:L,11,0) -> 0 | Q60: 16.38
A61: 54 | B61: 海绵城市方案编制及海绵办工作经费 | C61: 石家庄市城市管理综合行政执法局本级 | F61: 34.02 | G61: 16.19 | I61: 17.83 | J61: 17.83 | K61: 94 | M61: 海绵办 | P61: =VLOOKUP(B61,粘贴!B:L,11,0) -> 
A62: 55 | B62: 给水、污水再生利用工程两项规划编制经费 | C62: 石家庄市城市管理综合行政执法局本级 | F62: 208 | G62: 186.54 | I62: 21.46 | J62: 21.46 | K62: 99 | M62: 供水科 | P62: =VLOOKUP(B62,粘贴!B:L,11,0) -> 0 | Q62: 21.46
A63: 56 | B63: 环卫工人意外伤害救助金 | C63: 石家庄市城市管理综合行政执法局本级 | F63: 43.81 | G63: 10.38 | I63: 33.43 | J63: 33.43 | K63: 92.4 | M63: 环卫监督科 | P63: 0 | Q63: 33.43
A64: 57 | B64: 城市宣传费 | C64: 石家庄市城市管理综合行政执法局本级 | F64: 80 | G64: 39.9 | I64: 40.1 | J64: 40.1 | K64: 95 | M64: 宣传科 | P64: =VLOOKUP(B64,粘贴!B:L,11,0) -> 
A65: 58 | B65: 建设南大街35号院前楼修缮项目资金 | C65: 石家庄市城市管理综合行政执法局本级 | F65: 80 | G65: 38.25 | I65: 41.75 | J65: 41.75 | K65: 94.8 | M65: 办公室 | P65: 0 | Q65: 41.75
A66: 59 | B66: 城市管理运行经费 | C66: 石家庄市城市管理综合行政执法局本级 | F66: 50.87 | G66: 0 | I66: =D66+E66+F66-G66-H66 -> 50.87 | J66: 50.87 | K66: 68 | L66: 完成一般 | M66: 财务科 | P66: =VLOOKUP(B66,粘贴!B:L,11,0) -> 
A67: 60 | B67: 业务咨询委托费 | C67: 石家庄市城市管理综合行政执法局本级 | F67: 138.68 | G67: 62.31 | I67: =D67+E67+F67-G67 -> 76.37 | J67: 76.37 | K67: 94.5 | M67: 财务科 | P67: =VLOOKUP(B67,粘贴!B:L,11,0) -> 0 | Q67: 76.37
A68: 61 | B68: 正太广场、解放广场及周边区域管护资金 | C68: 石家庄市城市管理综合行政执法局本级 | F68: 264.33 | G68: 139.52 | I68: 124.81 | J68: 124.81 | K68: 96 | M68: 正太广场 | P68: =VLOOKUP(B68,粘贴!B:L,11,0) -> 0 | Q68: 124.81
A69: 62 | B69: 中华大街景观提升工程 | C69: 石家庄市城市管理综合行政执法局本级 | F69: 151 | G69: 0 | I69: =D69+E69+F69-G69-H69 -> 151 | J69: 151 | K69: 68 | L69: 完成一般 | M69: 景观办 | P69: =VLOOKUP(B69,粘贴!B:L,11,0) -> 
A70: 63 | B70: 2024年生活垃圾分类运行费用 | C70: 石家庄市城市管理综合行政执法局本级 | F70: 180 | G70: 35.88 | I70: 144.12 | J70: 144.12 | K70: 70 | M70: 垃分办 | P70: =VLOOKUP(B70,粘贴!B:L,11,0) -> 
A71: 64 | B71: 垃圾监测整治经费 | C71: 石家庄市城市管理综合行政执法局本级 | F71: 450 | G71: 183.52 | I71: 266.48 | J71: 266.48 | K71: 94.1 | M71: 环卫监督科 | P71: =VLOOKUP(B71,粘贴!B:L,11,0) -> 0 | Q71: 266.48
A72: 65 | B72: 公益广告设置经费 | C72: 石家庄市城市管理综合行政执法局本级 | F72: 300 | G72: 0 | I72: 300 | J72: 300 | K72: 68 | L72: 完成一般 | M72: 市容科 | P72: =VLOOKUP(B72,粘贴!B:L,11,0) -> 0 | Q72: 300
A73: 66 | B73: 城市地下市政基础设施普查工作经费 | C73: 石家庄市城市管理综合行政执法局本级 | F73: 600 | G73: 0 | I73: 600 | J73: 600 | K73: 68 | L73: 完成一般 | M73: 市政科 | P73: =VLOOKUP(B73,粘贴!B:L,11,0) -> 0 | Q73: 600
A74: 67 | B74: 城管局机关2023年及以前年度城建项目资金 | C74: 石家庄市城市管理综合行政执法局本级 | F74: 2391 | G74: 1294.2 | I74: =D74+E74+F74-G74 -> 1096.8 | J74: 1096.8 | K74: 95.4 | M74: 景观科 | P74: =VLOOKUP(B74,粘贴!B:L,11,0) -> 1096.8 | Q74: 0
A75: 68 | B75: 平安大街提升工程 | C75: 石家庄市城市管理综合行政执法局本级 | F75: 3300 | G75: 930 | I75: =D75+E75+F75-G75 -> 2370 | J75: 2370 | K75: 93 | M75: 景观科 | P75: =VLOOKUP(B75,粘贴!B:L,11,0) -> 
D76: =SUBTOTAL(9,D8:D75) -> 275432.3 | E76: 8815.22 | F76: 162310.84 | G76: 281750.7 | P76: =VLOOKUP(B76,粘贴!B:L,11,0) ->  | Q76: =G76/P76 -> 
A77: 1 | B77: 党组织活动经费 | C77: 石家庄市市容环卫服务中心 | F77: 0.76 | G77: 0.75 | I77: 0.01 | J77: 0.01 | K77: 99.87 | P77: =VLOOKUP(B77,粘贴!B:L,11,0) -> 0
A78: 2 | B78: 办公设备购置 | C78: 石家庄市市容环卫服务中心 | F78: 1.59 | G78: 1.59 | I78: 0 | J78: 0 | K78: 100 | P78: =VLOOKUP(B78,粘贴!B:L,11,0) -> 0
A79: 3 | B79: 物业管理费 | C79: 石家庄市市容环卫服务中心 | F79: 11.98 | G79: 11.98 | I79: 0 | J79: 0 | K79: 100 | P79: =VLOOKUP(B79,粘贴!B:L,11,0) -> 0
A80: 4 | B80: 冬季融雪及移动公厕运行经费 | C80: 石家庄市市容环卫服务中心 | F80: 57 | G80: 57 | I80: 0 | J80: 0 | K80: 100 | P80: =VLOOKUP(B80,粘贴!B:L,11,0) -> 0
A81: 5 | B81: 事业单位更新电脑设备经费 | C81: 石家庄市市容环卫服务中心 | F81: 1.33 | G81: 1.33 | I81: 0 | J81: 0 | K81: 100 | P81: =VLOOKUP(B81,粘贴!B:L,11,0) -> 
F82: =SUM(F77:F81) -> 72.66 | G82: =SUM(G77:G81) -> 72.65 | P82: =VLOOKUP(B82,粘贴!B:L,11,0) -> 
A83: 1 | B83: 党组织活动经费 | C83: 石家庄市环境卫生事务中心 | F83: 2.27 | G83: 2.27 | I83: 0 | J83: 0 | K83: 100 | P83: =VLOOKUP(B83,粘贴!B:L,11,0) -> 0
A84: 2 | B84: 办公设备购置 | C84: 石家庄市环境卫生事务中心 | F84: 7.75 | G84: 7.72 | I84: 0.03 | J84: 0.03 | K84: 99.96 | P84: =VLOOKUP(B84,粘贴!B:L,11,0) -> 0
A85: 3 | B85: 信息化项目运行维护费 | C85: 石家庄市环境卫生事务中心 | F85: 8.88 | G85: 8.88 | I85: 0 | J85: 0 | K85: 100 | P85: =VLOOKUP(B85,粘贴!B:L,11,0) -> 
A86: 4 | B86: 代收生活垃圾处理费手续费经费 | C86: 石家庄市环境卫生事务中心 | F86: 490 | G86: 490 | I86: 0 | J86: 0 | K86: 99.64 | P86: =VLOOKUP(B86,粘贴!B:L,11,0) -> 
A87: 5 | B87: 生活垃圾处理补助资金 | C87: 石家庄市环境卫生事务中心 | F87: 13700 | G87: 13700 | I87: 0 | J87: 0 | K87: 99.75 | O87: 重点自评 | P87: =VLOOKUP(B87,粘贴!B:L,11,0) -> 
A88: 6 | B88: 环境卫生绩效考核奖励资金 | C88: 石家庄市环境卫生事务中心 | F88: 1200 | G88: 1200 | I88: 0 | J88: 0 | K88: 100 | O88: 重点自评 | P88: =VLOOKUP(B88,粘贴!B:L,11,0) -> 0
A89: 7 | B89: 环境卫生事务专项业务经费 | C89: 石家庄市环境卫生事务中心 | F89: 54.97 | G89: 54.97 | I89: 0 | J89: 0 | K89: 100 | P89: =VLOOKUP(B89,粘贴!B:L,11,0) -> 0
A90: 8 | B90: 环卫维护资金 | C90: 石家庄市环境卫生事务中心 | F90: 551.94 | G90: 547.74 | I90: 4.2 | J90: 4.2 | K90: 99.92 | P90: =VLOOKUP(B90,粘贴!B:L,11,0) -> 0
A91: 9 | B91: 物业管理费 | C91: 石家庄市环境卫生事务中心 | F91: 20 | G91: 20 | I91: 0 | J91: 0 | K91: 100 | P91: =VLOOKUP(B91,粘贴!B:L,11,0) -> 0
A92: 10 | B92: 加固改造办公楼资金 | C92: 石家庄市环境卫生事务中心 | F92: 300 | G92: 300 | I92: 0 | J92: 0 | K92: 100 | P92: =VLOOKUP(B92,粘贴!B:L,11,0) -> 0
A93: 11 | B93: 事业单位更新电脑设备经费 | C93: 石家庄市环境卫生事务中心 | F93: 7.04 | G93: 7.04 | I93: 0 | J93: 0 | K93: 100 | P93: =VLOOKUP(B93,粘贴!B:L,11,0) -> 
A94: 12 | B94: 融雪剂采购资金 | C94: 石家庄市环境卫生事务中心 | F94: 249.84 | G94: 249.84 | I94: 0 | J94: 0 | K94: 100 | P94: =VLOOKUP(B94,粘贴!B:L,11,0) -> 
A95: 13 | B95: 支援涿州清运垃圾租用车辆等费用 | C95: 石家庄市环境卫生事务中心 | F95: 35.02 | G95: 35.02 | I95: 0 | J95: 0 | K95: 100 | P95: =VLOOKUP(B95,粘贴!B:L,11,0) -> 
A96: 14 | B96: 劳动聘用人员经费 | C96: 石家庄市环境卫生事务中心 | F96: 325 | G96: 325 | I96: 0 | J96: 0 | K96: 100 | P96: =VLOOKUP(B96,粘贴!B:L,11,0) -> 0
A97: 15 | B97: 2024年劳动聘用人员经费 | C97: 石家庄市环境卫生事务中心 | F97: 23 | G97: 22.48 | I97: 0.52 | J97: 0.52 | K97: 99.77 | P97: =VLOOKUP(B97,粘贴!B:L,11,0) -> 
F98: =SUM(F83:F97) -> 16975.71 | G98: 16970.96 | H98: 0 | I98: 4.75 | J98: 4.75 | K98: 1499.04 | P98: =VLOOKUP(B98,粘贴!B:L,11,0) -> 
A99: 1 | B99: 办公设备购置 | C99: 石家庄市市容管理考评中心 | F99: 9.84 | G99: 9.84 | I99: 0 | J99: 0 | K99: 100 | L99: 完成较好 | P99: =VLOOKUP(B99,粘贴!B:L,11,0) -> 0
A100: 2 | B100: 党组织活动经费 | C100: 石家庄市市容管理考评中心 | F100: 2.19 | G100: 2.18 | I100: 0.01 | J100: 0.01 | K100: 99.96 | L100: 完成较好 | P100: =VLOOKUP(B100,粘贴!B:L,11,0) -> 0
A101: 3 | B101: 工作场地租赁费 | C101: 石家庄市市容管理考评中心 | F101: 207.37 | G101: 207.37 | I101: 0 | J101: 0 | K101: 100 | L101: 完成较好 | P101: =VLOOKUP(B101,粘贴!B:L,11,0) -> 0
A102: 4 | B102: 数字化城市管理运行经费 | C102: 石家庄市市容管理考评中心 | F102: 1114.11 | G102: 1109.38 | I102: 4.73 | J102: 4.73 | K102: 99.96 | L102: 完成较好 | O102: 重点自评 | P102: =VLOOKUP(B102,粘贴!B:L,11,0) -> 0
A103: 5 | B103: 劳动聘用人员经费 | C103: 石家庄市市容管理考评中心 | F103: 1755.9 | G103: 1755.9 | I103: 0 | J103: 0 | K103: 99.64 | L103: 完成较好 | O103: 重点自评 | P103: =VLOOKUP(B103,粘贴!B:L,11,0) -> 0
A104: 6 | B104: 2024年劳动聘用人员经费 | C104: 石家庄市市容管理考评中心 | F104: 168.8 | G104: 147.51 | I104: 21.29 | J104: 21.29 | K104: 98.62 | L104: 完成较好 | P104: =VLOOKUP(B104,粘贴!B:L,11,0) -> 
F105: =SUM(F99:F104) -> 3258.21 | G105: 3232.18 | H105: 0 | I105: 26.03 | J105: 26.03 | K105: 598.18 | P105: =VLOOKUP(B105,粘贴!B:L,11,0) -> 
A106: 1 | B106: 党组织活动经费 | C106: 石家庄市道桥设施管护中心 | F106: 3.86 | G106: 3.86 | I106: 0 | J106: 0 | K106: 100 | L106: 完成较好 | P106: =VLOOKUP(B106,粘贴!B:L,11,0) -> 0
A107: 2 | B107: 办公设备购置资金 | C107: 石家庄市道桥设施管护中心 | F107: 4 | G107: 4 | I107: 0 | J107: 0 | K107: 100 | L107: 完成较好 | P107: =VLOOKUP(B107,粘贴!B:L,11,0) -> 
A108: 3 | B108: 信息化项目运行维护费 | C108: 石家庄市道桥设施管护中心 | F108: 6 | G108: 6 | I108: 0 | J108: 0 | K108: 100 | L108: 完成较好 | P108: =VLOOKUP(B108,粘贴!B:L,11,0) -> 
A109: 4 | B109: 公务用车租赁费 | C109: 石家庄市道桥设施管护中心 | F109: 4.8 | G109: 4.8 | K109: 100 | L109: 完成较好 | P109: =VLOOKUP(B109,粘贴!B:L,11,0) -> 0
A110: 5 | B110: 道桥管护中心桥涵所办公区及桥梁检测站加固维修经费 | C110: 石家庄市道桥设施管护中心 | F110: 21.16 | G110: 17.13 | I110: 4.03 | J110: 0 | K110: 98.1 | L110: 完成较好 | P110: =VLOOKUP(B110,粘贴!B:L,11,0) -> 
A111: 6 | B111: 道桥设施管护中心办公楼加固改造及恢复工程经费 | C111: 石家庄市道桥设施管护中心 | F111: 266 | G111: 208.45 | I111: 57.55 | J111: 0 | K111: 97.8 | L111: 完成较好 | P111: =VLOOKUP(B111,粘贴!B:L,11,0) -> 0
A112: 7 | B112: 公务用车购置经费 | C112: 石家庄市道桥设施管护中心 | F112: 7.58 | G112: 7.58 | I112: 0 | J112: 0 | K112: 100 | L112: 完成较好 | P112: =VLOOKUP(B112,粘贴!B:L,11,0) -> 0
A113: 8 | B113: 道路灾害预警雷达系统尾款 | C113: 石家庄市道桥设施管护中心 | F113: 54.35 | G113: 54.35 | I113: 0 | J113: 0 | K113: 100 | L113: 完成较好 | P113: =VLOOKUP(B113,粘贴!B:L,11,0) -> 
A114: 9 | B114: 事业单位更新电脑设备经费 | C114: 石家庄市道桥设施管护中心 | F114: 29.64 | G114: 29.64 | I114: 0 | J114: 0 | K114: 100 | L114: 完成较好 | P114: =VLOOKUP(B114,粘贴!B:L,11,0) -> 
A115: 10 | B115: 三环路积水点改造工程 | C115: 石家庄市道桥设施管护中心 | D115: 5050 | G115: 2898.94 | I115: 2151.06 | J115: 0 | K115: 92 | L115: 完成较好 | P115: =VLOOKUP(B115,粘贴!B:L,11,0) -> 2151.06
A116: 11 | B116: 桥梁检测仪器采购资金 | C116: 石家庄市道桥设施管护中心 | F116: 26.67 | G116: 0 | I116: 26.67 | J116: 0 | K116: 0 | L116: 完成一般 | P116: =VLOOKUP(B116,粘贴!B:L,11,0) -> 
A117: 12 | B117: 桥梁巡检升降车采购资金 | C117: 石家庄市道桥设施管护中心 | F117: 120 | G117: 111.44 | I117: 8.56 | J117: 0 | K117: 99.29 | L117: 完成较好 | P117: =VLOOKUP(B117,粘贴!B:L,11,0) -> 
A118: 13 | B118: 掘路修复费 | C118: 石家庄市道桥设施管护中心 | F118: 1483.5 | G118: 1479 | I118: 4.5 | J118: 4.5 | K118: 99.97 | L118: 完成较好 | O118: 重点自评 | P118: =VLOOKUP(B118,粘贴!B:L,11,0) -> 0
A119: 14 | B119: 城市道路桥梁设施维护费 | C119: 石家庄市道桥设施管护中心 | F119: 9427 | G119: 9426.11 | I119: 0.89 | J119: 0.89 | K119: 100 | L119: 完成较好 | O119: 重点自评 | P119: =VLOOKUP(B119,粘贴!B:L,11,0) -> 0
A120: 15 | B120: 道桥中心2023年及以前年度城建项目资金 | C120: 石家庄市道桥设施管护中心 | F120: 100 | G120: 100 | I120: 0 | J120: 0 | K120: 100 | L120: 完成较好 | P120: =VLOOKUP(B120,粘贴!B:L,11,0) -> 
D121: =SUM(D106:D120) -> 5050 | E121: 0 | F121: 11554.56 | G121: 14351.3 | H121: 0 | I121: 2253.26 | J121: 5.39 | K121: 1387.16 | L121: 0 | P121: =VLOOKUP(B121,粘贴!B:L,11,0) ->  | Q121: =F121+D121 -> 16604.56 | R121: =G121/Q121 -> 0.8642987228
A122: 1 | B122: 党组织活动经费 | C122: 石家庄市城市照明管护中心 | F122: 1.69 | G122: 1.69 | I122: 0 | J122: 0 | K122: 100 | P122: =VLOOKUP(B122,粘贴!B:L,11,0) -> 0
A123: 2 | B123: 办公设备购置资金 | C123: 石家庄市城市照明管护中心 | F123: 1.29 | G123: 1.29 | I123: 0 | J123: 0 | K123: 100 | P123: 0
A124: 3 | B124: 公务用车租赁费 | C124: 石家庄市城市照明管护中心 | F124: 9.36 | G124: 9.36 | I124: 0 | J124: 0 | K124: 100 | P124: =VLOOKUP(B124,粘贴!B:L,11,0) -> 0
A125: 4 | B125: 事业单位更新电脑设备经费 | C125: 石家庄市城市照明管护中心 | F125: 7.35 | G125: 7.35 | I125: 0 | J125: 0 | K125: 100 | P125: 0
A126: 5 | B126: 照明设施维护经费 | C126: 石家庄市城市照明管护中心 | F126: 7225 | G126: 7225 | I126: 0 | J126: 0 | K126: 100 | O126: 重点自评 | P126: =VLOOKUP(B126,粘贴!B:L,11,0) -> 0
A127: 6 | B127: 照明中心2023年及以前年度城建项目资金 | C127: 石家庄市城市照明管护中心 | F127: 1805 | G127: 1805 | I127: 0 | J127: 0 | K127: 100 | P127: 0
A128: 7 | B128: 街道照明设施提升工程 | C128: 石家庄市城市照明管护中心 | F128: 350 | G128: 337.55 | I128: =F128-G128 -> 12.45 | J128: =I128 -> 12.45 | K128: 99.6 | P128: 0
A129: 8 | B129: 公益广告设置经费 | C129: 石家庄市城市照明管护中心 | F129: 296 | G129: 296 | I129: 0 | J129: 0 | K129: 100 | P129: =VLOOKUP(B129,粘贴!B:L,11,0) -> 0
F130: =SUM(F122:F129) -> 9695.69 | G130: 9683.24 | H130: 0 | I130: 12.45 | J130: 12.45 | K130: 799.6 | P130: =VLOOKUP(B130,粘贴!B:L,11,0) -> 
A131: 1 | B131: 党组织活动经费 | C131: 石家庄市危险废弃物处置场 | F131: 0.31 | G131: 0.31 | I131: 0 | J131: 0 | K131: 100 | L131: 完成较好 | P131: =VLOOKUP(B131,粘贴!B:L,11,0) -> 0
A132: 2 | B132: 办公设备购置 | C132: 石家庄市危险废弃物处置场 | F132: 0.5 | G132: 0.5 | I132: 0 | J132: 0 | K132: 100 | L132: 完成较好 | P132: =VLOOKUP(B132,粘贴!B:L,11,0) -> 0
A133: 3 | B133: 废旧电池处置运行费 | C133: 石家庄市危险废弃物处置场 | F133: 66 | G133: 66 | I133: 0 | J133: 0 | K133: 100 | L133: 完成较好 | P133: =VLOOKUP(B133,粘贴!B:L,11,0) -> 0
F134: =SUM(F131:F133) -> 66.81 | G134: 66.81 | H134: 0 | I134: 0 | J134: 0 | K134: 300 | P134: =VLOOKUP(B134,粘贴!B:L,11,0) -> 
A135: 1 | B135: 党组织活动经费 | C135: 石家庄市生活固体废弃物处置服务中心 | F135: 0.63 | G135: 0.63 | I135: 0 | J135: 0 | K135: 100 | P135: =VLOOKUP(B135,粘贴!B:L,11,0) -> 0
A136: 2 | B136: 公务用车租赁费 | C136: 石家庄市生活固体废弃物处置服务中心 | F136: 17.08 | G136: 17.08 | I136: 0 | J136: 0 | K136: 100 | P136: =VLOOKUP(B136,粘贴!B:L,11,0) -> 0
A137: 3 | B137: 办公设备购置 | C137: 石家庄市生活固体废弃物处置服务中心 | F137: 1 | G137: 1 | I137: 0 | J137: 0 | K137: 100 | P137: =VLOOKUP(B137,粘贴!B:L,11,0) -> 0
F138: =SUM(F135:F137) -> 18.71 | G138: 18.71 | H138: 0 | I138: 0 | J138: 0 | K138: 300 | P138: =VLOOKUP(B138,粘贴!B:L,11,0) -> 
A139: 1 | B139: 党组织活动经费 | C139: 石家庄市卫生垃圾太行填埋场 | F139: 1.07 | G139: 1.02 | I139: =F139-G139 -> 0.05 | J139: =I139 -> 0.05 | K139: 99.53 | L139: 完成较好 | P139: =VLOOKUP(B139,粘贴!B:L,11,0) -> 0
A140: 2 | B140: 办公设备购置 | C140: 石家庄市卫生垃圾太行填埋场 | F140: 0.14 | G140: 0.14 | I140: 0 | J140: 0 | K140: 100 | L140: 完成较好 | P140: =VLOOKUP(B140,粘贴!B:L,11,0) -> 0
A141: 3 | B141: 生活垃圾卫生填埋运行费 | C141: 石家庄市卫生垃圾太行填埋场 | F141: 295.08 | G141: 295.08 | I141: 0 | J141: 0 | K141: 99.3 | P141: =VLOOKUP(B141,粘贴!B:L,11,0) -> 0
A142: 4 | B142: 生活垃圾卫生填埋场运行经费 | C142: 石家庄市卫生垃圾太行填埋场 | F142: 552.4 | G142: 493.41 | I142: 58.99 | J142: 58.99 | K142: 99.3 | L142: 完成较好 | P142: =VLOOKUP(B142,粘贴!B:L,11,0) -> 
A143: 5 | B143: 事业单位更新电脑设备经费 | C143: 石家庄市卫生垃圾太行填埋场 | F143: 1.32 | G143: 1.32 | I143: 0 | K143: 100 | L143: 完成较好 | P143: =VLOOKUP(B143,粘贴!B:L,11,0) -> 
F144: =SUM(F139:F143) -> 850.01 | G144: =SUM(G139:G143) -> 790.97 | P144: =VLOOKUP(B144,粘贴!B:L,11,0) -> 
A145: 1 | B145: 总退水渠维护费 | C145: 石家庄市总退水渠管理所 | F145: 162 | G145: 161.78 | I145: =F145-G145 -> 0.22 | J145: =I145 -> 0.22 | K145: 100 | P145: =VLOOKUP(B145,粘贴!B:L,11,0) -> 0
F146: =SUM(F145:F145) -> 162 | G146: 161.78 | H146: 0 | I146: 0.22 | J146: 0.22 | K146: 100 | P146: =VLOOKUP(B146,粘贴!B:L,11,0) -> 
A147: 1 | B147: 党组织活动经费 | C147: 石家庄市二环路管护中心 | F147: 2 | G147: 2 | K147: 100 | P147: =VLOOKUP(B147,粘贴!B:L,11,0) -> 0
A148: 2 | B148: 办公设备购置 | C148: 石家庄市二环路管护中心 | F148: 5.27 | G148: 5.27 | K148: 100 | P148: =VLOOKUP(B148,粘贴!B:L,11,0) -> 0
A149: 3 | B149: 公务用车租赁费 | C149: 石家庄市二环路管护中心 | F149: 4.38 | G149: 4.38 | K149: 100 | P149: =VLOOKUP(B149,粘贴!B:L,11,0) -> 0
A150: 4 | B150: 二环路设施维护费 | C150: 石家庄市二环路管护中心 | F150: 7405.13 | G150: 7405.13 | K150: 100 | O150: 重点自评 | P150: =VLOOKUP(B150,粘贴!B:L,11,0) -> 
A151: 5 | B151: 掘路修复费 | C151: 石家庄市二环路管护中心 | F151: 46.68 | G151: 46.68 | K151: 100 | P151: =VLOOKUP(B151,粘贴!B:L,11,0) -> 0
A152: 6 | B152: 二环中心2023年及以前年度城建项目资金 | C152: 石家庄市二环路管护中心 | F152: 1046 | G152: 1046 | K152: 100 | P152: =VLOOKUP(B152,粘贴!B:L,11,0) -> 
A153: 7 | B153: 二环路铁路地道桥美化亮化工程 | C153: 石家庄市二环路管护中心 | F153: 110 | G153: 110 | K153: 100 | P153: =VLOOKUP(B153,粘贴!B:L,11,0) -> 
A154: 8 | B154: 北二环路慢行系统改造 | C154: 石家庄市二环路管护中心 | F154: 500 | G154: 386.86 | I154: 113.14 | J154: 113.14 | K154: 97.7 | P154: =VLOOKUP(B154,粘贴!B:L,11,0) -> 113.14
A155: 9 | B155: 事业单位更新电脑设备经费 | C155: 石家庄市二环路管护中心 | F155: 15.34 | G155: 15.34 | K155: 100 | P155: =VLOOKUP(B155,粘贴!B:L,11,0) -> 
A156: 10 | B156: 环卫作业车辆采购项目 | C156: 石家庄市二环路管护中心 | F156: 3832 | G156: 3828 | I156: 4 | J156: 4 | K156: 99.99 | P156: =VLOOKUP(B156,粘贴!B:L,11,0) -> 
F157: =SUM(F147:F156) -> 12966.8015 | G157: 12849.6615 | H157: 0 | I157: 117.14 | J157: 117.14 | K157: 997.69 | L157: 0 | P157: =VLOOKUP(B157,粘贴!B:L,11,0) -> 
A158: 1 | B158: 执法业务费 | C158: 石家庄市城市管理综合保障中心 | F158: 10.53 | G158: 10.53 | I158: 0 | J158: 0 | K158: 100 | L158: 同意 | P158: =VLOOKUP(B158,粘贴!B:L,11,0) -> 0
A159: 2 | B159: 工作场地租赁费 | C159: 石家庄市城市管理综合保障中心 | F159: 332.77 | G159: 332.77 | K159: 100 | L159: 同意 | P159: =VLOOKUP(B159,粘贴!B:L,11,0) -> 0
A160: 3 | B160: 劳动聘用人员经费 | C160: 石家庄市城市管理综合保障中心 | F160: 529.6 | G160: 529.6 | I160: 0 | J160: 0 | K160: 98 | L160: 同意 | P160: =VLOOKUP(B160,粘贴!B:L,11,0) -> 0
A161: 4 | B161: 物业管理费 | C161: 石家庄市城市管理综合保障中心 | F161: 30 | G161: 29.82 | I161: 0.18 | J161: 0.18 | K161: 99.94 | L161: 同意 | P161: =VLOOKUP(B161,粘贴!B:L,11,0) -> 0
A162: 5 | B162: 党组织活动经费 | C162: 石家庄市城市管理综合保障中心 | F162: 10.97 | G162: 10.66 | I162: 0.31 | J162: 0.31 | K162: 99.72 | L162: 同意 | P162: =VLOOKUP(B162,粘贴!B:L,11,0) -> 0
A163: 6 | B163: 办公设备购置 | C163: 石家庄市城市管理综合保障中心 | F163: 40 | G163: 39.84 | I163: 0.16 | J163: 0.16 | K163: 99.96 | L163: 同意 | P163: =VLOOKUP(B163,粘贴!B:L,11,0) -> 0
F164: =SUM(F158:F163) -> 953.87 | G164: =SUM(G158:G163) -> 953.22 | P164: =VLOOKUP(B164,粘贴!B:L,11,0) -> 
A165: 1 | B165: 文件资料印刷费 | C165: 石家庄市燃气中心 | F165: 1.6 | G165: 1.6 | I165: 0 | J165: 0 | K165: 100 | L165: 完成较好 | P165: =VLOOKUP(B165,粘贴!B:L,11,0) -> 
A166: 2 | B166: 第三方燃气风险辨识与安全大讲堂经费 | C166: 石家庄市燃气中心 | F166: 55.13 | G166: 53.89 | I166: =F166-G166 -> 1.24 | J166: =I166 -> 1.24 | K166: 99.78 | L166: 完成较好 | P166: =VLOOKUP(B166,粘贴!B:L,11,0) -> 
A167: 3 | B167: 劳动聘用人员经费 | C167: 石家庄市燃气中心 | F167: 45.7 | G167: 45.7 | I167: 0 | J167: 0 | K167: 100 | L167: 完成较好 | P167: =VLOOKUP(B167,粘贴!B:L,11,0) -> 0
A168: 4 | B168: 2024年劳动聘用人员经费 | C168: 石家庄市燃气中心 | F168: 9.7 | G168: 9.7 | I168: 0 | J168: 0 | K168: 100 | L168: 完成较好 | P168: =VLOOKUP(B168,粘贴!B:L,11,0) -> 
A169: 5 | B169: 专项邮电费 | C169: 石家庄市燃气中心 | F169: 1.8 | G169: 1.8 | I169: 0 | J169: 0 | K169: 100 | L169: 完成较好 | P169: =VLOOKUP(B169,粘贴!B:L,11,0) -> 0
A170: 6 | B170: 事业单位更新电脑设备经费 | C170: 石家庄市燃气中心 | F170: 1.48 | G170: 1.48 | I170: 0 | J170: 0 | K170: 100 | L170: 完成较好 | P170: =VLOOKUP(B170,粘贴!B:L,11,0) -> 
A171: 7 | B171: 党组织活动经费 | C171: 石家庄市燃气中心 | F171: 0.39 | G171: 0.39 | I171: 0 | J171: 0 | K171: 100 | L171: 完成较好 | P171: =VLOOKUP(B171,粘贴!B:L,11,0) -> 0
A172: 8 | B172: 业务咨询委托费 | C172: 石家庄市燃气中心 | F172: 30 | G172: 29.89 | I172: 0.11 | J172: 0.11 | K172: 99.96 | L172: 完成较好 | P172: =VLOOKUP(B172,粘贴!B:L,11,0) -> 0
F173: =SUM(F165:F172) -> 145.8 | G173: =SUM(G165:G172) -> 144.45 | O173: =G173/F173 -> 99.07% | P173: =VLOOKUP(B173,粘贴!B:L,11,0) -> 
A174: 1 | B174: 事业单位更新电脑设备经费 | C174: 石家庄市城市管理便民服务中心 | F174: 4.4 | G174: 4.4 | I174: 0 | J174: =I174 -> 0 | K174: 100 | L174: 无 | P174: 0
A175: 2 | B175: 办公设备购置 | C175: 石家庄市城市管理便民服务中心 | F175: 2.37 | G175: 2.37 | I175: =F175-G175 -> 0 | J175: 0 | K175: 100 | L175: 无 | P175: =VLOOKUP(B175,粘贴!B:L,11,0) -> 0
A176: 3 | B176: 城管热线运行维护费 | C176: 石家庄市城市管理便民服务中心 | F176: 32 | G176: 31.69 | I176: 0.31 | J176: 0.31 | K176: 98.9 | L176: 无 | P176: =VLOOKUP(B176,粘贴!B:L,11,0) -> 0
A177: 4 | B177: 文件资料印刷费 | C177: 石家庄市城市管理便民服务中心 | F177: 2.1 | G177: 2.07 | I177: 0.03 | J177: 0.03 | K177: 100 | L177: 无 | P177: 0
A178: 5 | B178: 党组织活动经费 | C178: 石家庄市城市管理便民服务中心 | F178: 0.28 | G178: 0.26 | I178: 0.02 | J178: 0.02 | K178: 97.3 | L178: 无 | P178: =VLOOKUP(B178,粘贴!B:L,11,0) -> 0
A179: 6 | B179: 业务培训费 | C179: 石家庄市城市管理便民服务中心 | F179: 18.7 | G179: 18.7 | I179: 0 | J179: 0 | K179: 100 | L179: 无 | P179: =VLOOKUP(B179,粘贴!B:L,11,0) -> 0
A180: 7 | B180: 劳动聘用人员经费 | C180: 石家庄市城市管理便民服务中心 | F180: 151.6 | G180: 151.6 | I180: 0 | J180: 0 | K180: 100 | L180: 无 | P180: =VLOOKUP(B180,粘贴!B:L,11,0) -> 0
F181: =SUM(F174:F180) -> 211.45 | G181: 211.09 | H181: 0 | I181: 0.36 | J181: 0.36 | K181: 696.2 | O181: =G181/F181 -> 99.83% | P181: =VLOOKUP(B181,粘贴!B:L,11,0) -> 
A182: 1 | B182: 党组织活动经费 | C182: 石家庄市供热事务中心 | F182: 0.85 | G182: 0.8 | I182: 0.05 | K182: 99.4 | L182: 无 | P182: =VLOOKUP(B182,粘贴!B:L,11,0) -> 0
A183: 2 | B183: 业务咨询委托费 | C183: 石家庄市供热事务中心 | F183: 33.64 | G183: 19.72 | I183: 13.92 | K183: 94 | L183: 无 | P183: =VLOOKUP(B183,粘贴!B:L,11,0) -> 0
A184: 3 | B184: 专项邮电费 | C184: 石家庄市供热事务中心 | F184: 6.2 | G184: 6.2 | I184: 0 | K184: 100 | L184: 无 | P184: =VLOOKUP(B184,粘贴!B:L,11,0) -> 0
A185: 4 | B185: 物业管理费 | C185: 石家庄市供热事务中心 | F185: 5.5 | G185: 4.74 | I185: 0.76 | K185: 98.6 | L185: 无 | P185: =VLOOKUP(B185,粘贴!B:L,11,0) -> 0
A186: 5 | B186: 劳动聘用人员经费 | C186: 石家庄市供热事务中心 | F186: 36.6 | G186: 36.6 | I186: 0 | K186: 100 | L186: 无 | P186: =VLOOKUP(B186,粘贴!B:L,11,0) -> 0
A187: 6 | B187: 2024年劳动聘用人员经费 | C187: 石家庄市供热事务中心 | F187: 7.9 | G187: 7.75 | I187: 0.15 | K187: 99.8 | L187: 无 | P187: =VLOOKUP(B187,粘贴!B:L,11,0) -> 
A188: 7 | B188: 市城市集中供热专项规划编制费 | C188: 石家庄市供热事务中心 | F188: 39.36 | G188: 39.36 | I188: 0 | K188: 100 | L188: 无 | P188: =VLOOKUP(B188,粘贴!B:L,11,0) -> 
A189: 8 | B189: 供热智慧管理平台扩容项目质保金 | C189: 石家庄市供热事务中心 | F189: 8.28 | G189: 8.28 | I189: 0 | K189: 100 | L189: 无 | P189: =VLOOKUP(B189,粘贴!B:L,11,0) -> 0
A190: 9 | B190: 原热一区域替代锅炉占地经费 | C190: 石家庄市供热事务中心 | F190: 43 | G190: 43 | I190: 0 | K190: 100 | L190: 无 | P190: =VLOOKUP(B190,粘贴!B:L,11,0) -> 
A191: 10 | B191: 主城区供热质量第三方监督服务费 | C191: 石家庄市供热事务中心 | F191: 100 | G191: 77.84 | I191: 22.16 | K191: 97.8 | L191: 无 | P191: =VLOOKUP(B191,粘贴!B:L,11,0) -> 
A192: 11 | B192: 供热补贴资金 | C192: 石家庄市供热事务中心 | F192: 43000 | G192: 43000 | I192: 0 | K192: 100 | L192: 无 | P192: =VLOOKUP(B192,粘贴!B:L,11,0) -> 
A193: 12 | B193: 2022-2023年采暖季石热九期燃机机组居民部分供热补贴资金 | C193: 石家庄市供热事务中心 | F193: 4523.45 | G193: 4523.45 | I193: 0 | K193: 100 | L193: 无 | P193: =VLOOKUP(B193,粘贴!B:L,11,0) -> 
A194: 13 | B194: 主城区安装居民室温采集系统经费 | C194: 石家庄市供热事务中心 | F194: 31.69 | G194: 31.69 | I194: 0 | K194: 100 | L194: 无 | P194: =VLOOKUP(B194,粘贴!B:L,11,0) -> 
F195: =SUM(F182:F194) -> 47836.47 | G195: =SUM(G182:G194) -> 47799.43 | O195: =G195/F195 -> 99.92% | P195: =VLOOKUP(B195,粘贴!B:L,11,0) -> 
A196: 1 | B196: 电梯运维费 | C196: 石家庄市排水管护中心 | F196: 1.4 | G196: 1.4 | I196: =F196-G196 -> 0 | J196: =I196 -> 0 | K196: 100 | P196: =VLOOKUP(B196,粘贴!B:L,11,0) -> 0
A197: 2 | B197: 办公设备购置 | C197: 石家庄市排水管护中心 | F197: 14.34 | G197: 14.34 | I197: 0 | J197: 0 | K197: 100 | P197: =VLOOKUP(B197,粘贴!B:L,11,0) -> 0
A198: 3 | B198: 事业单位更新电脑设备经费 | C198: 石家庄市排水管护中心 | F198: 15.14 | G198: 15.14 | I198: 0 | J198: 0 | K198: 100 | P198: =VLOOKUP(B198,粘贴!B:L,11,0) -> 
A199: 4 | B199: 党组织活动经费 | C199: 石家庄市排水管护中心 | F199: 7 | G199: 7 | I199: 0 | J199: 0 | K199: 100 | P199: =VLOOKUP(B199,粘贴!B:L,11,0) -> 0
A200: 5 | B200: 排水设施维护费 | C200: 石家庄市排水管护中心 | F200: 4922.16 | G200: 4922.16 | I200: 0 | J200: 0 | K200: 100 | O200: 重点自评 | P200: =VLOOKUP(B200,粘贴!B:L,11,0) -> 0
... 33 more rows

Sheet Sheet7 (hidden)
A1: 预算单位 | B1: 预算数 | C1: 调整预算数 | D1: 本级支出 | E1: 支出进度% | F1: 支出功能分类 | G1: 政府支出经济分类 | H1: 项目名称 | I1: 项目类别 | J1: 资金性质
A2: [565001]石家庄市城市管理综合行政执法局本级 | B2: 52.9 | C2: 52.9 | D2: 40.8365 | E2: 77.2 | F2: [2120104]城管执法 | G2: [50299]其他商品和服务支出 | H2: 市景观办工作经费 | I2: [3]特定目标类 | J2: [111]一般公共预算资金
A3: [565001]石家庄市城市管理综合行政执法局本级 | B3: 0.000106 | C3: 0 | D3: 0 | E3: 0 | F3: [2120104]城管执法 | G3: [50306]设备购置 | H3: 办公设备购置 | I3: [22]其他运转类 | J3: [111]一般公共预算资金
A4: [565001]石家庄市城市管理综合行政执法局本级 | B4: 81.999894 | C4: 81.999894 | D4: 65.6196 | E4: 80.02 | F4: [2120104]城管执法 | G4: [50306]设备购置 | H4: 办公设备购置 | I4: [22]其他运转类 | J4: [111]一般公共预算资金
A5: [565001]石家庄市城市管理综合行政执法局本级 | B5: 11 | C5: 11 | D5: 10.9926 | E5: 99.93 | F5: [2120104]城管执法 | G5: [50201]办公经费 | H5: 文件资料印刷费 | I5: [22]其他运转类 | J5: [111]一般公共预算资金
A6: [565001]石家庄市城市管理综合行政执法局本级 | B6: 9.17 | C6: 9.17 | D6: 9.16832 | E6: 99.98 | F6: [2120104]城管执法 | G6: [50299]其他商品和服务支出 | H6: 党组织活动经费 | I6: [22]其他运转类 | J6: [111]一般公共预算资金
A7: [565001]石家庄市城市管理综合行政执法局本级 | B7: 138.68 | C7: 138.68 | D7: 62.306 | E7: 44.93 | F7: [2120104]城管执法 | G7: [50205]委托业务费 | H7: 业务咨询委托费 | I7: [22]其他运转类 | J7: [111]一般公共预算资金
A8: [565001]石家庄市城市管理综合行政执法局本级 | B8: 30 | C8: 30 | D8: 29.9845 | E8: 99.95 | F8: [2120104]城管执法 | G8: [50209]维修（护）费 | H8: 专用设备维修费 | I8: [22]其他运转类 | J8: [111]一般公共预算资金
A9: [565001]石家庄市城市管理综合行政执法局本级 | B9: 40 | C9: 40 | D9: 37.3612 | E9: 93.4 | F9: [2120104]城管执法 | G9: [50203]培训费 | H9: 业务培训费 | I9: [22]其他运转类 | J9: [111]一般公共预算资金
A10: [565001]石家庄市城市管理综合行政执法局本级 | B10: 1.4 | C10: 1.4 | D10: 1.4 | E10: 100 | F10: [2120104]城管执法 | G10: [50209]维修（护）费 | H10: 电梯运维费 | I10: [22]其他运转类 | J10: [111]一般公共预算资金
A11: [565001]石家庄市城市管理综合行政执法局本级 | B11: 5.71 | C11: 5.70539 | D11: 5.70539 | E11: 100 | F11: [2120104]城管执法 | G11: [50205]委托业务费 | H11: 执法制式服装费尾款 | I11: [3]特定目标类 | J11: [111]一般公共预算资金
A12: [565001]石家庄市城市管理综合行政执法局本级 | B12: 61 | C12: 61 | D12: 61 | E12: 100 | F12: [2120104]城管执法 | G12: [50201]办公经费 | H12: 城市运营中心场地租用费 | I12: [3]特定目标类 | J12: [111]一般公共预算资金
A13: [565001]石家庄市城市管理综合行政执法局本级 | B13: 345 | C13: 345 | D13: 345 | E13: 100 | F13: [2121402]代征手续费 | G13: [50201]办公经费 | H13: 污水处理费代征手续费 | I13: [3]特定目标类 | J13: [121]政府性基金预算资金
A14: [565001]石家庄市城市管理综合行政执法局本级 | B14: 10 | C14: 10 | D14: 10 | E14: 100 | F14: [2120199]其他城乡社区管理事务支出 | G14: [50205]委托业务费 | H14: 供水水质监测经费 | I14: [3]特定目标类 | J14: [111]一般公共预算资金
A15: [565001]石家庄市城市管理综合行政执法局本级 | B15: 300 | C15: 300 | D15: 0 | E15: 0 | F15: [2121302]城市环境卫生 | G15: [50205]委托业务费 | H15: 公益广告设置经费 | I15: [3]特定目标类 | J15: [121]政府性基金预算资金
A16: [565001]石家庄市城市管理综合行政执法局本级 | B16: 50.87 | C16: 50.87 | D16: 0 | E16: 0 | F16: [2120104]城管执法 | G16: [50205]委托业务费 | H16: 城市管理运行经费 | I16: [3]特定目标类 | J16: [111]一般公共预算资金
A17: [565001]石家庄市城市管理综合行政执法局本级 | B17: 30 | C17: 30 | D17: 14.5 | E17: 48.33 | F17: [2120104]城管执法 | G17: [50205]委托业务费 | H17: 户外广告拍卖方案编制经费 | I17: [3]特定目标类 | J17: [111]一般公共预算资金
A18: [565001]石家庄市城市管理综合行政执法局本级 | B18: 45 | C18: 43.81117 | D18: 10.382545 | E18: 23.7 | F18: [2120104]城管执法 | G18: [50201]办公经费 | H18: 环卫工人意外伤害救助金 | I18: [3]特定目标类 | J18: [111]一般公共预算资金
A19: [565001]石家庄市城市管理综合行政执法局本级 | B19: 30 | C19: 30 | D19: 17.82 | E19: 59.4 | F19: [2120104]城管执法 | G19: [50205]委托业务费 | H19: 特许经营项目咨询服务经费 | I19: [3]特定目标类 | J19: [111]一般公共预算资金
A20: [565001]石家庄市城市管理综合行政执法局本级 | B20: 15 | C20: 15 | D20: 15 | E20: 100 | F20: [2120104]城管执法 | G20: [50205]委托业务费 | H20: 安全生产监督工作经费 | I20: [3]特定目标类 | J20: [111]一般公共预算资金
A21: [565001]石家庄市城市管理综合行政执法局本级 | B21: 80 | C21: 80 | D21: 38.253 | E21: 47.82 | F21: [2120104]城管执法 | G21: [50307]大型修缮 | H21: 建设南大街35号院前楼修缮项目资金 | I21: [3]特定目标类 | J21: [111]一般公共预算资金
A22: [565001]石家庄市城市管理综合行政执法局本级 | B22: 20 | C22: 20 | D22: 20 | E22: 100 | F22: [2121302]城市环境卫生 | G22: [50205]委托业务费 | H22: 生活垃圾分类运行资金 | I22: [3]特定目标类 | J22: [121]政府性基金预算资金
A23: [565001]石家庄市城市管理综合行政执法局本级 | B23: 27 | C23: 25.55025 | D23: 25.55025 | E23: 100 | F23: [2120102]一般行政管理事务 | G23: [50205]委托业务费 | H23: 物业管理费 | I23: [3]特定目标类 | J23: [111]一般公共预算资金
A24: [565001]石家庄市城市管理综合行政执法局本级 | B24: 10.3 | C24: 10.2 | D24: 10.2 | E24: 100 | F24: [2120104]城管执法 | G24: [50201]办公经费 | H24: 城区防汛汛期应急指挥车租赁经费 | I24: [3]特定目标类 | J24: [111]一般公共预算资金
A25: [565001]石家庄市城市管理综合行政执法局本级 | B25: 450 | C25: 450 | D25: 183.5172 | E25: 40.78 | F25: [2121302]城市环境卫生 | G25: [50205]委托业务费 | H25: 垃圾监测整治经费 | I25: [3]特定目标类 | J25: [121]政府性基金预算资金
A26: [565001]石家庄市城市管理综合行政执法局本级 | B26: 39.43 | C26: 39.43 | D26: 38.5668 | E26: 97.81 | F26: [2120104]城管执法 | G26: [50205]委托业务费 | H26: 城管全民动员大会及宣传活动经费 | I26: [3]特定目标类 | J26: [111]一般公共预算资金
A27: [565001]石家庄市城市管理综合行政执法局本级 | B27: 30 | C27: 30 | D27: 28.358 | E27: 94.53 | F27: [2120104]城管执法 | G27: [50205]委托业务费 | H27: 双代办第三方评估监督经费 | I27: [3]特定目标类 | J27: [111]一般公共预算资金
A28: [565001]石家庄市城市管理综合行政执法局本级 | B28: 94.77 | C28: 94.77 | D28: 94.77 | E28: 100 | F28: [2120104]城管执法 | G28: [50306]设备购置 | H28: DLP高清拼接屏采购项目尾款 | I28: [3]特定目标类 | J28: [111]一般公共预算资金
A29: [565001]石家庄市城市管理综合行政执法局本级 | B29: 90 | C29: 85.0984 | D29: 85.0984 | E29: 100 | F29: [2120104]城管执法 | G29: [50205]委托业务费 | H29: 国家节水型城市复查迎检工作经费 | I29: [3]特定目标类 | J29: [111]一般公共预算资金
A30: [565001]石家庄市城市管理综合行政执法局本级 | B30: 34.02 | C30: 34.02 | D30: 16.19246 | E30: 47.6 | F30: [2120104]城管执法 | G30: [50201]办公经费 | H30: 海绵城市方案编制及海绵办工作经费 | I30: [3]特定目标类 | J30: [111]一般公共预算资金
A31: [565001]石家庄市城市管理综合行政执法局本级 | B31: 165.98 | C31: 0 | D31: 0 | E31: 0 | F31: [2120104]城管执法 | G31: [50205]委托业务费 | H31: 海绵城市方案编制及海绵办工作经费 | I31: [3]特定目标类 | J31: [111]一般公共预算资金
A32: [565001]石家庄市城市管理综合行政执法局本级 | B32: 100 | C32: 100 | D32: 0 | E32: 0 | F32: [2121301]城市公共设施 | G32: [50205]委托业务费 | H32: 地下市政设施普查经费 | I32: [3]特定目标类 | J32: [121]政府性基金预算资金
A33: [565001]石家庄市城市管理综合行政执法局本级 | B33: 8000 | C33: 8000 | D33: 8000 | E33: 100 | F33: [2110302]水体 | G33: [50205]委托业务费 | H33: 污水污泥处理经费 | I33: [3]特定目标类 | J33: [111]一般公共预算资金
A34: [565001]石家庄市城市管理综合行政执法局本级 | B34: 18565 | C34: 18565 | D34: 18565 | E34: 100 | F34: [2110302]水体 | G34: [50701]费用补贴 | H34: 污水污泥处理经费 | I34: [3]特定目标类 | J34: [111]一般公共预算资金
A35: [565001]石家庄市城市管理综合行政执法局本级 | B35: 12635.5 | C35: 12635.5 | D35: 12633.82786 | E35: 99.99 | F35: [2121401]污水处理设施建设和运营 | G35: [50701]费用补贴 | H35: 污水污泥处理费 | I35: [3]特定目标类 | J35: [121]政府性基金预算资金
A36: [565001]石家庄市城市管理综合行政执法局本级 | B36: 100 | C36: 100 | D36: 99.8 | E36: 99.8 | F36: [2120104]城管执法 | G36: [50205]委托业务费 | H36: 生活垃圾分类工作经费 | I36: [3]特定目标类 | J36: [111]一般公共预算资金
A37: [565001]石家庄市城市管理综合行政执法局本级 | B37: 58.99 | C37: 58.99 | D37: 58.99 | E37: 100 | F37: [2120104]城管执法 | G37: [50201]办公经费 | H37: 生活垃圾分类运行经费 | I37: [3]特定目标类 | J37: [111]一般公共预算资金
A38: [565001]石家庄市城市管理综合行政执法局本级 | B38: 39 | C38: 39 | D38: 32.701 | E38: 83.85 | F38: [2120104]城管执法 | G38: [50201]办公经费 | H38: 普法工作经费 | I38: [3]特定目标类 | J38: [111]一般公共预算资金
A39: [565001]石家庄市城市管理综合行政执法局本级 | B39: 500 | C39: 500 | D39: 0 | E39: 0 | F39: [2120104]城管执法 | G39: [50205]委托业务费 | H39: 城市地下市政基础设施普查工作经费 | I39: [3]特定目标类 | J39: [111]一般公共预算资金
A40: [565001]石家庄市城市管理综合行政执法局本级 | B40: 208 | C40: 208 | D40: 186.54 | E40: 89.68 | F40: [2121399]其他城市基础设施配套费安排的支出 | G40: [50205]委托业务费 | H40: 给水、污水再生利用工程两项规划编制经费 | I40: [3]特定目标类 | J40: [121]政府性基金预算资金
A41: [565001]石家庄市城市管理综合行政执法局本级 | B41: 43.2 | C41: 33.022799 | D41: 33.022799 | E41: 100 | F41: [2120104]城管执法 | G41: [50201]办公经费 | H41: 绿色社区创建三年行动办公室工作经费 | I41: [3]特定目标类 | J41: [111]一般公共预算资金
A42: [565001]石家庄市城市管理综合行政执法局本级 | B42: 33.19 | C42: 33.19 | D42: 30.265188 | E42: 91.19 | F42: [2120104]城管执法 | G42: [50201]办公经费 | H42: 市双代办工作经费 | I42: [3]特定目标类 | J42: [111]一般公共预算资金
A43: [565001]石家庄市城市管理综合行政执法局本级 | B43: 45.69 | C43: 36.8013 | D43: 36.8013 | E43: 100 | F43: [2120104]城管执法 | G43: [50201]办公经费 | H43: 市渣土办工作经费 | I43: [3]特定目标类 | J43: [111]一般公共预算资金
A44: [565001]石家庄市城市管理综合行政执法局本级 | B44: 20 | C44: 20 | D44: 19.85 | E44: 99.25 | F44: [2120104]城管执法 | G44: [50205]委托业务费 | H44: 防汛经费 | I44: [3]特定目标类 | J44: [111]一般公共预算资金
A45: [565001]石家庄市城市管理综合行政执法局本级 | B45: 10 | C45: 9.975 | D45: 9.975 | E45: 100 | F45: [2120104]城管执法 | G45: [50204]专用材料购置费 | H45: 防汛经费 | I45: [3]特定目标类 | J45: [111]一般公共预算资金
A46: [565001]石家庄市城市管理综合行政执法局本级 | B46: 80 | C46: 80 | D46: 39.9 | E46: 49.88 | F46: [2120104]城管执法 | G46: [50205]委托业务费 | H46: 城市宣传费 | I46: [3]特定目标类 | J46: [111]一般公共预算资金
A47: [565001]石家庄市城市管理综合行政执法局本级 | B47: 0 | C47: 117.63 | D47: 0 | E47: 0 | F47: [2120399]其他城乡社区公共设施支出 | G47: [50302]基础设施建设 | H47: 仓丰东路雨水泵站新建工程省级补助资金 | I47: [3]特定目标类 | J47: [111]一般公共预算资金
A48: [565001]石家庄市城市管理综合行政执法局本级 | B48: 0 | C48: 718.9 | D48: 718.9 | E48: 100 | F48: [2120399]其他城乡社区公共设施支出 | G48: [50306]设备购置 | H48: 石家庄市移动排涝能力提升项目省级补助资金 | I48: [3]特定目标类 | J48: [111]一般公共预算资金
A49: [565001]石家庄市城市管理综合行政执法局本级 | B49: 0 | C49: 766.3 | D49: 0 | E49: 0 | F49: [2120399]其他城乡社区公共设施支出 | G49: [50302]基础设施建设 | H49: 雨水调蓄设施建设工程省级补助资金 | I49: [3]特定目标类 | J49: [111]一般公共预算资金
A50: [565001]石家庄市城市管理综合行政执法局本级 | B50: 0 | C50: 178.55 | D50: 0 | E50: 0 | F50: [2120399]其他城乡社区公共设施支出 | G50: [50302]基础设施建设 | H50: 农机街泵站新建工程省级补助资金 | I50: [3]特定目标类 | J50: [111]一般公共预算资金
A51: [565001]石家庄市城市管理综合行政执法局本级 | B51: 0 | C51: 261.07 | D51: 0 | E51: 0 | F51: [2120399]其他城乡社区公共设施支出 | G51: [50302]基础设施建设 | H51: 明珠街、石铜路、槐中路雨水调蓄设施新建工程省级补助资金 | I51: [3]特定目标类 | J51: [111]一般公共预算资金
A52: [565001]石家庄市城市管理综合行政执法局本级 | B52: 0 | C52: 86.95 | D52: 0 | E52: 0 | F52: [2120399]其他城乡社区公共设施支出 | G52: [50302]基础设施建设 | H52: 市区积水点整治工程省级补助资金 | I52: [3]特定目标类 | J52: [111]一般公共预算资金
A53: [565001]石家庄市城市管理综合行政执法局本级 | B53: 0 | C53: 1188.7 | D53: 0 | E53: 0 | F53: [2120399]其他城乡社区公共设施支出 | G53: [50302]基础设施建设 | H53: 四支渠（新华路-南泄洪渠）新建工程省级补助资金 | I53: [3]特定目标类 | J53: [111]一般公共预算资金
A54: [565001]石家庄市城市管理综合行政执法局本级 | B54: 0 | C54: 3367.72 | D54: 0 | E54: 0 | F54: [2120399]其他城乡社区公共设施支出 | G54: [50302]基础设施建设 | H54: 东南退水明渠建设省级补助资金 | I54: [3]特定目标类 | J54: [111]一般公共预算资金
A55: [565001]石家庄市城市管理综合行政执法局本级 | B55: 0 | C55: 47548 | D55: 28340.67009 | E55: 59.6 | F55: [2120399]其他城乡社区公共设施支出 | G55: [50302]基础设施建设 | H55: 四支渠（新华路-南泄洪渠）新建工程中央补助资金 | I55: [3]特定目标类 | J55: [111]一般公共预算资金
A56: [565001]石家庄市城市管理综合行政执法局本级 | B56: 0 | C56: 28756 | D56: 28756 | E56: 100 | F56: [2120399]其他城乡社区公共设施支出 | G56: [50306]设备购置 | H56: 石家庄市移动排涝能力提升项目中央补助资金 | I56: [3]特定目标类 | J56: [111]一般公共预算资金
A57: [565001]石家庄市城市管理综合行政执法局本级 | B57: 0 | C57: 7142 | D57: 6472.950665 | E57: 90.63 | F57: [2120399]其他城乡社区公共设施支出 | G57: [50302]基础设施建设 | H57: 农机街泵站新建工程中央补助资金 | I57: [3]特定目标类 | J57: [111]一般公共预算资金
A58: [565001]石家庄市城市管理综合行政执法局本级 | B58: 0 | C58: 30652 | D58: 24557.49575 | E58: 80.12 | F58: [2120399]其他城乡社区公共设施支出 | G58: [50302]基础设施建设 | H58: 雨水调蓄设施建设工程中央补助资金 | I58: [3]特定目标类 | J58: [111]一般公共预算资金
A59: [565001]石家庄市城市管理综合行政执法局本级 | B59: 0 | C59: 4705 | D59: 3992.63 | E59: 84.86 | F59: [2120399]其他城乡社区公共设施支出 | G59: [50302]基础设施建设 | H59: 仓丰东路雨水泵站新建工程中央补助资金 | I59: [3]特定目标类 | J59: [111]一般公共预算资金
A60: [565001]石家庄市城市管理综合行政执法局本级 | B60: 0 | C60: 10443 | D60: 7409.56408 | E60: 70.95 | F60: [2120399]其他城乡社区公共设施支出 | G60: [50302]基础设施建设 | H60: 明珠街、石铜路、槐中路雨水调蓄设施新建工程中央补助资金 | I60: [3]特定目标类 | J60: [111]一般公共预算资金
A61: [565001]石家庄市城市管理综合行政执法局本级 | B61: 0 | C61: 3478 | D61: 3177.873 | E61: 91.37 | F61: [2120399]其他城乡社区公共设施支出 | G61: [50302]基础设施建设 | H61: 市区积水点整治工程中央补助资金 | I61: [3]特定目标类 | J61: [111]一般公共预算资金
A62: [565001]石家庄市城市管理综合行政执法局本级 | B62: 0 | C62: 134709 | D62: 70175.50488 | E62: 52.09 | F62: [2120399]其他城乡社区公共设施支出 | G62: [50302]基础设施建设 | H62: 东南退水明渠建设中央补助资金 | I62: [3]特定目标类 | J62: [111]一般公共预算资金
A63: [565001]石家庄市城市管理综合行政执法局本级 | B63: 151.85 | C63: 151.85 | D63: 151.85 | E63: 100 | F63: [2120803]城市建设支出 | G63: [50302]基础设施建设 | H63: 2023年城管局机关城建项目资金 | I63: [3]特定目标类 | J63: [121]政府性基金预算资金
A64: [565001]石家庄市城市管理综合行政执法局本级 | B64: 1952.29888 | C64: 0 | D64: 0 | E64: 0 | F64: [2290402]其他地方自行试点项目收益专项债券收入安排的支出 | G64: [50302]基础设施建设 | H64: 育才街(和平路-方北路、裕华路-民心河)雨污水提升改造工程经费 | I64: [3]特定目标类 | J64: [122]专项债券
A65: [565001]石家庄市城市管理综合行政执法局本级 | B65: 2166.3771 | C65: 0 | D65: 0 | E65: 0 | F65: [2290402]其他地方自行试点项目收益专项债券收入安排的支出 | G65: [50302]基础设施建设 | H65: 排水管网改造项目经费（桥西区四项工程） | I65: [3]特定目标类 | J65: [122]专项债券
A66: [565001]石家庄市城市管理综合行政执法局本级 | B66: 2175.49825 | C66: 0 | D66: 0 | E66: 0 | F66: [2290402]其他地方自行试点项目收益专项债券收入安排的支出 | G66: [50302]基础设施建设 | H66: 泰华街雨污水干管新建工程经费 | I66: [3]特定目标类 | J66: [122]专项债券
A67: [565001]石家庄市城市管理综合行政执法局本级 | B67: 1021.31081 | C67: 0 | D67: 0 | E67: 0 | F67: [2290402]其他地方自行试点项目收益专项债券收入安排的支出 | G67: [50302]基础设施建设 | H67: 排水管网改造项目经费（新华区五项工程） | I67: [3]特定目标类 | J67: [122]专项债券
A68: [565001]石家庄市城市管理综合行政执法局本级 | B68: 4493.33944 | C68: 1624.76257 | D68: 0 | E68: 0 | F68: [2290402]其他地方自行试点项目收益专项债券收入安排的支出 | G68: [50302]基础设施建设 | H68: 市区支路增设雨水管道工程经费 | I68: [3]特定目标类 | J68: [122]专项债券
A69: [565001]石家庄市城市管理综合行政执法局本级 | B69: 0 | C69: 1263.3 | D69: 6.995369 | E69: 0.55 | F69: [2120803]城市建设支出 | G69: [50302]基础设施建设 | H69: 四支渠（新华路-南泄洪渠）新建工程国债项目市级配套 | I69: [3]特定目标类 | J69: [121]政府性基金预算资金
A70: [565001]石家庄市城市管理综合行政执法局本级 | B70: 0 | C70: 6131.4 | D70: 4.528012 | E70: 0.07 | F70: [2120803]城市建设支出 | G70: [50302]基础设施建设 | H70: 雨水调蓄设施建设工程国债项目市级配套 | I70: [3]特定目标类 | J70: [121]政府性基金预算资金
A71: [565001]石家庄市城市管理综合行政执法局本级 | B71: 0 | C71: 5752.2 | D71: 4635.996046 | E71: 80.6 | F71: [2120803]城市建设支出 | G71: [50306]设备购置 | H71: 石家庄市移动排涝能力提升项目国债项目市级配套 | I71: [3]特定目标类 | J71: [121]政府性基金预算资金
A72: [565001]石家庄市城市管理综合行政执法局本级 | B72: 0 | C72: 39850 | D72: 39637.80751 | E72: 99.47 | F72: [2120803]城市建设支出 | G72: [50302]基础设施建设 | H72: 东南退水明渠建设国债项目市级配套 | I72: [3]特定目标类 | J72: [121]政府性基金预算资金
A73: [565001]石家庄市城市管理综合行政执法局本级 | B73: 0 | C73: 696.1 | D73: 0.573452 | E73: 0.08 | F73: [2120803]城市建设支出 | G73: [50302]基础设施建设 | H73: 市区积水点整治工程国债项目市级配套 | I73: [3]特定目标类 | J73: [121]政府性基金预算资金
A74: [565001]石家庄市城市管理综合行政执法局本级 | B74: 0 | C74: 2088.85 | D74: 1.526673 | E74: 0.07 | F74: [2120803]城市建设支出 | G74: [50302]基础设施建设 | H74: 明珠街、石铜路、槐中路雨水调蓄设施新建工程国债项目市级配套 | I74: [3]特定目标类 | J74: [121]政府性基金预算资金
A75: [565001]石家庄市城市管理综合行政执法局本级 | B75: 0 | C75: 151 | D75: 0 | E75: 0 | F75: [2120803]城市建设支出 | G75: [50302]基础设施建设 | H75: 中华大街景观提升工程 | I75: [3]特定目标类 | J75: [121]政府性基金预算资金
A76: [565001]石家庄市城市管理综合行政执法局本级 | B76: 0 | C76: 2667 | D76: 2667 | E76: 100 | F76: [2120803]城市建设支出 | G76: [50305]土地征迁补偿和安置支出 | H76: 农机街泵站新建工程国债项目征地费用市级补助 | I76: [3]特定目标类 | J76: [121]政府性基金预算资金
A77: [565001]石家庄市城市管理综合行政执法局本级 | B77: 0 | C77: 1432 | D77: 1002 | E77: 69.97 | F77: [2120803]城市建设支出 | G77: [50305]土地征迁补偿和安置支出 | H77: 仓丰东路雨水泵站新建工程国债项目征地费用市级补助 | I77: [3]特定目标类 | J77: [121]政府性基金预算资金
A78: [565001]石家庄市城市管理综合行政执法局本级 | B78: 0 | C78: 1429 | D78: 0.021748 | E78: 0 | F78: [2120803]城市建设支出 | G78: [50302]基础设施建设 | H78: 农机街泵站新建工程国债项目市级配套 | I78: [3]特定目标类 | J78: [121]政府性基金预算资金
A79: [565001]石家庄市城市管理综合行政执法局本级 | B79: 0 | C79: 177.75 | D79: 0.737789 | E79: 0.42 | F79: [2120803]城市建设支出 | G79: [50302]基础设施建设 | H79: 仓丰东路雨水泵站新建工程国债项目市级配套 | I79: [3]特定目标类 | J79: [121]政府性基金预算资金
A80: [565001]石家庄市城市管理综合行政执法局本级 | B80: 0 | C80: 3300 | D80: 930 | E80: 28.18 | F80: [2120803]城市建设支出 | G80: [50302]基础设施建设 | H80: 平安大街提升工程 | I80: [3]特定目标类 | J80: [121]政府性基金预算资金
A81: [565001]石家庄市城市管理综合行政执法局本级 | B81: 0 | C81: 16.25 | D81: 15.9281 | E81: 98.02 | F81: [2120104]城管执法 | G81: [50299]其他商品和服务支出 | H81: 城市更新示范城市申报工作专班工作经费 | I81: [3]特定目标类 | J81: [111]一般公共预算资金
A82: [565001]石家庄市城市管理综合行政执法局本级 | B82: 0 | C82: 17.57 | D82: 16.65672 | E82: 94.8 | F82: [2120104]城管执法 | G82: [50299]其他商品和服务支出 | H82: 正太广场、解放广场及周边区域管理办公室工作经费 | I82: [3]特定目标类 | J82: [111]一般公共预算资金
A83: [565001]石家庄市城市管理综合行政执法局本级 | B83: 0 | C83: 0 | D83: 0 | E83: 0 | F83: [2120899]其他国有土地使用权出让收入安排的支出 | G83: [50399]其他资本性支出 | H83: 2024年生活垃圾分类运行费用 | I83: [3]特定目标类 | J83: [121]政府性基金预算资金
A84: [565001]石家庄市城市管理综合行政执法局本级 | B84: 0 | C84: 178.55 | D84: 0 | E84: 0 | F84: [2120399]其他城乡社区公共设施支出 | G84: [50302]基础设施建设 | H84: 农机街泵站新建工程省级补助第二批 | I84: [3]特定目标类 | J84: [111]一般公共预算资金
A85: [565001]石家庄市城市管理综合行政执法局本级 | B85: 0 | C85: 261.08 | D85: 0 | E85: 0 | F85: [2120399]其他城乡社区公共设施支出 | G85: [50302]基础设施建设 | H85: 明珠街、石铜路、槐中路雨水调蓄设施新建工程省级补助第二批 | I85: [3]特定目标类 | J85: [111]一般公共预算资金
A86: [565001]石家庄市城市管理综合行政执法局本级 | B86: 0 | C86: 117.62 | D86: 0 | E86: 0 | F86: [2120399]其他城乡社区公共设施支出 | G86: [50302]基础设施建设 | H86: 仓丰东路雨水泵站新建工程省级补助第二批 | I86: [3]特定目标类 | J86: [111]一般公共预算资金
A87: [565001]石家庄市城市管理综合行政执法局本级 | B87: 0 | C87: 718.9 | D87: 718.9 | E87: 100 | F87: [2120399]其他城乡社区公共设施支出 | G87: [50306]设备购置 | H87: 石家庄市移动排涝能力提升项目省级补助第二批 | I87: [3]特定目标类 | J87: [111]一般公共预算资金
A88: [565001]石家庄市城市管理综合行政执法局本级 | B88: 0 | C88: 235.86 | D88: 139.518899 | E88: 59.15 | F88: [2120501]城乡社区环境卫生 | G88: [50205]委托业务费 | H88: 正太广场、解放广场及周边区域管护资金 | I88: [3]特定目标类 | J88: [111]一般公共预算资金
A89: [565001]石家庄市城市管理综合行政执法局本级 | B89: 0 | C89: 28.465 | D89: 0 | E89: 0 | F89: [2120501]城乡社区环境卫生 | G89: [50205]委托业务费 | H89: 正太广场、解放广场及周边区域管护资金 | I89: [3]特定目标类 | J89: [111]一般公共预算资金
A90: [565001]石家庄市城市管理综合行政执法局本级 | B90: 0 | C90: 86.95 | D90: 0 | E90: 0 | F90: [2120399]其他城乡社区公共设施支出 | G90: [50302]基础设施建设 | H90: 市区积水点整治工程省级补助第二批 | I90: [3]特定目标类 | J90: [111]一般公共预算资金
A91: [565001]石家庄市城市管理综合行政执法局本级 | B91: 0 | C91: 766.3 | D91: 0 | E91: 0 | F91: [2120399]其他城乡社区公共设施支出 | G91: [50302]基础设施建设 | H91: 雨水调蓄设施建设工程国债省级补助第二批 | I91: [3]特定目标类 | J91: [111]一般公共预算资金
A92: [565001]石家庄市城市管理综合行政执法局本级 | B92: 0 | C92: 1917 | D92: 12.784 | E92: 0.67 | F92: [2129801]城乡社区公共设施 | G92: [50301]房屋建筑物购建 | H92: 液化气居民用户安装物联报警器 和自动切断装置项目 | I92: [3]特定目标类 | J92: [121]政府性基金预算资金
A93: [565001]石家庄市城市管理综合行政执法局本级 | B93: 0 | C93: 0 | D93: 0 | E93: 100 | F93: [2120899]其他国有土地使用权出让收入安排的支出 | G93: [50399]其他资本性支出 | H93: 2024年生活垃圾分类运行费用 | I93: [3]特定目标类 | J93: [121]政府性基金预算资金
A94: [565001]石家庄市城市管理综合行政执法局本级 | B94: 0 | C94: 180 | D94: 35.88015 | E94: 19.93 | F94: [2120899]其他国有土地使用权出让收入安排的支出 | G94: [50399]其他资本性支出 | H94: 2024年生活垃圾分类运行费用 | I94: [3]特定目标类 | J94: [121]政府性基金预算资金
A95: [565001]石家庄市城市管理综合行政执法局本级 | B95: 0 | C95: 0.33 | D95: 0.33 | E95: 100 | F95: [2120104]城管执法 | G95: [50201]办公经费 | H95: 正太广场、解放广场及周边区域管理办公室工作经费 | I95: [3]特定目标类 | J95: [111]一般公共预算资金
A96: [565001]石家庄市城市管理综合行政执法局本级 | B96: 0 | C96: 0.33 | D96: 0.33 | E96: 100 | F96: [2120104]城管执法 | G96: [50201]办公经费 | H96: 正太广场、解放广场及周边区域管理办公室工作经费 | I96: [3]特定目标类 | J96: [111]一般公共预算资金
A97: [565001]石家庄市城市管理综合行政执法局本级 | B97: 0 | C97: 1.99 | D97: 1.99 | E97: 100 | F97: [2120104]城管执法 | G97: [50201]办公经费 | H97: 正太广场、解放广场及周边区域管理办公室工作经费 | I97: [3]特定目标类 | J97: [111]一般公共预算资金
A98: [565001]石家庄市城市管理综合行政执法局本级 | B98: 0 | C98: 0.33 | D98: 0.33 | E98: 100 | F98: [2120104]城管执法 | G98: [50201]办公经费 | H98: 正太广场、解放广场及周边区域管理办公室工作经费 | I98: [3]特定目标类 | J98: [111]一般公共预算资金
A99: [565001]石家庄市城市管理综合行政执法局本级 | B99: 0 | C99: 0.33 | D99: 0.33 | E99: 100 | F99: [2120104]城管执法 | G99: [50201]办公经费 | H99: 正太广场、解放广场及周边区域管理办公室工作经费 | I99: [3]特定目标类 | J99: [111]一般公共预算资金
A100: [565001]石家庄市城市管理综合行政执法局本级 | B100: 0 | C100: 0.15 | D100: 0.15 | E100: 100 | F100: [2120104]城管执法 | G100: [50201]办公经费 | H100: 正太广场、解放广场及周边区域管理办公室工作经费 | I100: [3]特定目标类 | J100: [111]一般公共预算资金
A101: [565001]石家庄市城市管理综合行政执法局本级 | B101: 0 | C101: 0.33 | D101: 0.33 | E101: 100 | F101: [2120104]城管执法 | G101: [50201]办公经费 | H101: 正太广场、解放广场及周边区域管理办公室工作经费 | I101: [3]特定目标类 | J101: [111]一般公共预算资金
A102: [565001]石家庄市城市管理综合行政执法局本级 | B102: 0 | C102: 0.33 | D102: 0.33 | E102: 100 | F102: [2120104]城管执法 | G102: [50201]办公经费 | H102: 正太广场、解放广场及周边区域管理办公室工作经费 | I102: [3]特定目标类 | J102: [111]一般公共预算资金
A103: [565001]石家庄市城市管理综合行政执法局本级 | B103: 0 | C103: 0.99 | D103: 0.99 | E103: 100 | F103: [2120104]城管执法 | G103: [50201]办公经费 | H103: 正太广场、解放广场及周边区域管理办公室工作经费 | I103: [3]特定目标类 | J103: [111]一般公共预算资金
A104: [565001]石家庄市城市管理综合行政执法局本级 | B104: 0 | C104: 0.84 | D104: 0.836 | E104: 99.52 | F104: [2120104]城管执法 | G104: [50201]办公经费 | H104: 正太广场、解放广场及周边区域管理办公室工作经费 | I104: [3]特定目标类 | J104: [111]一般公共预算资金
A105: [565001]石家庄市城市管理综合行政执法局本级 | B105: 0 | C105: 10098 | D105: 10098 | E105: 100 | F105: [2121301]城市公共设施 | G105: [50701]费用补贴 | H105: 污水处理补贴资金 | I105: [3]特定目标类 | J105: [121]政府性基金预算资金
A106: [565001]石家庄市城市管理综合行政执法局本级 | B106: 0 | C106: 5748 | D106: 5748 | E106: 100 | F106: [2121401]污水处理设施建设和运营 | G106: [50701]费用补贴 | H106: 污水处理补贴资金 | I106: [3]特定目标类 | J106: [121]政府性基金预算资金
A107: [565001]石家庄市城市管理综合行政执法局本级 | B107: 0 | C107: 185.37 | D107: 0 | E107: 0 | F107: [2121301]城市公共设施 | G107: [50201]办公经费 | H107: 东南退水明渠建设项目耕地占用税 | I107: [3]特定目标类 | J107: [121]政府性基金预算资金
A108: [565001]石家庄市城市管理综合行政执法局本级 | B108: 0 | C108: 2391 | D108: 1294.201178 | E108: 54.13 | F108: [2120803]城市建设支出 | G108: [50302]基础设施建设 | H108: 城管局机关2023年及以前年度城建项目资金 | I108: [3]特定目标类 | J108: [121]政府性基金预算资金
A109: [565001]石家庄市城市管理综合行政执法局本级 | B109: 0 | C109: 301.51 | D109: 0 | E109: 0 | F109: [2110302]水体 | G109: [50701]费用补贴 | H109: 新华区供热老旧管网更新改造工程中央补助资金 | I109: [3]特定目标类 | J109: [111]一般公共预算资金
A110: [565001]石家庄市城市管理综合行政执法局本级 | B110: 0 | C110: 140 | D110: 0 | E110: 0 | F110: [2110302]水体 | G110: [50701]费用补贴 | H110: 新华区和高新区热力管网加装计量装置和二网智能调控改造工程中央补助资金 | I110: [3]特定目标类 | J110: [111]一般公共预算资金
A111: [565001]石家庄市城市管理综合行政执法局本级 | B111: 0 | C111: 243.47 | D111: 0 | E111: 0 | F111: [2110302]水体 | G111: [50701]费用补贴 | H111: 长安区市政燃气地下管网更新改造项目中央补助资金 | I111: [3]特定目标类 | J111: [111]一般公共预算资金
A112: [565001]石家庄市城市管理综合行政执法局本级 | B112: 0 | C112: 180 | D112: 0 | E112: 0 | F112: [2110302]水体 | G112: [50701]费用补贴 | H112: 新华区高温水主管网及老旧小区二次供热管网更新改造工程中央补助资金 | I112: [3]特定目标类 | J112: [111]一般公共预算资金
A113: [565001]石家庄市城市管理综合行政执法局本级 | B113: 0 | C113: 330 | D113: 0 | E113: 0 | F113: [2110302]水体 | G113: [50701]费用补贴 | H113: 城市供水老旧管网修复及漏损治理项目（桥西区）中央补助资金 | I113: [3]特定目标类 | J113: [111]一般公共预算资金
A114: [565001]石家庄市城市管理综合行政执法局本级 | B114: 0 | C114: 71.28 | D114: 0 | E114: 0 | F114: [2110302]水体 | G114: [50701]费用补贴 | H114: 裕华区市政中压老旧管网改造更新工程项目中央补助资金 | I114: [3]特定目标类 | J114: [111]一般公共预算资金
A115: [565001]石家庄市城市管理综合行政执法局本级 | B115: 0 | C115: 242.63 | D115: 0 | E115: 0 | F115: [2110302]水体 | G115: [50701]费用补贴 | H115: 桥西区市政燃气地下管网更新改造项目中央补助资金 | I115: [3]特定目标类 | J115: [111]一般公共预算资金
A116: [565001]石家庄市城市管理综合行政执法局本级 | B116: 0 | C116: 294.36 | D116: 0 | E116: 0 | F116: [2110302]水体 | G116: [50701]费用补贴 | H116: 新华区市政燃气地下管网更新改造项目中央补助资金 | I116: [3]特定目标类 | J116: [111]一般公共预算资金
A117: [565001]石家庄市城市管理综合行政执法局本级 | B117: 0 | C117: 1069.42 | D117: 0 | E117: 0 | F117: [2110302]水体 | G117: [50701]费用补贴 | H117: 裕华区市政燃气地下管网更新改造项目中央补助资金 | I117: [3]特定目标类 | J117: [111]一般公共预算资金
A118: [565001]石家庄市城市管理综合行政执法局本级 | B118: 0 | C118: 907.19 | D118: 0 | E118: 0 | F118: [2110302]水体 | G118: [50701]费用补贴 | H118: 桥西区供热老旧管网更新改造工程中央补助资金 | I118: [3]特定目标类 | J118: [111]一般公共预算资金
A119: [565001]石家庄市城市管理综合行政执法局本级 | B119: 0 | C119: 74.8 | D119: 0 | E119: 0 | F119: [2110302]水体 | G119: [50701]费用补贴 | H119: 高新区市政中压老旧管网改造更新工程项目中央补助资金 | I119: [3]特定目标类 | J119: [111]一般公共预算资金
A120: [565003]石家庄市城市管理综合保障中心 | B120: 332.89 | C120: 332.765 | D120: 332.765 | E120: 100 | F120: [2120104]城管执法 | G120: [50201]办公经费 | H120: 工作场地租赁费 | I120: [22]其他运转类 | J120: [111]一般公共预算资金
A121: [565003]石家庄市城市管理综合保障中心 | B121: 40 | C121: 40 | D121: 39.844 | E121: 99.61 | F121: [2120104]城管执法 | G121: [50201]办公经费 | H121: 办公设备购置 | I121: [22]其他运转类 | J121: [111]一般公共预算资金
A122: [565003]石家庄市城市管理综合保障中心 | B122: 10.97 | C122: 10.97 | D122: 10.6631 | E122: 97.2 | F122: [2120104]城管执法 | G122: [50299]其他商品和服务支出 | H122: 党组织活动经费 | I122: [22]其他运转类 | J122: [111]一般公共预算资金
A123: [565003]石家庄市城市管理综合保障中心 | B123: 30 | C123: 30 | D123: 29.81508 | E123: 99.38 | F123: [2120104]城管执法 | G123: [50502]商品和服务支出 | H123: 物业管理费 | I123: [3]特定目标类 | J123: [111]一般公共预算资金
A124: [565003]石家庄市城市管理综合保障中心 | B124: 528.3 | C124: 528.3 | D124: 528.3 | E124: 100 | F124: [2120104]城管执法 | G124: [50205]委托业务费 | H124: 劳动聘用人员经费 | I124: [3]特定目标类 | J124: [111]一般公共预算资金
A125: [565003]石家庄市城市管理综合保障中心 | B125: 28.75 | C125: 0 | D125: 0 | E125: 0 | F125: [2120104]城管执法 | G125: [50306]设备购置 | H125: 执法业务费 | I125: [3]特定目标类 | J125: [111]一般公共预算资金
A126: [565003]石家庄市城市管理综合保障中心 | B126: 11.898 | C126: 0 | D126: 0 | E126: 0 | F126: [2120104]城管执法 | G126: [50502]商品和服务支出 | H126: 执法业务费 | I126: [3]特定目标类 | J126: [111]一般公共预算资金
A127: [565003]石家庄市城市管理综合保障中心 | B127: 23.7991 | C127: 0 | D127: 0 | E127: 0 | F127: [2120104]城管执法 | G127: [50502]商品和服务支出 | H127: 执法业务费 | I127: [3]特定目标类 | J127: [111]一般公共预算资金
A128: [565003]石家庄市城市管理综合保障中心 | B128: 35.3329 | C128: 10.5344 | D128: 10.5344 | E128: 100 | F128: [2120104]城管执法 | G128: [50502]商品和服务支出 | H128: 执法业务费 | I128: [3]特定目标类 | J128: [111]一般公共预算资金
A129: [565003]石家庄市城市管理综合保障中心 | B129: 6.6 | C129: 0 | D129: 0 | E129: 0 | F129: [2120104]城管执法 | G129: [50502]商品和服务支出 | H129: 执法业务费 | I129: [3]特定目标类 | J129: [111]一般公共预算资金
A130: [565003]石家庄市城市管理综合保障中心 | B130: 0 | C130: 1.3 | D130: 1.3 | E130: 100 | F130: [2120104]城管执法 | G130: [50502]商品和服务支出 | H130: 2024年劳动聘用人员经费 | I130: [3]特定目标类 | J130: [111]一般公共预算资金
A131: [565004]石家庄市市容管理考评中心 | B131: 0.6 | C131: 0.6 | D131: 0.592998 | E131: 98.83 | F131: [2120104]城管执法 | G131: [50299]其他商品和服务支出 | H131: 党组织活动经费 | I131: [22]其他运转类 | J131: [111]一般公共预算资金
A132: [565004]石家庄市市容管理考评中心 | B132: 0.5 | C132: 0.5 | D132: 0.5 | E132: 100 | F132: [2120104]城管执法 | G132: [50201]办公经费 | H132: 党组织活动经费 | I132: [22]其他运转类 | J132: [111]一般公共预算资金
A133: [565004]石家庄市市容管理考评中心 | B133: 0.54 | C133: 0.54 | D133: 0.54 | E133: 100 | F133: [2120104]城管执法 | G133: [50201]办公经费 | H133: 党组织活动经费 | I133: [22]其他运转类 | J133: [111]一般公共预算资金
A134: [565004]石家庄市市容管理考评中心 | B134: 0.55 | C134: 0.55 | D134: 0.5497 | E134: 99.95 | F134: [2120104]城管执法 | G134: [50201]办公经费 | H134: 党组织活动经费 | I134: [22]其他运转类 | J134: [111]一般公共预算资金
A135: [565004]石家庄市市容管理考评中心 | B135: 14.5 | C135: 9.836 | D135: 9.836 | E135: 100 | F135: [2120104]城管执法 | G135: [50306]设备购置 | H135: 办公设备购置 | I135: [22]其他运转类 | J135: [111]一般公共预算资金
A136: [565004]石家庄市市容管理考评中心 | B136: 193.72 | C136: 192.53117 | D136: 192.53117 | E136: 100 | F136: [2120104]城管执法 | G136: [50201]办公经费 | H136: 工作场地租赁费 | I136: [22]其他运转类 | J136: [111]一般公共预算资金
A137: [565004]石家庄市市容管理考评中心 | B137: 14.84 | C137: 14.84 | D137: 14.84 | E137: 100 | F137: [2120104]城管执法 | G137: [50201]办公经费 | H137: 工作场地租赁费 | I137: [22]其他运转类 | J137: [111]一般公共预算资金
A138: [565004]石家庄市市容管理考评中心 | B138: 18.95 | C138: 18.678 | D138: 18.678 | E138: 100 | F138: [2120104]城管执法 | G138: [50204]专用材料购置费 | H138: 数字化城市管理运行经费 | I138: [3]特定目标类 | J138: [111]一般公共预算资金
A139: [565004]石家庄市市容管理考评中心 | B139: 968.11 | C139: 968.11 | D139: 968.11 | E139: 100 | F139: [2120104]城管执法 | G139: [50205]委托业务费 | H139: 数字化城市管理运行经费 | I139: [3]特定目标类 | J139: [111]一般公共预算资金
A140: [565004]石家庄市市容管理考评中心 | B140: 20.7 | C140: 20.7 | D140: 16.71368 | E140: 80.74 | F140: [2120104]城管执法 | G140: [50201]办公经费 | H140: 数字化城市管理运行经费 | I140: [3]特定目标类 | J140: [111]一般公共预算资金
A141: [565004]石家庄市市容管理考评中心 | B141: 8.58 | C141: 8.58 | D141: 8.4068 | E141: 97.98 | F141: [2120104]城管执法 | G141: [50201]办公经费 | H141: 数字化城市管理运行经费 | I141: [3]特定目标类 | J141: [111]一般公共预算资金
A142: [565004]石家庄市市容管理考评中心 | B142: 82.37 | C142: 77.538 | D142: 77.538 | E142: 100 | F142: [2120104]城管执法 | G142: [50306]设备购置 | H142: 数字化城市管理运行经费 | I142: [3]特定目标类 | J142: [111]一般公共预算资金
A143: [565004]石家庄市市容管理考评中心 | B143: 20 | C143: 20 | D143: 19.935634 | E143: 99.68 | F143: [2120104]城管执法 | G143: [50201]办公经费 | H143: 数字化城市管理运行经费 | I143: [3]特定目标类 | J143: [111]一般公共预算资金
A144: [565004]石家庄市市容管理考评中心 | B144: 0.4 | C144: 0 | D144: 0 | E144: 0 | F144: [2120104]城管执法 | G144: [50201]办公经费 | H144: 数字化城市管理运行经费 | I144: [3]特定目标类 | J144: [111]一般公共预算资金
A145: [565004]石家庄市市容管理考评中心 | B145: 7.2 | C145: 0 | D145: 0 | E145: 0 | F145: [2120104]城管执法 | G145: [50205]委托业务费 | H145: 数字化城市管理运行经费 | I145: [3]特定目标类 | J145: [111]一般公共预算资金
A146: [565004]石家庄市市容管理考评中心 | B146: 0.9 | C146: 0.5 | D146: 0 | E146: 0 | F146: [2120104]城管执法 | G146: [50201]办公经费 | H146: 数字化城市管理运行经费 | I146: [3]特定目标类 | J146: [111]一般公共预算资金
B147: =SUM(B138:B146) -> 1127.21 | C147: =SUM(C138:C146) -> 1114.106 | D147: =SUM(D138:D146) -> 1109.382114
A148: [565004]石家庄市市容管理考评中心 | B148: 1755.9 | C148: 1755.9 | D148: 1755.9 | E148: 100 | F148: [2120104]城管执法 | G148: [50205]委托业务费 | H148: 劳动聘用人员经费 | I148: [3]特定目标类 | J148: [111]一般公共预算资金
A149: [565004]石家庄市市容管理考评中心 | B149: 0 | C149: 168.8 | D149: 147.503369 | E149: 87.38 | F149: [2120104]城管执法 | G149: [50205]委托业务费 | H149: 2024年劳动聘用人员经费 | I149: [3]特定目标类 | J149: [111]一般公共预算资金
A150: [565005]石家庄市卫生垃圾太行填埋场 | B150: 1.07 | C150: 1.07 | D150: 1.02216 | E150: 95.53 | F150: [2120501]城乡社区环境卫生 | G150: [50502]商品和服务支出 | H150: 党组织活动经费 | I150: [22]其他运转类 | J150: [111]一般公共预算资金
A151: [565005]石家庄市卫生垃圾太行填埋场 | B151: 0.15 | C151: 0.142 | D151: 0.142 | E151: 100 | F151: [2120501]城乡社区环境卫生 | G151: [50601]资本性支出 | H151: 办公设备购置 | I151: [22]其他运转类 | J151: [111]一般公共预算资金
A152: [565005]石家庄市卫生垃圾太行填埋场 | B152: 317.62 | C152: 317.62 | D152: 308.664824 | E152: 97.18 | F152: [2121302]城市环境卫生 | G152: [50601]资本性支出 | H152: 生活垃圾卫生填埋场运行经费 | I152: [3]特定目标类 | J152: [121]政府性基金预算资金
A153: [565005]石家庄市卫生垃圾太行填埋场 | B153: 234.78 | C153: 234.78 | D153: 184.741525 | E153: 78.69 | F153: [2121302]城市环境卫生 | G153: [50601]资本性支出 | H153: 生活垃圾卫生填埋场运行经费 | I153: [3]特定目标类 | J153: [121]政府性基金预算资金
C154: =SUM(C152:C153) -> 552.4 | D154: =SUM(D152:D153) -> 493.406349 | E154: =SUM(D152:D153) -> 493.406349
A155: [565005]石家庄市卫生垃圾太行填埋场 | B155: 295.08 | C155: 295.08 | D155: 295.08 | E155: 100 | F155: [2120501]城乡社区环境卫生 | G155: [50601]资本性支出 | H155: 生活垃圾卫生填埋场运行费 | I155: [3]特定目标类 | J155: [111]一般公共预算资金
A156: [565005]石家庄市卫生垃圾太行填埋场 | B156: 1.48 | C156: 1.324 | D156: 1.324 | E156: 100 | F156: [2120501]城乡社区环境卫生 | G156: [50601]资本性支出 | H156: 事业单位更新电脑设备经费 | I156: [3]特定目标类 | J156: [111]一般公共预算资金
A157: [565006]石家庄市生活固体废弃物处置服务中心 | B157: 17.08 | C157: 17.077 | D157: 17.077 | E157: 100 | F157: [2120501]城乡社区环境卫生 | G157: [50502]商品和服务支出 | H157: 公务用车租赁费 | I157: [22]其他运转类 | J157: [111]一般公共预算资金
A158: [565006]石家庄市生活固体废弃物处置服务中心 | B158: 0.63 | C158: 0.63 | D158: 0.62919 | E158: 99.87 | F158: [2120501]城乡社区环境卫生 | G158: [50502]商品和服务支出 | H158: 党组织活动经费 | I158: [22]其他运转类 | J158: [111]一般公共预算资金
A159: [565007]石家庄市危险废弃物处置场 | B159: 0.5 | C159: 0.495 | D159: 0.495 | E159: 100 | F159: [2120501]城乡社区环境卫生 | G159: [50601]资本性支出 | H159: 办公设备购置 | I159: [22]其他运转类 | J159: [111]一般公共预算资金
A160: [565007]石家庄市危险废弃物处置场 | B160: 0.31 | C160: 0.30996 | D160: 0.30996 | E160: 100 | F160: [2120501]城乡社区环境卫生 | G160: [50502]商品和服务支出 | H160: 党组织活动经费 | I160: [22]其他运转类 | J160: [111]一般公共预算资金
A161: [565007]石家庄市危险废弃物处置场 | B161: 66 | C161: 66 | D161: 66 | E161: 100 | F161: [2121302]城市环境卫生 | G161: [50601]资本性支出 | H161: 废旧电池处置运行费 | I161: [3]特定目标类 | J161: [121]政府性基金预算资金
A162: [565008]石家庄市市容环卫服务中心 | B162: 1.59 | C162: 1.59 | D162: 1.59 | E162: 100 | F162: [2120501]城乡社区环境卫生 | G162: [50601]资本性支出 | H162: 办公设备购置 | I162: [22]其他运转类 | J162: [111]一般公共预算资金
A163: [565008]石家庄市市容环卫服务中心 | B163: 0.76 | C163: 0.76 | D163: 0.75393 | E163: 99.2 | F163: [2120501]城乡社区环境卫生 | G163: [50502]商品和服务支出 | H163: 党组织活动经费 | I163: [22]其他运转类 | J163: [111]一般公共预算资金
A164: [565008]石家庄市市容环卫服务中心 | B164: 57 | C164: 57 | D164: 57 | E164: 100 | F164: [2121302]城市环境卫生 | G164: [50601]资本性支出 | H164: 冬季融雪及移动公厕运行经费 | I164: [3]特定目标类 | J164: [121]政府性基金预算资金
A165: [565008]石家庄市市容环卫服务中心 | B165: 1.36 | C165: 1.33 | D165: 1.33 | E165: 100 | F165: [2120501]城乡社区环境卫生 | G165: [50601]资本性支出 | H165: 事业单位更新电脑设备经费 | I165: [3]特定目标类 | J165: [111]一般公共预算资金
A166: [565008]石家庄市市容环卫服务中心 | B166: 12 | C166: 11.98 | D166: 11.98 | E166: 100 | F166: [2120501]城乡社区环境卫生 | G166: [50502]商品和服务支出 | H166: 物业管理费 | I166: [3]特定目标类 | J166: [111]一般公共预算资金
A167: [565011]石家庄市城市照明管护中心 | B167: 1.69 | C167: 1.69 | D167: 1.69 | E167: 100 | F167: [2120399]其他城乡社区公共设施支出 | G167: [50502]商品和服务支出 | H167: 党组织活动经费 | I167: [22]其他运转类 | J167: [111]一般公共预算资金
A168: [565011]石家庄市城市照明管护中心 | B168: 13.14 | C168: 9.36 | D168: 9.36 | E168: 100 | F168: [2120399]其他城乡社区公共设施支出 | G168: [50502]商品和服务支出 | H168: 公务用车租赁费 | I168: [22]其他运转类 | J168: [111]一般公共预算资金
A169: [565011]石家庄市城市照明管护中心 | B169: 2.8 | C169: 0 | D169: 0 | E169: 0 | F169: [2120399]其他城乡社区公共设施支出 | G169: [50601]资本性支出 | H169: 办公设备购置 | I169: [22]其他运转类 | J169: [111]一般公共预算资金
A170: [565011]石家庄市城市照明管护中心 | B170: 4361.1 | C170: 4361.1 | D170: 4361.1 | E170: 100 | F170: [2121301]城市公共设施 | G170: [50601]资本性支出 | H170: 照明设施维护经费 | I170: [3]特定目标类 | J170: [121]政府性基金预算资金
A171: [565011]石家庄市城市照明管护中心 | B171: 7.36 | C171: 7.353 | D171: 7.353 | E171: 100 | F171: [2120399]其他城乡社区公共设施支出 | G171: [50601]资本性支出 | H171: 事业单位更新电脑设备经费 | I171: [3]特定目标类 | J171: [111]一般公共预算资金
A172: [565011]石家庄市城市照明管护中心 | B172: 2863.9 | C172: 2863.9 | D172: 2863.9 | E172: 100 | F172: [2120399]其他城乡社区公共设施支出 | G172: [50601]资本性支出 | H172: 照明设施维护费 | I172: [3]特定目标类 | J172: [111]一般公共预算资金
A173: [565011]石家庄市城市照明管护中心 | B173: 296 | C173: 296 | D173: 296 | E173: 100 | F173: [2120399]其他城乡社区公共设施支出 | G173: [50502]商品和服务支出 | H173: 公益广告设置经费 | I173: [3]特定目标类 | J173: [111]一般公共预算资金
A174: [565011]石家庄市城市照明管护中心 | B174: 0 | C174: 350 | D174: 337.548873 | E174: 96.44 | F174: [2120803]城市建设支出 | G174: [50601]资本性支出 | H174: 街道照明设施提升工程 | I174: [3]特定目标类 | J174: [121]政府性基金预算资金
A175: [565011]石家庄市城市照明管护中心 | B175: 0 | C175: 1805 | D175: 1805 | E175: 100 | F175: [2120803]城市建设支出 | G175: [50601]资本性支出 | H175: 照明中心2023年及以前年度城建项目资金 | I175: [3]特定目标类 | J175: [121]政府性基金预算资金
A176: [565013]石家庄市二环路管护中心 | B176: 620 | C176: 620 | D176: 143.186769 | E176: 23.09 | F176: [2120399]其他城乡社区公共设施支出 | G176: [50601]资本性支出 | H176: 二环路设施维护费 | I176: [3]特定目标类 | J176: [111]一般公共预算资金
A177: [565013]石家庄市二环路管护中心 | B177: 5.27 | C177: 5.27 | D177: 5.27 | E177: 100 | F177: [2120399]其他城乡社区公共设施支出 | G177: [50601]资本性支出 | H177: 办公设备购置 | I177: [22]其他运转类 | J177: [111]一般公共预算资金
A178: [565013]石家庄市二环路管护中心 | B178: 2 | C178: 2 | D178: 2 | E178: 100 | F178: [2120399]其他城乡社区公共设施支出 | G178: [50502]商品和服务支出 | H178: 党组织活动经费 | I178: [22]其他运转类 | J178: [111]一般公共预算资金
A179: [565013]石家庄市二环路管护中心 | B179: 4.38 | C179: 4.38 | D179: 4.38 | E179: 100 | F179: [2120399]其他城乡社区公共设施支出 | G179: [50502]商品和服务支出 | H179: 公务用车租赁费 | I179: [22]其他运转类 | J179: [111]一般公共预算资金
A180: [565013]石家庄市二环路管护中心 | B180: 60 | C180: 46.68 | D180: 46.68 | E180: 100 | F180: [2120399]其他城乡社区公共设施支出 | G180: [50601]资本性支出 | H180: 掘路修复费 | I180: [3]特定目标类 | J180: [111]一般公共预算资金
A181: [565013]石家庄市二环路管护中心 | B181: 15.68 | C181: 15.3415 | D181: 15.3415 | E181: 100 | F181: [2120399]其他城乡社区公共设施支出 | G181: [50601]资本性支出 | H181: 事业单位更新电脑设备经费 | I181: [3]特定目标类 | J181: [111]一般公共预算资金
A182: [565013]石家庄市二环路管护中心 | B182: 3362 | C182: 3362 | D182: 3362 | E182: 100 | F182: [2121301]城市公共设施 | G182: [50601]资本性支出 | H182: 二环路设施维护经费 | I182: [3]特定目标类 | J182: [121]政府性基金预算资金
A183: [565013]石家庄市二环路管护中心 | B183: 893.04 | C183: 893.04 | D183: 893.04 | E183: 100 | F183: [2121301]城市公共设施 | G183: [50601]资本性支出 | H183: 二环路设施维护经费 | I183: [3]特定目标类 | J183: [121]政府性基金预算资金
A184: [565013]石家庄市二环路管护中心 | B184: 550.09 | C184: 550.09 | D184: 550.09 | E184: 100 | F184: [2120399]其他城乡社区公共设施支出 | G184: [50601]资本性支出 | H184: 二环路设施维护费 | I184: [3]特定目标类 | J184: [111]一般公共预算资金
A185: [565013]石家庄市二环路管护中心 | B185: 2600 | C185: 2600 | D185: 2600 | E185: 100 | F185: [2120399]其他城乡社区公共设施支出 | G185: [50601]资本性支出 | H185: 二环路设施维护费 | I185: [3]特定目标类 | J185: [111]一般公共预算资金
A186: [565013]石家庄市二环路管护中心 | B186: 500 | C186: 0 | D186: 0 | E186: 0 | F186: [2120803]城市建设支出 | G186: [50601]资本性支出 | H186: 北二环路慢行系统改造 | I186: [3]特定目标类 | J186: [121]政府性基金预算资金
A187: [565013]石家庄市二环路管护中心 | B187: 0 | C187: 386.861796 | D187: 386.861796 | E187: 100 | F187: [2120803]城市建设支出 | G187: [50601]资本性支出 | H187: 北二环路慢行系统改造 | I187: [3]特定目标类 | J187: [121]政府性基金预算资金
A188: [565013]石家庄市二环路管护中心 | B188: 0 | C188: 3832 | D188: 3828 | E188: 99.9 | F188: [2121302]城市环境卫生 | G188: [50601]资本性支出 | H188: 环卫作业车辆采购项目 | I188: [3]特定目标类 | J188: [121]政府性基金预算资金
A189: [565013]石家庄市二环路管护中心 | B189: 0 | C189: 110 | D189: 110 | E189: 100 | F189: [2120803]城市建设支出 | G189: [50601]资本性支出 | H189: 二环路铁路地道桥美化亮化工程 | I189: [3]特定目标类 | J189: [121]政府性基金预算资金
A190: [565013]石家庄市二环路管护中心 | B190: 0 | C190: 1046 | D190: 1046 | E190: 100 | F190: [2120803]城市建设支出 | G190: [50601]资本性支出 | H190: 二环中心2023年及以前年度城建项目资金 | I190: [3]特定目标类 | J190: [121]政府性基金预算资金
A191: [565014]石家庄市环境卫生事务中心 | B191: 8.88 | C191: 8.88 | D191: 8.878 | E191: 99.98 | F191: [2120501]城乡社区环境卫生 | G191: [50209]维修（护）费 | H191: 信息化项目运行维护费 | I191: [22]其他运转类 | J191: [111]一般公共预算资金
A192: [565014]石家庄市环境卫生事务中心 | B192: 7.75 | C192: 7.75 | D192: 7.72 | E192: 99.61 | F192: [2120501]城乡社区环境卫生 | G192: [50306]设备购置 | H192: 办公设备购置 | I192: [22]其他运转类 | J192: [111]一般公共预算资金
A193: [565014]石家庄市环境卫生事务中心 | B193: 2.27 | C193: 2.27 | D193: 2.2671 | E193: 99.87 | F193: [2120501]城乡社区环境卫生 | G193: [50299]其他商品和服务支出 | H193: 党组织活动经费 | I193: [22]其他运转类 | J193: [111]一般公共预算资金
A194: [565014]石家庄市环境卫生事务中心 | B194: 325 | C194: 325 | D194: 325 | E194: 100 | F194: [2120501]城乡社区环境卫生 | G194: [50205]委托业务费 | H194: 劳动聘用人员经费 | I194: [3]特定目标类 | J194: [111]一般公共预算资金
A195: [565014]石家庄市环境卫生事务中心 | B195: 1200 | C195: 1200 | D195: 1200 | E195: 100 | F195: [2120501]城乡社区环境卫生 | G195: [50205]委托业务费 | H195: 环境卫生绩效考核奖励资金 | I195: [3]特定目标类 | J195: [111]一般公共预算资金
A196: [565014]石家庄市环境卫生事务中心 | B196: 35.02 | C196: 35.02 | D196: 35.02 | E196: 100 | F196: [2120501]城乡社区环境卫生 | G196: [50201]办公经费 | H196: 支援涿州清运垃圾租用车辆等费用 | I196: [3]特定目标类 | J196: [111]一般公共预算资金
A197: [565014]石家庄市环境卫生事务中心 | B197: 250 | C197: 249.8364 | D197: 249.8364 | E197: 100 | F197: [2120501]城乡社区环境卫生 | G197: [50204]专用材料购置费 | H197: 融雪剂采购资金 | I197: [3]特定目标类 | J197: [111]一般公共预算资金
A198: [565014]石家庄市环境卫生事务中心 | B198: 4530 | C198: 4530 | D198: 4530 | E198: 100 | F198: [2120501]城乡社区环境卫生 | G198: [50701]费用补贴 | H198: 生活垃圾处理补助资金 | I198: [3]特定目标类 | J198: [111]一般公共预算资金
A199: [565014]石家庄市环境卫生事务中心 | B199: 490 | C199: 490 | D199: 490 | E199: 100 | F199: [2120501]城乡社区环境卫生 | G199: [50201]办公经费 | H199: 代收生活垃圾处理费手续费经费 | I199: [3]特定目标类 | J199: [111]一般公共预算资金
A200: [565014]石家庄市环境卫生事务中心 | B200: 55 | C200: 54.968921 | D200: 54.968921 | E200: 100 | F200: [2120501]城乡社区环境卫生 | G200: [50209]维修（护）费 | H200: 环境卫生事务专项业务经费 | I200: [3]特定目标类 | J200: [111]一般公共预算资金
... 124 more rows

Sheet Sheet2 (hidden)
A1: 附件6
A2: 部门绩效自评结果公开汇总表
A4: 主管部门：石家庄市城市管理综合行政执法局 | J4: 单位：万元 | M4: 已报送 | N4: 未报送 | O4: 重点自评
A5: 序号 | B5: 项目名称 | C5: 项目实施单位 | D5: 预算数（调整后） | G5: 执行数（至2024年底） | I5: 结余数 | J5: 结余交回财政数 | K5: 自评得分 | L5: 自评结果应用意见
D6: 中央 | E6: 省级 | F6: 市级 | G6: 市级 | H6: 县（市）区级
A7: 1 | B7: 既有燃气管道用户加装安全装置经费 | C7: 石家庄市城市管理综合行政执法局系统 | F7: 1000 | H7: 1000 | I7: =D7+E7+F7-G7-H7 -> 0 | J7: =I7 -> 0 | M7: 燃热科 | O7: 重点自评
A8: 2 | B8: 环卫工人协助管理非机动车停放秩序奖补资金 | C8: 石家庄市城市管理综合行政执法局系统 | F8: 2960 | H8: 499 | I8: 2461 | J8: 2461 | M8: 市容科 | O8: 重点自评
A9: 3 | B9: 中央大气污染防治资金 | C9: 石家庄市城市管理综合行政执法局系统 | D9: 6082.3 | H9: 6082.3 | I9: 0 | J9: 0 | M9: 双代办 | O9: 重点自评
A10: 4 | B10: 仓丰东路雨水泵站新建工程国债项目 | C10: 石家庄市城市管理综合行政执法局本级 | D10: 4705 | E10: 235.25 | F10: 177.75 | G10: 3993.37 | I10: =D10+E10+F10-G10 -> 1124.63 | J10: 1124.63 | M10: 市政科 | O10: 重点自评
A11: 5 | B11: 东南退水明渠建设国债项目 | C11: 石家庄市城市管理综合行政执法局本级 | D11: 134709 | E11: 3367.72 | F11: 40035.37 | G11: 109813.31 | I11: 68298.78 | J11: 68298.78 | M11: 市政科 | O11: 重点自评
A12: 6 | B12: 明珠街、石铜路、槐中路雨水调蓄设施新建工程国债项目 | C12: 石家庄市城市管理综合行政执法局本级 | D12: 10443 | E12: 522.15 | F12: 2088.85 | G12: 7411.09 | I12: 5642.91 | J12: 5642.91 | M12: 市政科 | O12: 重点自评
A13: 7 | B13: 石家庄市移动排涝能力提升项目国债项目 | C13: 石家庄市城市管理综合行政执法局本级 | D13: 28756 | E13: 1437.8 | F13: 5752.2 | G13: 34829.8 | I13: 1116.2 | J13: 1116.2 | M13: 市政科 | O13: 重点自评
A14: 8 | B14: 雨水调蓄设施建设工程国债项目 | C14: 石家庄市城市管理综合行政执法局本级 | D14: 30652 | E14: 1532.6 | F14: 6131.4 | G14: 24562.02 | I14: 13753.98 | J14: 13753.98 | M14: 市政科 | O14: 重点自评
A15: 9 | B15: 市区积水点整治工程国债项目 | C15: 石家庄市城市管理综合行政执法局本级 | D15: 3478 | E15: 173.9 | F15: 696.1 | G15: 3178.45 | I15: 1169.55 | J15: 1169.55 | M15: 市政科 | O15: 重点自评
A16: 10 | B16: 四支渠（新华路-南泄洪渠）新建工程国债项目 | C16: 石家庄市城市管理综合行政执法局本级 | D16: 47548 | E16: 1188.7 | F16: 1263.3 | G16: 28347.67 | I16: 21652.33 | J16: 21652.33 | M16: 市政科 | O16: 重点自评
A17: 11 | B17: 农机街泵站新建工程国债项目 | C17: 石家庄市城市管理综合行政执法局本级 | D17: 7142 | E17: 357.1 | F17: 1429 | G17: 6472.97 | I17: 2455.13 | J17: 2455.13 | M17: 市政科 | O17: 重点自评
A18: 14 | B18: 排水管网改造项目经费（桥西区四项工程） | C18: 石家庄市城市管理综合行政执法局本级 | F18: 2166.38 | I18: 2166.38 | J18: 2166.38 | M18: 防汛办 | O18: 重点自评
A19: 15 | B19: 排水管网改造项目经费（新华区五项工程） | C19: 石家庄市城市管理综合行政执法局本级 | F19: 1021.31 | I19: 1021.31 | J19: 1021.31 | M19: 防汛办 | O19: 重点自评
A20: 16 | B20: 育才街(和平路-方北路、裕华路-民心河)雨污水提升改造工程经费 | C20: 石家庄市城市管理综合行政执法局本级 | F20: 1952.3 | I20: 1952.3 | J20: 1952.3 | M20: 防汛办 | O20: 重点自评
A21: 17 | B21: 市区支路增设雨水管道工程经费 | C21: 石家庄市城市管理综合行政执法局本级 | F21: 4493.34 | I21: 4493.34 | J21: 4493.34 | M21: 防汛办 | O21: 重点自评
A22: 18 | B22: 泰华街雨污水干管新建工程经费 | C22: 石家庄市城市管理综合行政执法局本级 | F22: 2175.5 | I22: 2175.5 | J22: 2175.5 | M22: 防汛办 | O22: 重点自评
A23: 30 | B23: 污水污泥处理经费 | C23: 石家庄市城市管理综合行政执法局本级 | F23: 39200.5 | G23: 39198.83 | I23: 1.67 | J23: 1.67 | M23: 供水科 | O23: 重点自评
C24: 石家庄市城市管理综合行政执法局本级
A25: 12 | B25: 农机街泵站新建工程国债项目征地费用市级补助 | C25: 石家庄市城市管理综合行政执法局本级 | F25: 2667 | G25: 2667 | I25: =D25+E25+F25-G25 -> 0 | J25: =I25 -> 0 | M25: 市政科
A26: 13 | B26: 仓丰东路雨水泵站新建工程国债项目征地费用市级补助 | C26: 石家庄市城市管理综合行政执法局本级 | F26: 1432 | G26: 1002 | I26: 430 | J26: 430 | M26: 市政科
B27: 2024年城市更新行动城市建设项目 | C27: 石家庄市城市管理综合行政执法局本级 | F27: 20000
A28: 31 | B28: 液化气居民用户安装物联报警器 和自动切断装置项目 | C28: 石家庄市城市管理综合行政执法局本级 | D28: 1917 | G28: 12.78 | I28: 1904.22 | J28: 1904.22 | M28: 燃热科
A29: 32 | B29: 2023年城管局机关城建项目资金 | C29: 石家庄市城市管理综合行政执法局本级 | F29: 151.85 | G29: 151.85 | I29: 0 | J29: 0 | M29: 景观科
A30: 33 | B30: DLP高清拼接屏采购项目尾款 | C30: 石家庄市城市管理综合行政执法局本级 | F30: 94.77 | G30: 94.77 | I30: 0 | J30: 0 | M30: 市容科
A31: 34 | B31: 安全生产监督工作经费 | C31: 石家庄市城市管理综合行政执法局本级 | F31: 15 | G31: 15 | I31: 0 | J31: 0 | M31: 安全科
A32: 35 | B32: 城区防汛汛期应急指挥车租赁经费 | C32: 石家庄市城市管理综合行政执法局本级 | F32: 10.2 | G32: 10.2 | I32: 0 | J32: 0 | M32: 办公室
A33: 36 | B33: 城市运营中心场地租用费 | C33: 石家庄市城市管理综合行政执法局本级 | F33: 61 | G33: 61 | I33: 0 | J33: 0 | M33: 燃热科
A34: 37 | B34: 党组织活动经费 | C34: 石家庄市城市管理综合行政执法局本级 | F34: 9.17 | G34: 9.17 | I34: 0 | J34: 0 | M34: 党办
A35: 38 | B35: 电梯运维费 | C35: 石家庄市城市管理综合行政执法局本级 | F35: 1.4 | G35: 1.4 | I35: 0 | J35: 0 | M35: 办公室
A36: 39 | B36: 供水水质监测经费 | C36: 石家庄市城市管理综合行政执法局本级 | F36: 10 | G36: 10 | I36: 0 | J36: 0 | M36: 供水科
A37: 40 | B37: 国家节水型城市复查迎检工作经费 | C37: 石家庄市城市管理综合行政执法局本级 | F37: 85.1 | G37: 85.1 | I37: 0 | J37: 0 | M37: 供水科
A38: 41 | B38: 绿色社区创建三年行动办公室工作经费 | C38: 石家庄市城市管理综合行政执法局本级 | F38: 33.02 | G38: 33.02 | I38: 0 | J38: 0 | M38: 创绿办
A39: 42 | B39: 生活垃圾分类运行经费 | C39: 石家庄市城市管理综合行政执法局本级 | F39: 58.99 | G39: 58.99 | I39: 0 | J39: 0 | M39: 垃分办
A40: 43 | B40: 生活垃圾分类运行资金 | C40: 石家庄市城市管理综合行政执法局本级 | F40: 20 | G40: 20 | I40: 0 | J40: 0 | M40: 垃分办
A41: 44 | B41: 市渣土办工作经费 | C41: 石家庄市城市管理综合行政执法局本级 | F41: 36.8 | G41: 36.8 | I41: 0 | J41: 0 | M41: 渣土科
A42: 45 | B42: 污水处理补贴资金 | C42: 石家庄市城市管理综合行政执法局本级 | F42: 15846 | G42: 15846 | I42: 0 | J42: 0 | M42: 供水科
A43: 46 | B43: 污水处理费代征手续费 | C43: 石家庄市城市管理综合行政执法局本级 | F43: 345 | G43: 345 | I43: 0 | J43: 0 | M43: 供水科
A44: 47 | B44: 物业管理费 | C44: 石家庄市城市管理综合行政执法局本级 | F44: 25.55 | G44: 25.55 | I44: 0 | J44: 0 | M44: 办公室
A45: 48 | B45: 执法制式服装费尾款 | C45: 石家庄市城市管理综合行政执法局本级 | F45: 5.71 | G45: 5.71 | I45: 0 | J45: 0 | M45: 执法科
A46: 49 | B46: 文件资料印刷费 | C46: 石家庄市城市管理综合行政执法局本级 | F46: 11 | G46: 10.99 | I46: 0.01 | J46: 0.01 | M46: 办公室
A47: 50 | B47: 专用设备维修费 | C47: 石家庄市城市管理综合行政执法局本级 | F47: 30 | G47: 29.99 | I47: 0.01 | J47: 0.01 | M47: 办公室
A48: 51 | B48: 防汛经费 | C48: 石家庄市城市管理综合行政执法局本级 | F48: 29.98 | G48: 29.83 | I48: 0.15 | J48: 0.15 | M48: 防汛办
A49: 52 | B49: 生活垃圾分类工作经费 | C49: 石家庄市城市管理综合行政执法局本级 | F49: 100 | G49: 99.8 | I49: 0.2 | J49: 0.2 | M49: 垃分办
A50: 53 | B50: 城市更新示范城市申报工作专班工作经费 | C50: 石家庄市城市管理综合行政执法局本级 | F50: 16.25 | G50: 15.93 | I50: 0.32 | J50: 0.32 | M50: 供水科
A51: 54 | B51: 城管全民动员大会及宣传活动经费 | C51: 石家庄市城市管理综合行政执法局本级 | F51: 39.43 | G51: 38.57 | I51: 0.86 | J51: 0.86 | M51: 办公室
A52: 55 | B52: 双代办第三方评估监督经费 | C52: 石家庄市城市管理综合行政执法局本级 | F52: 30 | G52: 28.36 | I52: 1.64 | J52: 1.64 | M52: 双代办
A53: 56 | B53: 业务培训费 | C53: 石家庄市城市管理综合行政执法局本级 | F53: 40 | G53: 37.36 | I53: 2.64 | J53: 2.64 | M53: 财务科
A54: 57 | B54: 市双代办工作经费 | C54: 石家庄市城市管理综合行政执法局本级 | F54: 33.19 | G54: 30.27 | I54: 2.92 | J54: 2.92 | M54: 双代办
A55: 58 | B55: 普法工作经费 | C55: 石家庄市城市管理综合行政执法局本级 | F55: 39 | G55: 32.7 | I55: 6.3 | J55: 6.3 | M55: 法规科
A56: 59 | B56: 正太广场、解放广场及周边区域管理办公室工作经费 | C56: 石家庄市城市管理综合行政执法局本级 | F56: 23.52 | G56: 22.6 | I56: 0.92 | J56: 0.92 | M56: 正太广场
A57: 60 | B57: 市景观办工作经费 | C57: 石家庄市城市管理综合行政执法局本级 | F57: 52.9 | G57: 40.84 | I57: 12.06 | J57: 12.06 | M57: 景观办
A58: 61 | B58: 特许经营项目咨询服务经费 | C58: 石家庄市城市管理综合行政执法局本级 | F58: 30 | G58: 17.82 | I58: 12.18 | J58: 12.18 | M58: 供水科
A59: 62 | B59: 户外广告拍卖方案编制经费 | C59: 石家庄市城市管理综合行政执法局本级 | F59: 30 | G59: 14.5 | I59: 15.5 | J59: 15.5 | M59: 市容科
A60: 63 | B60: 办公设备购置 | C60: 石家庄市城市管理综合行政执法局本级 | F60: 82 | G60: 65.62 | I60: 16.38 | J60: 16.38 | M60: 办公室
A61: 64 | B61: 海绵城市方案编制及海绵办工作经费 | C61: 石家庄市城市管理综合行政执法局本级 | F61: 34.02 | G61: 16.19 | I61: 17.83 | J61: 17.83 | M61: 海绵办
A62: 65 | B62: 给水、污水再生利用工程两项规划编制经费 | C62: 石家庄市城市管理综合行政执法局本级 | F62: 208 | G62: 186.54 | I62: 21.46 | J62: 21.46 | M62: 供水科
A63: 66 | B63: 环卫工人意外伤害救助金 | C63: 石家庄市城市管理综合行政执法局本级 | F63: 43.81 | G63: 10.38 | I63: 33.43 | J63: 33.43 | M63: 环卫监督科
A64: 67 | B64: 城市宣传费 | C64: 石家庄市城市管理综合行政执法局本级 | F64: 80 | G64: 39.9 | I64: 40.1 | J64: 40.1 | M64: 宣传科
A65: 68 | B65: 建设南大街35号院前楼修缮项目资金 | C65: 石家庄市城市管理综合行政执法局本级 | F65: 80 | G65: 38.25 | I65: 41.75 | J65: 41.75 | M65: 办公室
A66: 69 | B66: 城市管理运行经费 | C66: 石家庄市城市管理综合行政执法局本级 | F66: 50.87 | G66: 0 | I66: 50.87 | J66: 50.87 | M66: 财务科
A67: 70 | B67: 业务咨询委托费 | C67: 石家庄市城市管理综合行政执法局本级 | F67: 138.68 | G67: 62.31 | I67: 76.37 | J67: 76.37 | M67: 财务科
A68: 71 | B68: 地下市政设施普查经费 | C68: 石家庄市城市管理综合行政执法局本级 | F68: 100 | G68: 0 | I68: 100 | J68: 100 | M68: 市政科
A69: 72 | B69: 正太广场、解放广场及周边区域管护资金 | C69: 石家庄市城市管理综合行政执法局本级 | F69: 264.33 | G69: 139.52 | I69: 124.81 | J69: 124.81 | M69: 正太广场
A70: 73 | B70: 中华大街景观提升工程 | C70: 石家庄市城市管理综合行政执法局本级 | F70: 151 | G70: 0 | I70: 151 | J70: 151 | M70: 景观办
A71: 74 | B71: 2024年生活垃圾分类运行费用 | C71: 石家庄市城市管理综合行政执法局本级 | F71: 180 | G71: 35.88 | I71: 144.12 | J71: 144.12 | M71: 垃分办
A72: 75 | B72: 垃圾监测整治经费 | C72: 石家庄市城市管理综合行政执法局本级 | F72: 450 | G72: 183.52 | I72: 266.48 | J72: 266.48 | M72: 环卫监督科
A73: 76 | B73: 公益广告设置经费 | C73: 石家庄市城市管理综合行政执法局本级 | F73: 300 | G73: 0 | I73: 300 | J73: 300 | M73: 市容科
A74: 77 | B74: 城市地下市政基础设施普查工作经费 | C74: 石家庄市城市管理综合行政执法局本级 | F74: 600 | G74: 0 | I74: 600 | J74: 600 | M74: 市政科
A75: 78 | B75: 城管局机关2023年及以前年度城建项目资金 | C75: 石家庄市城市管理综合行政执法局本级 | F75: 2391 | G75: 1294.2 | I75: 1096.8 | J75: 1096.8 | M75: 景观科
A76: 79 | B76: 平安大街提升工程 | C76: 石家庄市城市管理综合行政执法局本级 | F76: 3300 | G76: 930 | I76: 2370 | J76: 2370 | M76: 景观科
D77: =SUBTOTAL(9,D7:D76) -> 275432.3 | E77: 8815.22 | F77: 162410.84 | G77: 281750.72
A78: 1 | B78: 党组织活动经费 | C78: 石家庄市市容环卫服务中心 | F78: 0.76 | G78: 0.75 | I78: 0.01 | J78: 0.01 | K78: 99.87
A79: 2 | B79: 办公设备购置 | C79: 石家庄市市容环卫服务中心 | F79: 1.59 | G79: 1.59 | I79: 0 | J79: 0 | K79: 100
A80: 3 | B80: 物业管理费 | C80: 石家庄市市容环卫服务中心 | F80: 11.98 | G80: 11.98 | I80: 0 | J80: 0 | K80: 100
A81: 4 | B81: 冬季融雪及移动公厕运行经费 | C81: 石家庄市市容环卫服务中心 | F81: 57 | G81: 57 | I81: 0 | J81: 0 | K81: 100
A82: 5 | B82: 事业单位更新电脑设备经费 | C82: 石家庄市市容环卫服务中心 | F82: 1.33 | G82: 1.33 | I82: 0 | J82: 0 | K82: 100
F83: =SUM(F78:F82) -> 72.66 | G83: =SUM(G78:G82) -> 72.65
A84: 1 | B84: 党组织活动经费 | C84: 石家庄市环境卫生事务中心 | F84: 2.27 | G84: 2.27 | I84: 0 | J84: 0 | K84: 100
A85: 2 | B85: 办公设备购置 | C85: 石家庄市环境卫生事务中心 | F85: 7.75 | G85: 7.72 | I85: 0.03 | J85: 0.03 | K85: 99.96
A86: 3 | B86: 信息化项目运行维护费 | C86: 石家庄市环境卫生事务中心 | F86: 8.88 | G86: 8.88 | I86: 0 | J86: 0 | K86: 100
A87: 4 | B87: 代收生活垃圾处理费手续费经费 | C87: 石家庄市环境卫生事务中心 | F87: 490 | G87: 490 | I87: 0 | J87: 0 | K87: 99.64
A88: 5 | B88: 生活垃圾处理补助资金 | C88: 石家庄市环境卫生事务中心 | F88: 13700 | G88: 13700 | I88: 0 | J88: 0 | K88: 99.75 | O88: 重点自评
A89: 6 | B89: 环境卫生绩效考核奖励资金 | C89: 石家庄市环境卫生事务中心 | F89: 1200 | G89: 1200 | I89: 0 | J89: 0 | K89: 100 | O89: 重点自评
A90: 7 | B90: 环境卫生事务专项业务经费 | C90: 石家庄市环境卫生事务中心 | F90: 54.97 | G90: 54.97 | I90: 0 | J90: 0 | K90: 100
A91: 8 | B91: 环卫维护资金 | C91: 石家庄市环境卫生事务中心 | F91: 551.94 | G91: 547.74 | I91: 4.2 | J91: 4.2 | K91: 99.92
A92: 9 | B92: 物业管理费 | C92: 石家庄市环境卫生事务中心 | F92: 20 | G92: 20 | I92: 0 | J92: 0 | K92: 100
A93: 10 | B93: 加固改造办公楼资金 | C93: 石家庄市环境卫生事务中心 | F93: 300 | G93: 300 | I93: 0 | J93: 0 | K93: 100
A94: 11 | B94: 事业单位更新电脑设备经费 | C94: 石家庄市环境卫生事务中心 | F94: 7.04 | G94: 7.04 | I94: 0 | J94: 0 | K94: 100
A95: 12 | B95: 融雪剂采购资金 | C95: 石家庄市环境卫生事务中心 | F95: 249.84 | G95: 249.84 | I95: 0 | J95: 0 | K95: 100
A96: 13 | B96: 支援涿州清运垃圾租用车辆等费用 | C96: 石家庄市环境卫生事务中心 | F96: 35.02 | G96: 35.02 | I96: 0 | J96: 0 | K96: 100
A97: 14 | B97: 劳动聘用人员经费 | C97: 石家庄市环境卫生事务中心 | F97: 325 | G97: 325 | I97: 0 | J97: 0 | K97: 100
A98: 15 | B98: 2024年劳动聘用人员经费 | C98: 石家庄市环境卫生事务中心 | F98: 23 | G98: 22.48 | I98: 0.52 | J98: 0.52 | K98: 99.77
F99: =SUM(F84:F98) -> 16975.71 | G99: 16970.96 | H99: 0 | I99: 4.75 | J99: 4.75 | K99: 1499.04
A100: 1 | B100: 办公设备购置 | C100: 石家庄市市容管理考评中心 | F100: 9.84 | G100: 9.84 | I100: 0 | J100: 0 | K100: 100 | L100: 完成较好
A101: 2 | B101: 党组织活动经费 | C101: 石家庄市市容管理考评中心 | F101: 2.19 | G101: 2.18 | I101: 0.01 | J101: 0.01 | K101: 99.96 | L101: 完成较好
A102: 3 | B102: 工作场地租赁费 | C102: 石家庄市市容管理考评中心 | F102: 207.37 | G102: 207.37 | I102: 0 | J102: 0 | K102: 100 | L102: 完成较好
A103: 4 | B103: 数字化城市管理运行经费 | C103: 石家庄市市容管理考评中心 | F103: 1114.11 | G103: 1109.38 | I103: 4.73 | J103: 4.73 | K103: 99.96 | L103: 完成较好 | O103: 重点自评
A104: 5 | B104: 劳动聘用人员经费 | C104: 石家庄市市容管理考评中心 | F104: 1755.9 | G104: 1755.9 | I104: 0 | J104: 0 | K104: 99.64 | L104: 完成较好 | O104: 重点自评
A105: 6 | B105: 2024年劳动聘用人员经费 | C105: 石家庄市市容管理考评中心 | F105: 168.8 | G105: 147.51 | I105: 21.29 | J105: 21.29 | K105: 98.62 | L105: 完成较好
F106: =SUM(F100:F105) -> 3258.21 | G106: 3232.18 | H106: 0 | I106: 26.03 | J106: 26.03 | K106: 598.18
A107: 1 | B107: 党组织活动经费 | C107: 石家庄市道桥设施管护中心 | F107: 3.86 | G107: 3.86 | I107: 0 | J107: 0 | K107: 100 | L107: 完成较好
A108: 2 | B108: 办公设备购置资金 | C108: 石家庄市道桥设施管护中心 | F108: 4 | G108: 4 | I108: 0 | J108: 0 | K108: 100 | L108: 完成较好
A109: 3 | B109: 信息化项目运行维护费 | C109: 石家庄市道桥设施管护中心 | F109: 6 | G109: 6 | I109: 0 | J109: 0 | K109: 100 | L109: 完成较好
A110: 4 | B110: 机关公务用车租赁费 | C110: 石家庄市道桥设施管护中心 | F110: 11.54 | G110: 4.8 | I110: 6.74 | J110: 6.74 | K110: 94 | L110: 完成较好
A111: 5 | B111: 道桥管护中心桥涵所办公区及桥梁检测站加固维修经费 | C111: 石家庄市道桥设施管护中心 | F111: 21.16 | G111: 17.13 | I111: 4.03 | J111: 0 | K111: 98.1 | L111: 完成较好
A112: 6 | B112: 道桥设施管护中心办公楼加固改造及恢复工程经费 | C112: 石家庄市道桥设施管护中心 | F112: 266 | G112: 208.45 | I112: 57.55 | J112: 0 | K112: 97.8 | L112: 完成较好
A113: 7 | B113: 公务用车购置经费 | C113: 石家庄市道桥设施管护中心 | F113: 7.58 | G113: 7.58 | I113: 0 | J113: 0 | K113: 100 | L113: 完成较好
A114: 8 | B114: 道路灾害预警雷达系统尾款 | C114: 石家庄市道桥设施管护中心 | F114: 54.35 | G114: 54.35 | I114: 0 | J114: 0 | K114: 100 | L114: 完成较好
A115: 9 | B115: 事业单位更新电脑设备经费 | C115: 石家庄市道桥设施管护中心 | F115: 29.64 | G115: 29.64 | I115: 0 | J115: 0 | K115: 100 | L115: 完成较好
A116: 10 | B116: 三环路积水点改造项目 | C116: 石家庄市道桥设施管护中心 | D116: 5050 | G116: 2898.94 | I116: 2151.06 | J116: 0 | K116: 95.7 | L116: 完成较好
A117: 11 | B117: 桥梁检测仪器采购资金 | C117: 石家庄市道桥设施管护中心 | F117: 26.67 | G117: 0 | I117: 26.67 | J117: 0 | K117: 0 | L117: 完成一般
A118: 12 | B118: 桥梁巡检升降车采购资金 | C118: 石家庄市道桥设施管护中心 | F118: 120 | G118: 111.44 | I118: 8.56 | J118: 0 | K118: 99.29 | L118: 完成较好
A119: 13 | B119: 掘路修复费 | C119: 石家庄市道桥设施管护中心 | F119: 1483.5 | G119: 1479 | I119: 4.5 | J119: 4.5 | K119: 100 | L119: 完成较好 | O119: 重点自评
A120: 14 | B120: 城市道路桥梁设施维护费 | C120: 石家庄市道桥设施管护中心 | F120: 9427 | G120: 9426.11 | I120: 0.89 | J120: 0.89 | K120: 100 | L120: 完成较好 | O120: 重点自评
A121: 15 | B121: 道桥中心2023年及以前年度城建项目资金 | C121: 石家庄市道桥设施管护中心 | F121: 100 | G121: 100 | I121: 0 | J121: 0 | K121: 100 | L121: 完成较好
F122: =SUM(F107:F121) -> 11561.3 | G122: 14351.3 | H122: 0 | I122: 2260 | J122: 12.13 | K122: 1384.89 | L122: 0
A123: 1 | B123: 党组织活动经费 | C123: 石家庄市城市照明管护中心 | F123: 1.69 | G123: 1.69 | I123: 0 | J123: 0 | K123: 100
A124: 2 | B124: 办公设备购置资金 | C124: 石家庄市城市照明管护中心 | F124: 1.29 | G124: 1.29 | I124: 0 | J124: 0 | K124: 100
A125: 3 | B125: 机关公务用车租赁费 | C125: 石家庄市城市照明管护中心 | F125: 9.36 | G125: 9.36 | I125: 0 | J125: 0 | K125: 100
A126: 4 | B126: 事业单位更新电脑设备经费 | C126: 石家庄市城市照明管护中心 | F126: 7.36 | G126: 7.36 | I126: 0 | J126: 0 | K126: 100
A127: 5 | B127: 照明设施维护经费 | C127: 石家庄市城市照明管护中心 | F127: 7225 | G127: 7225 | I127: 0 | J127: 0 | K127: 100 | O127: 重点自评
A128: 6 | B128: 照明中心2023年及以前年度城建项目资金 | C128: 石家庄市城市照明管护中心 | F128: 1805 | G128: 1805 | I128: 0 | J128: 0 | K128: 100
A129: 7 | B129: 街道照明设施提升工程 | C129: 石家庄市城市照明管护中心 | F129: 350 | G129: 350 | I129: 0 | J129: 0 | K129: 100
A130: 8 | B130: 公益广告设置经费 | C130: 石家庄市城市照明管护中心 | F130: 296 | G130: 296 | I130: 0 | J130: 0 | K130: 100
F131: =SUM(F123:F130) -> 9695.7 | G131: 9695.7 | H131: 0 | I131: 0 | J131: 0 | K131: 800
A132: 1 | B132: 党组织活动经费 | C132: 石家庄市危险废弃物处置场 | F132: 0.31 | G132: 0.31 | I132: 0 | J132: 0 | K132: 100 | L132: 完成较好
A133: 2 | B133: 办公设备购置 | C133: 石家庄市危险废弃物处置场 | F133: 0.5 | G133: 0.5 | I133: 0 | J133: 0 | K133: 100 | L133: 完成较好
A134: 3 | B134: 废旧电池处置运行经费 | C134: 石家庄市危险废弃物处置场 | F134: 66 | G134: 66 | I134: 0 | J134: 0 | K134: 100 | L134: 完成较好
F135: =SUM(F132:F134) -> 66.81 | G135: 66.81 | H135: 0 | I135: 0 | J135: 0 | K135: 300
A136: 1 | B136: 党组织活动经费 | C136: 石家庄市生活固体废弃物处置服务中心 | F136: 0.63 | G136: 0.63 | I136: 0 | J136: 0 | K136: 100
A137: 2 | B137: 公务用车租赁费 | C137: 石家庄市生活固体废弃物处置服务中心 | F137: 17.08 | G137: 17.08 | I137: 0 | J137: 0 | K137: 100
A138: 3 | B138: 办公设备购置 | C138: 石家庄市生活固体废弃物处置服务中心 | F138: 1 | G138: 1 | I138: 0 | J138: 0 | K138: 100
F139: =SUM(F136:F138) -> 18.71 | G139: 18.71 | H139: 0 | I139: 0 | J139: 0 | K139: 300
A140: 1 | B140: 党组织活动经费 | C140: 石家庄市卫生垃圾太行填埋场 | F140: 1.07 | G140: 1.02 | I140: =F140-G140 -> 0.05 | J140: =I140 -> 0.05 | K140: 99.53 | L140: 完成较好
A141: 2 | B141: 办公设备购置 | C141: 石家庄市卫生垃圾太行填埋场 | F141: 0.15 | G141: 0.14 | I141: 0.01 | J141: 0.01 | K141: 99.33 | L141: 完成较好
B142: 生活垃圾卫生填埋运行费 | C142: 石家庄市卫生垃圾太行填埋场 | F142: 295.08 | G142: 295.08 | I142: 0 | J142: 0 | K142: 99.3
A143: 3 | B143: 生活垃圾卫生填埋运行费 | C143: 石家庄市卫生垃圾太行填埋场 | F143: 552.4 | G143: 493.41 | I143: 58.99 | J143: 58.99 | K143: 99.3 | L143: 完成较好
A144: 4 | B144: 事业单位更新电脑设备经费 | C144: 石家庄市卫生垃圾太行填埋场 | F144: 1.48 | G144: 1.32 | I144: 0.16 | J144: 0.16 | K144: 98.92 | L144: 完成较好
F145: =SUM(F140:F144) -> 850.18
A146: 1 | B146: 总退水渠维护费（专项资金） | C146: 石家庄市总退水渠管理所 | F146: 162 | G146: 162 | I146: 0 | J146: 0 | K146: 100
F147: =SUM(F146:F146) -> 162 | G147: 162 | H147: 0 | I147: 0 | J147: 0 | K147: 100
A148: 1 | B148: 党组织活动经费 | C148: 石家庄市二环路管护中心 | F148: 2 | G148: 2 | K148: 100
A149: 2 | B149: 办公设备购置 | C149: 石家庄市二环路管护中心 | F149: 5.27 | G149: 5.27 | K149: 100
A150: 3 | B150: 公务用车租赁费 | C150: 石家庄市二环路管护中心 | F150: 4.38 | G150: 4.38 | K150: 100
A151: 4 | B151: 二环路设施维护费 | C151: 石家庄市二环路管护中心 | F151: 7405.13 | G151: 7405.13 | K151: 100 | O151: 重点自评
A152: 5 | B152: 掘路修复费 | C152: 石家庄市二环路管护中心 | F152: 46.68 | G152: 46.68 | K152: 100
A153: 6 | B153: 二环中心2023年及以前年度城建项目资金 | C153: 石家庄市二环路管护中心 | F153: 1046 | G153: 1046 | K153: 100
A154: 7 | B154: 二环路铁路地道桥美化亮化工程 | C154: 石家庄市二环路管护中心 | F154: 110 | G154: 110 | K154: 100
A155: 8 | B155: 北二环路慢行系统改造 | C155: 石家庄市二环路管护中心 | F155: 500 | G155: 386.86 | I155: 113.14 | J155: 113.14 | K155: 97.7
A156: 9 | B156: 事业单位更新电脑设备经费 | C156: 石家庄市二环路管护中心 | F156: 15.3415 | G156: 15.3415 | K156: 100
A157: 10 | B157: 环卫作业车辆采购项目 | C157: 石家庄市二环路管护中心 | F157: 3832 | G157: 3828 | I157: 4 | J157: 4 | K157: 99.99
F158: =SUM(F148:F157) -> 12966.8015 | G158: 12849.6615 | H158: 0 | I158: 117.14 | J158: 117.14 | K158: 997.69 | L158: 0
A159: 1 | B159: 石家庄市城市管理综合行政执法局 | C159: 执法业务费 | F159: 10.53 | G159: 10.53 | I159: 0 | J159: 0 | K159: 80 | L159: 同意
A160: 2 | B160: 石家庄市城市管理综合行政执法局 | C160: 工作场地租赁费 | F160: 332.89 | G160: 332.77 | I160: 0.12 | J160: 0.12 | K160: 100 | L160: 同意
A161: 3 | B161: 石家庄市城市管理综合行政执法局 | C161: 劳动聘用人员经费 | F161: 529.6 | G161: 529.6 | I161: 0 | J161: 0 | K161: 98 | L161: 同意
A162: 4 | B162: 石家庄市城市管理综合行政执法局 | C162: 物业管理费 | F162: 30 | G162: 29.82 | I162: 0.18 | J162: 0.18 | K162: 99.94 | L162: 同意
A163: 5 | B163: 石家庄市城市管理综合行政执法局 | C163: 党组织活动经费 | F163: 10.97 | G163: 10.66 | I163: 0.31 | J163: 0.31 | K163: 99.72 | L163: 同意
A164: 6 | B164: 石家庄市城市管理综合行政执法局 | C164: 办公设备购置费 | F164: 40 | G164: 39.84 | I164: 0.16 | J164: 0.16 | K164: 99.96 | L164: 同意
A166: 1 | B166: 文件资料印刷费 | C166: 石家庄市燃气中心 | F166: 1.6 | G166: 1.6 | I166: 0 | J166: 0 | K166: 100 | L166: 完成较好
A167: 2 | B167: 第三方燃气风险辨识与安全大讲堂经费 | C167: 石家庄市燃气中心 | F167: 60 | G167: 53.89 | I167: 6.11 | J167: 6.11 | K167: 98.98 | L167: 完成较好
A168: 3 | B168: 劳动聘用人员经费 | C168: 石家庄市燃气中心 | F168: 45.7 | G168: 45.7 | I168: 0 | J168: 0 | K168: 100 | L168: 完成较好
A169: 4 | B169: 2024年劳动聘用人员经费 | C169: 石家庄市燃气中心 | F169: 9.7 | G169: 9.7 | I169: 0 | J169: 0 | K169: 100 | L169: 完成较好
A170: 5 | B170: 专项邮电费 | C170: 石家庄市燃气中心 | F170: 1.8 | G170: 1.8 | I170: 0 | J170: 0 | K170: 100 | L170: 完成较好
A171: 6 | B171: 事业单位更新电脑设备经费 | C171: 石家庄市燃气中心 | F171: 1.48 | G171: 1.48 | I171: 0 | J171: 0 | K171: 100 | L171: 完成较好
A172: 7 | B172: 党组织活动经费 | C172: 石家庄市燃气中心 | F172: 0.39 | G172: 0.39 | I172: 0 | J172: 0 | K172: 100 | L172: 完成较好
A173: 8 | B173: 业务咨询委托费 | C173: 石家庄市燃气中心 | F173: 30 | G173: 29.89 | I173: 0.11 | J173: 0.11 | K173: 100 | L173: 完成较好
A175: 1 | B175: 石家庄市城市管理便民服务中心 | C175: 事业单位更新电脑 | F175: 4.4 | G175: 4.4 | I175: 0 | J175: =I175 -> 0 | K175: 100 | L175: 无
A176: 2 | B176: 石家庄市城市管理便民服务中心 | C176: 办公设备购置 | F176: 2.45 | G176: 2.37 | I176: =F176-G176 -> 0.08 | J176: 0.08 | K176: 100 | L176: 无
A177: 3 | B177: 石家庄市城市管理便民服务中心 | C177: 城管热线运行维护费 | F177: 32 | G177: 31.69 | I177: 0.31 | J177: 0.31 | K177: 99 | L177: 无
A178: 4 | B178: 石家庄市城市管理便民服务中心 | C178: 文件资料印刷费 | F178: 2.1 | G178: 2.07 | I178: 0.03 | J178: 0.03 | K178: 100 | L178: 无
A179: 5 | B179: 石家庄市城市管理便民服务中心 | C179: 党组织活动经费 | F179: 0.28 | G179: 0.26 | I179: 0.02 | J179: 0.02 | K179: 98 | L179: 无
A180: 6 | B180: 石家庄市城市管理便民服务中心 | C180: 业务培训费 | F180: 19 | G180: 18.7 | I180: 0.3 | J180: 0.3 | K180: 100 | L180: 无
A181: 7 | B181: 石家庄市城市管理便民服务中心 | C181: 劳动聘用人员经费 | F181: 151.6 | G181: 151.6 | I181: 0 | J181: 0 | K181: 100 | L181: 无
F182: =SUM(F175:F181) -> 211.83 | G182: 211.09 | H182: 0 | I182: 0.74 | J182: 0.74 | K182: 697
A183: 1 | B183: 党组织活动经费 | C183: 石家庄市供热事务中心 | F183: 0.85 | G183: 0.8 | I183: 0.05 | K183: 99.9 | L183: 无
A184: 2 | B184: 业务咨询委托费 | C184: 石家庄市供热事务中心 | F184: 33.64 | G184: 19.72 | I184: 13.92 | K184: 96 | L184: 无
A185: 3 | B185: 专项邮电费 | C185: 石家庄市供热事务中心 | F185: 6.2 | G185: 6.2 | I185: 0 | K185: 100 | L185: 无
A186: 4 | B186: 物业管理费 | C186: 石家庄市供热事务中心 | F186: 5.5 | G186: 4.74 | I186: 0.76 | K186: 99.9 | L186: 无
A187: 5 | B187: 劳动聘用人员经费 | C187: 石家庄市供热事务中心 | F187: 36.6 | G187: 36.6 | I187: 0 | K187: 100 | L187: 无
A188: 6 | B188: 2024年劳动聘用人员经费 | C188: 石家庄市供热事务中心 | F188: 7.9 | G188: 7.75 | I188: 0.15 | K188: 99.9 | L188: 无
A189: 7 | B189: 市城市集中供热专项规划编制费 | C189: 石家庄市供热事务中心 | F189: 39.36 | G189: 39.36 | I189: 0 | K189: 100 | L189: 无
A190: 8 | B190: 供热智慧管理平台扩容项目质保金 | C190: 石家庄市供热事务中心 | F190: 8.28 | G190: 8.28 | I190: 0 | K190: 100 | L190: 无
A191: 9 | B191: 原热一区域替代锅炉占地经费 | C191: 石家庄市供热事务中心 | F191: 43 | G191: 43 | I191: 0 | K191: 100 | L191: 无
A192: 10 | B192: 主城区供热质量第三方监督服务费 | C192: 石家庄市供热事务中心 | F192: 100 | G192: 77.84 | I192: 22.16 | K192: 99 | L192: 无
A193: 11 | B193: 供热补贴经费 | C193: 石家庄市供热事务中心 | F193: 19320 | G193: 19320 | I193: 0 | K193: 100 | L193: 无
A194: 12 | B194: 供热补贴资金 | C194: 石家庄市供热事务中心 | F194: 13880 | G194: 13880 | I194: 0 | K194: 100 | L194: 无 | O194: 重点自评
A195: 13 | B195: 2022-2023年石热九期燃机机组居民部分供热补贴资金 | C195: 石家庄市供热事务中心 | F195: 8000 | G195: 8000 | I195: 0 | K195: 100 | L195: 无
A196: 14 | B196: 2022-2023年采暖季石热九期燃机机组居民部分供热补贴资金 | C196: 石家庄市供热事务中心 | F196: 6323.45 | G196: 6323.45 | I196: 0 | K196: 100 | L196: 无
A197: 15 | B197: 主城区安装居民室温采集系统经费 | C197: 石家庄市供热事务中心 | F197: 31.69 | G197: 31.69 | I197: 0 | K197: 100 | L197: 无
F198: =SUM(F183:F197) -> 47836.47
A199: 1 | B199: 电梯运维费 | C199: 石家庄市排水管护中心 | F199: 1.4 | G199: 1.4 | I199: 0 | J199: 0 | K199: 100
A200: 2 | B200: 办公设备购置资金 | C200: 石家庄市排水管护中心 | F200: 14.34 | G200: 14.34 | I200: 0 | J200: 0 | K200: 100
A201: 3 | B201: 事业单位更新电脑设备经费 | C201: 石家庄市排水管护中心 | F201: 15.14 | G201: 15.14 | I201: 0 | J201: 0 | K201: 100
A202: 4 | B202: 党组织活动经费 | C202: 石家庄市排水管护中心 | F202: 7 | G202: 7 | I202: 0 | J202: 0 | K202: 100
A203: 5 | B203: 排水设施维护费 | C203: 石家庄市排水管护中心 | F203: 4922.16 | G203: 4922.16 | I203: 0 | J203: 0 | K203: 100 | O203: 重点自评
... 32 more rows

Sheet Sheet3 (hidden)
A1: 序号 | B1: 项目名称 | C1: 项目实施单位 | D1: 预算数（调整后） | G1: 执行数（至2024年底） | I1: 结余数 | J1: 结余交回财政数 | K1: 自评得分 | L1: 自评结果应用意见
D2: 中央 | E2: 省级 | F2: 市级 | G2: 市级 | H2: 县（市）区级 | M2: 已报送 | N2: 未报送 | O2: 重点自评
A3: 附件6
A4: 部门绩效自评结果公开汇总表
A6: 主管部门：石家庄市城市管理综合行政执法局 | J6: 单位：万元 | M6: 已报送 | N6: 未报送 | O6: 重点自评
A7: 序号 | B7: 项目名称 | C7: 项目实施单位 | D7: 预算数（调整后） | G7: 执行数（至2024年底） | I7: 结余数 | J7: 结余交回财政数 | K7: 自评得分 | L7: 自评结果应用意见
D8: 中央 | E8: 省级 | F8: 市级 | G8: 市级 | H8: 县（市）区级
A9: 1 | B9: 既有燃气管道用户加装安全装置经费 | C9: 石家庄市城市管理综合行政执法局系统 | F9: 1000 | H9: 1000 | I9: =D9+E9+F9-G9-H9 -> 0 | J9: =I9 -> 0 | K9: 100 | M9: 燃热科 | O9: 重点自评
A10: 2 | B10: 环卫工人协助管理非机动车停放秩序奖补资金 | C10: 石家庄市城市管理综合行政执法局系统 | F10: 2960 | H10: 499 | I10: 2461 | J10: 2461 | K10: 92 | M10: 市容科 | O10: 重点自评
A11: 3 | B11: 中央大气污染防治资金 | C11: 石家庄市城市管理综合行政执法局系统 | D11: 6082.3 | H11: 6082.3 | I11: 0 | J11: 0 | K11: 100 | M11: 双代办 | O11: 重点自评
A12: 4 | B12: 仓丰东路雨水泵站新建工程国债项目 | C12: 石家庄市城市管理综合行政执法局本级 | D12: 4705 | E12: 235.25 | F12: 177.75 | G12: 3993.37 | I12: =D12+E12+F12-G12 -> 1124.63 | J12: 1124.63 | K12: 97.8 | M12: 市政科 | O12: 重点自评 | P12: =D12+E12+F12 -> 5118
A13: 5 | B13: 东南退水明渠建设国债项目 | C13: 石家庄市城市管理综合行政执法局本级 | D13: 134709 | E13: 3367.72 | F13: 40035.37 | G13: 109813.31 | I13: 68298.78 | J13: 68298.78 | K13: 80.57 | M13: 市政科 | O13: 重点自评
A14: 6 | B14: 明珠街、石铜路、槐中路雨水调蓄设施新建工程国债项目 | C14: 石家庄市城市管理综合行政执法局本级 | D14: 10443 | E14: 522.15 | F14: 2088.85 | G14: 7411.09 | I14: 5642.91 | J14: 5642.91 | K14: 95.68 | M14: 市政科 | O14: 重点自评
A15: 7 | B15: 石家庄市移动排涝能力提升项目国债项目 | C15: 石家庄市城市管理综合行政执法局本级 | D15: 28756 | E15: 1437.8 | F15: 5752.2 | G15: 34829.8 | I15: 1116.2 | J15: 1116.2 | K15: 100 | M15: 市政科 | O15: 重点自评
A16: 8 | B16: 雨水调蓄设施建设工程国债项目 | C16: 石家庄市城市管理综合行政执法局本级 | D16: 30652 | E16: 1532.6 | F16: 6131.4 | G16: 24562.02 | I16: 13753.98 | J16: 13753.98 | K16: 96.41 | M16: 市政科 | O16: 重点自评
A17: 9 | B17: 市区积水点整治工程国债项目 | C17: 石家庄市城市管理综合行政执法局本级 | D17: 3478 | E17: 173.9 | F17: 696.1 | G17: 3178.45 | I17: 1169.55 | J17: 1169.55 | K17: 97.31 | M17: 市政科 | O17: 重点自评
A18: 10 | B18: 四支渠（新华路-南泄洪渠）新建工程国债项目 | C18: 石家庄市城市管理综合行政执法局本级 | D18: 47548 | E18: 1188.7 | F18: 1263.3 | G18: 28347.67 | I18: 21652.33 | J18: 21652.33 | K18: 85.87 | M18: 市政科 | O18: 重点自评
A19: 11 | B19: 农机街泵站新建工程国债项目 | C19: 石家庄市城市管理综合行政执法局本级 | D19: 7142 | E19: 357.1 | F19: 1429 | G19: 6472.97 | I19: 2455.13 | J19: 2455.13 | K19: 97.25 | M19: 市政科 | O19: 重点自评
A20: 12 | B20: 排水管网改造项目经费（桥西区四项工程） | C20: 石家庄市城市管理综合行政执法局本级 | F20: 2166.38 | I20: 2166.38 | J20: 2166.38 | K20: 80 | M20: 防汛办 | O20: 重点自评
A21: 13 | B21: 排水管网改造项目经费（新华区五项工程） | C21: 石家庄市城市管理综合行政执法局本级 | F21: 1021.31 | I21: 1021.31 | J21: 1021.31 | K21: 80 | M21: 防汛办 | O21: 重点自评
A22: 14 | B22: 育才街(和平路-方北路、裕华路-民心河)雨污水提升改造工程经费 | C22: 石家庄市城市管理综合行政执法局本级 | F22: 1952.3 | I22: 1952.3 | J22: 1952.3 | K22: 80 | M22: 防汛办 | O22: 重点自评
A23: 15 | B23: 市区支路增设雨水管道工程经费 | C23: 石家庄市城市管理综合行政执法局本级 | F23: 4493.34 | I23: 4493.34 | J23: 4493.34 | K23: 80 | M23: 防汛办 | O23: 重点自评
A24: 16 | B24: 泰华街雨污水干管新建工程经费 | C24: 石家庄市城市管理综合行政执法局本级 | F24: 2175.5 | I24: 2175.5 | J24: 2175.5 | K24: 80 | M24: 防汛办 | O24: 重点自评
A25: 17 | B25: 污水污泥处理经费 | C25: 石家庄市城市管理综合行政执法局本级 | F25: 39200.5 | G25: 39198.83 | I25: 1.67 | J25: 1.67 | K25: 100 | M25: 供水科 | O25: 重点自评
A26: 18 | B26: 农机街泵站新建工程国债项目征地费用市级补助 | C26: 石家庄市城市管理综合行政执法局本级 | F26: 2667 | G26: 2667 | I26: 0 | J26: 0 | K26: 100 | M26: 市政科
A27: 19 | B27: 仓丰东路雨水泵站新建工程国债项目征地费用市级补助 | C27: 石家庄市城市管理综合行政执法局本级 | F27: 1432 | G27: 1002 | I27: 430 | J27: 430 | K27: 97 | M27: 市政科
A28: 20 | B28: 2024年城市更新行动城市建设项目 | C28: 石家庄市城市管理综合行政执法局本级 | F28: 20000 | K28: 78
A29: 21 | B29: 液化气居民用户安装物联报警器 和自动切断装置项目 | C29: 石家庄市城市管理综合行政执法局本级 | D29: 1917 | G29: 12.78 | I29: =D29+E29+F29-G29 -> 1904.22 | J29: =I29 -> 1904.22 | K29: 82 | M29: 燃热科
A30: 22 | B30: 2023年城管局机关城建项目资金 | C30: 石家庄市城市管理综合行政执法局本级 | F30: 151.85 | G30: 151.85 | I30: 0 | J30: 0 | K30: 95.4 | M30: 景观科
A31: 23 | B31: DLP高清拼接屏采购项目尾款 | C31: 石家庄市城市管理综合行政执法局本级 | F31: 94.77 | G31: 94.77 | I31: 0 | J31: 0 | K31: 100 | M31: 市容科
A32: 24 | B32: 安全生产监督工作经费 | C32: 石家庄市城市管理综合行政执法局本级 | F32: 15 | G32: 15 | I32: 0 | J32: 0 | K32: 100 | M32: 安全科
A33: 25 | B33: 城区防汛汛期应急指挥车租赁经费 | C33: 石家庄市城市管理综合行政执法局本级 | F33: 10.2 | G33: 10.2 | I33: 0 | J33: 0 | K33: 100 | M33: 办公室
A34: 26 | B34: 城市运营中心场地租用费 | C34: 石家庄市城市管理综合行政执法局本级 | F34: 61 | G34: 61 | I34: 0 | J34: 0 | K34: 100 | M34: 燃热科
A35: 27 | B35: 党组织活动经费 | C35: 石家庄市城市管理综合行政执法局本级 | F35: 9.17 | G35: 9.17 | I35: 0 | J35: 0 | K35: 100 | M35: 党办
A36: 28 | B36: 电梯运维费 | C36: 石家庄市城市管理综合行政执法局本级 | F36: 1.4 | G36: 1.4 | I36: 0 | J36: 0 | K36: 100 | M36: 办公室
A37: 29 | B37: 供水水质监测经费 | C37: 石家庄市城市管理综合行政执法局本级 | F37: 10 | G37: 10 | I37: 0 | J37: 0 | K37: 100 | M37: 供水科
A38: 30 | B38: 国家节水型城市复查迎检工作经费 | C38: 石家庄市城市管理综合行政执法局本级 | F38: 85.1 | G38: 85.1 | I38: 0 | J38: 0 | K38: 99 | M38: 供水科
A39: 31 | B39: 绿色社区创建三年行动办公室工作经费 | C39: 石家庄市城市管理综合行政执法局本级 | F39: 33.02 | G39: 33.02 | I39: 0 | J39: 0 | K39: 100 | M39: 创绿办
A40: 32 | B40: 生活垃圾分类运行经费 | C40: 石家庄市城市管理综合行政执法局本级 | F40: 58.99 | G40: 58.99 | I40: 0 | J40: 0 | K40: 100 | M40: 垃分办
A41: 33 | B41: 生活垃圾分类运行资金 | C41: 石家庄市城市管理综合行政执法局本级 | F41: 20 | G41: 20 | I41: 0 | J41: 0 | K41: 100 | M41: 垃分办
A42: 34 | B42: 市渣土办工作经费 | C42: 石家庄市城市管理综合行政执法局本级 | F42: 36.8 | G42: 36.8 | I42: 0 | J42: 0 | K42: 100 | M42: 渣土科
A43: 35 | B43: 污水处理补贴资金 | C43: 石家庄市城市管理综合行政执法局本级 | F43: 15846 | G43: 15846 | I43: 0 | J43: 0 | K43: 100 | M43: 供水科
A44: 36 | B44: 污水处理费代征手续费 | C44: 石家庄市城市管理综合行政执法局本级 | F44: 345 | G44: 345 | I44: 0 | J44: 0 | K44: 100 | M44: 供水科
A45: 37 | B45: 物业管理费 | C45: 石家庄市城市管理综合行政执法局本级 | F45: 25.55 | G45: 25.55 | I45: 0 | J45: 0 | K45: 100 | M45: 办公室
A46: 38 | B46: 执法制式服装费尾款 | C46: 石家庄市城市管理综合行政执法局本级 | F46: 5.71 | G46: 5.71 | I46: 0 | J46: 0 | M46: 执法科
A47: 39 | B47: 文件资料印刷费 | C47: 石家庄市城市管理综合行政执法局本级 | F47: 11 | G47: 10.99 | I47: 0.01 | J47: 0.01 | K47: 100 | M47: 办公室
A48: 40 | B48: 专用设备维修费 | C48: 石家庄市城市管理综合行政执法局本级 | F48: 30 | G48: 29.98 | I48: 0.02 | J48: 0.02 | K48: 100 | M48: 办公室
A49: 41 | B49: 防汛经费 | C49: 石家庄市城市管理综合行政执法局本级 | F49: 29.98 | G49: 29.83 | I49: 0.15 | J49: 0.15 | K49: 100 | M49: 防汛办
A50: 42 | B50: 生活垃圾分类工作经费 | C50: 石家庄市城市管理综合行政执法局本级 | F50: 100 | G50: 99.8 | I50: 0.2 | J50: 0.2 | K50: 100 | M50: 垃分办
A51: 43 | B51: 城市更新示范城市申报工作专班工作经费 | C51: 石家庄市城市管理综合行政执法局本级 | F51: 16.25 | G51: 15.93 | I51: 0.32 | J51: 0.32 | K51: 99.8 | M51: 供水科
A52: 44 | B52: 城管全民动员大会及宣传活动经费 | C52: 石家庄市城市管理综合行政执法局本级 | F52: 39.43 | G52: 38.57 | I52: 0.86 | J52: 0.86 | K52: 99.8 | M52: 办公室
A53: 45 | B53: 双代办第三方评估监督经费 | C53: 石家庄市城市管理综合行政执法局本级 | F53: 30 | G53: 28.36 | I53: 1.64 | J53: 1.64 | K53: 99.45 | M53: 双代办
A54: 46 | B54: 业务培训费 | C54: 石家庄市城市管理综合行政执法局本级 | F54: 40 | G54: 37.36 | I54: 2.64 | J54: 2.64 | K54: 99.3 | M54: 财务科
A55: 47 | B55: 市双代办工作经费 | C55: 石家庄市城市管理综合行政执法局本级 | F55: 33.19 | G55: 30.27 | I55: 2.92 | J55: 2.92 | K55: 99.12 | M55: 双代办
A56: 48 | B56: 普法工作经费 | C56: 石家庄市城市管理综合行政执法局本级 | F56: 39 | G56: 32.7 | I56: 6.3 | J56: 6.3 | K56: 98.4 | M56: 法规科
A57: 49 | B57: 正太广场、解放广场及周边区域管理办公室工作经费 | C57: 石家庄市城市管理综合行政执法局本级 | F57: 23.52 | G57: 22.6 | I57: 0.92 | J57: 0.92 | K57: 99.6 | M57: 正太广场
A58: 50 | B58: 市景观办工作经费 | C58: 石家庄市城市管理综合行政执法局本级 | F58: 52.9 | G58: 40.84 | I58: 12.06 | J58: 12.06 | K58: 98 | M58: 景观办
A59: 51 | B59: 特许经营项目咨询服务经费 | C59: 石家庄市城市管理综合行政执法局本级 | F59: 30 | G59: 17.82 | I59: 12.18 | J59: 12.18 | K59: 96 | M59: 供水科
A60: 52 | B60: 户外广告拍卖方案编制经费 | C60: 石家庄市城市管理综合行政执法局本级 | F60: 30 | G60: 14.5 | I60: 15.5 | J60: 15.5 | K60: 95 | M60: 市容科
A61: 53 | B61: 办公设备购置 | C61: 石家庄市城市管理综合行政执法局本级 | F61: 82 | G61: 65.62 | I61: 16.38 | J61: 16.38 | K61: 98 | M61: 办公室
A62: 54 | B62: 海绵城市方案编制及海绵办工作经费 | C62: 石家庄市城市管理综合行政执法局本级 | F62: 34.02 | G62: 16.19 | I62: 17.83 | J62: 17.83 | K62: 94 | M62: 海绵办
A63: 55 | B63: 给水、污水再生利用工程两项规划编制经费 | C63: 石家庄市城市管理综合行政执法局本级 | F63: 208 | G63: 186.54 | I63: 21.46 | J63: 21.46 | K63: 99 | M63: 供水科
A64: 56 | B64: 环卫工人意外伤害救助金 | C64: 石家庄市城市管理综合行政执法局本级 | F64: 43.81 | G64: 10.38 | I64: 33.43 | J64: 33.43 | K64: 92.4 | M64: 环卫监督科
A65: 57 | B65: 城市宣传费 | C65: 石家庄市城市管理综合行政执法局本级 | F65: 80 | G65: 39.9 | I65: 40.1 | J65: 40.1 | K65: 95 | M65: 宣传科
A66: 58 | B66: 建设南大街35号院前楼修缮项目资金 | C66: 石家庄市城市管理综合行政执法局本级 | F66: 80 | G66: 38.25 | I66: 41.75 | J66: 41.75 | K66: 94.8 | M66: 办公室
A67: 59 | B67: 城市管理运行经费 | C67: 石家庄市城市管理综合行政执法局本级 | F67: 50.87 | G67: 0 | I67: 50.87 | J67: 50.87 | K67: 80 | M67: 财务科
A68: 60 | B68: 业务咨询委托费 | C68: 石家庄市城市管理综合行政执法局本级 | F68: 138.68 | G68: 62.31 | I68: 76.37 | J68: 76.37 | K68: 94.5 | M68: 财务科
A69: 61 | B69: 正太广场、解放广场及周边区域管护资金 | C69: 石家庄市城市管理综合行政执法局本级 | F69: 264.33 | G69: 139.52 | I69: 124.81 | J69: 124.81 | K69: 96 | M69: 正太广场
A70: 62 | B70: 中华大街景观提升工程 | C70: 石家庄市城市管理综合行政执法局本级 | F70: 151 | G70: 0 | I70: 151 | J70: 151 | K70: 80 | M70: 景观办
A71: 63 | B71: 2024年生活垃圾分类运行费用 | C71: 石家庄市城市管理综合行政执法局本级 | F71: 180 | G71: 35.88 | I71: 144.12 | J71: 144.12 | K71: 92 | M71: 垃分办
A72: 64 | B72: 垃圾监测整治经费 | C72: 石家庄市城市管理综合行政执法局本级 | F72: 450 | G72: 183.52 | I72: 266.48 | J72: 266.48 | K72: 94.1 | M72: 环卫监督科
A73: 65 | B73: 公益广告设置经费 | C73: 石家庄市城市管理综合行政执法局本级 | F73: 300 | G73: 0 | I73: 300 | J73: 300 | K73: 80 | M73: 市容科
A74: 66 | B74: 城市地下市政基础设施普查工作经费 | C74: 石家庄市城市管理综合行政执法局本级 | F74: 600 | G74: 0 | I74: 600 | J74: 600 | K74: 63 | M74: 市政科
A75: 67 | B75: 城管局机关2023年及以前年度城建项目资金 | C75: 石家庄市城市管理综合行政执法局本级 | F75: 2391 | G75: 1294.2 | I75: 1096.8 | J75: 1096.8 | K75: 95.4 | M75: 景观科
A76: 68 | B76: 平安大街提升工程 | C76: 石家庄市城市管理综合行政执法局本级 | F76: 3300 | G76: 930 | I76: 2370 | J76: 2370 | K76: 93 | M76: 景观科
D77: =SUBTOTAL(9,D9:D76) -> 275432.3 | E77: 8815.22 | F77: 162310.84 | G77: 281750.71
A78: 1 | B78: 党组织活动经费 | C78: 石家庄市市容环卫服务中心 | F78: 0.76 | G78: 0.75 | I78: 0.01 | J78: 0.01 | K78: 99.87
A79: 2 | B79: 办公设备购置 | C79: 石家庄市市容环卫服务中心 | F79: 1.59 | G79: 1.59 | I79: 0 | J79: 0 | K79: 100
A80: 3 | B80: 物业管理费 | C80: 石家庄市市容环卫服务中心 | F80: 11.98 | G80: 11.98 | I80: 0 | J80: 0 | K80: 100
A81: 4 | B81: 冬季融雪及移动公厕运行经费 | C81: 石家庄市市容环卫服务中心 | F81: 57 | G81: 57 | I81: 0 | J81: 0 | K81: 100
A82: 5 | B82: 事业单位更新电脑设备经费 | C82: 石家庄市市容环卫服务中心 | F82: 1.33 | G82: 1.33 | I82: 0 | J82: 0 | K82: 100
F83: =SUM(F78:F82) -> 72.66 | G83: =SUM(G78:G82) -> 72.65
A84: 1 | B84: 党组织活动经费 | C84: 石家庄市环境卫生事务中心 | F84: 2.27 | G84: 2.27 | I84: 0 | J84: 0 | K84: 100
A85: 2 | B85: 办公设备购置 | C85: 石家庄市环境卫生事务中心 | F85: 7.75 | G85: 7.72 | I85: 0.03 | J85: 0.03 | K85: 99.96
A86: 3 | B86: 信息化项目运行维护费 | C86: 石家庄市环境卫生事务中心 | F86: 8.88 | G86: 8.88 | I86: 0 | J86: 0 | K86: 100
A87: 4 | B87: 代收生活垃圾处理费手续费经费 | C87: 石家庄市环境卫生事务中心 | F87: 490 | G87: 490 | I87: 0 | J87: 0 | K87: 99.64
A88: 5 | B88: 生活垃圾处理补助资金 | C88: 石家庄市环境卫生事务中心 | F88: 13700 | G88: 13700 | I88: 0 | J88: 0 | K88: 99.75 | O88: 重点自评
A89: 6 | B89: 环境卫生绩效考核奖励资金 | C89: 石家庄市环境卫生事务中心 | F89: 1200 | G89: 1200 | I89: 0 | J89: 0 | K89: 100 | O89: 重点自评
A90: 7 | B90: 环境卫生事务专项业务经费 | C90: 石家庄市环境卫生事务中心 | F90: 54.97 | G90: 54.97 | I90: 0 | J90: 0 | K90: 100
A91: 8 | B91: 环卫维护资金 | C91: 石家庄市环境卫生事务中心 | F91: 551.94 | G91: 547.74 | I91: 4.2 | J91: 4.2 | K91: 99.92
A92: 9 | B92: 物业管理费 | C92: 石家庄市环境卫生事务中心 | F92: 20 | G92: 20 | I92: 0 | J92: 0 | K92: 100
A93: 10 | B93: 加固改造办公楼资金 | C93: 石家庄市环境卫生事务中心 | F93: 300 | G93: 300 | I93: 0 | J93: 0 | K93: 100
A94: 11 | B94: 事业单位更新电脑设备经费 | C94: 石家庄市环境卫生事务中心 | F94: 7.04 | G94: 7.04 | I94: 0 | J94: 0 | K94: 100
A95: 12 | B95: 融雪剂采购资金 | C95: 石家庄市环境卫生事务中心 | F95: 249.84 | G95: 249.84 | I95: 0 | J95: 0 | K95: 100
A96: 13 | B96: 支援涿州清运垃圾租用车辆等费用 | C96: 石家庄市环境卫生事务中心 | F96: 35.02 | G96: 35.02 | I96: 0 | J96: 0 | K96: 100
A97: 14 | B97: 劳动聘用人员经费 | C97: 石家庄市环境卫生事务中心 | F97: 325 | G97: 325 | I97: 0 | J97: 0 | K97: 100
A98: 15 | B98: 2024年劳动聘用人员经费 | C98: 石家庄市环境卫生事务中心 | F98: 23 | G98: 22.48 | I98: 0.52 | J98: 0.52 | K98: 99.77
F99: =SUM(F84:F98) -> 16975.71 | G99: 16970.96 | H99: 0 | I99: 4.75 | J99: 4.75 | K99: 1499.04 | P99: =G99/F99 -> 99.97%
A100: 1 | B100: 办公设备购置 | C100: 石家庄市市容管理考评中心 | F100: 9.84 | G100: 9.84 | I100: 0 | J100: 0 | K100: 100 | L100: 完成较好
A101: 2 | B101: 党组织活动经费 | C101: 石家庄市市容管理考评中心 | F101: 2.19 | G101: 2.18 | I101: 0.01 | J101: 0.01 | K101: 99.96 | L101: 完成较好
A102: 3 | B102: 工作场地租赁费 | C102: 石家庄市市容管理考评中心 | F102: 207.37 | G102: 207.37 | I102: 0 | J102: 0 | K102: 100 | L102: 完成较好
A103: 4 | B103: 数字化城市管理运行经费 | C103: 石家庄市市容管理考评中心 | F103: 1114.11 | G103: 1109.38 | I103: 4.73 | J103: 4.73 | K103: 99.96 | L103: 完成较好 | O103: 重点自评
A104: 5 | B104: 劳动聘用人员经费 | C104: 石家庄市市容管理考评中心 | F104: 1755.9 | G104: 1755.9 | I104: 0 | J104: 0 | K104: 99.64 | L104: 完成较好 | O104: 重点自评
A105: 6 | B105: 2024年劳动聘用人员经费 | C105: 石家庄市市容管理考评中心 | F105: 168.8 | G105: 147.51 | I105: 21.29 | J105: 21.29 | K105: 98.62 | L105: 完成较好
F106: =SUM(F100:F105) -> 3258.21 | G106: 3232.18 | H106: 0 | I106: 26.03 | J106: 26.03 | K106: 598.18 | P106: =G106/F106 -> 99.20%
A107: 1 | B107: 党组织活动经费 | C107: 石家庄市道桥设施管护中心 | F107: 3.86 | G107: 3.86 | I107: 0 | J107: 0 | K107: 100 | L107: 完成较好
A108: 2 | B108: 办公设备购置资金 | C108: 石家庄市道桥设施管护中心 | F108: 4 | G108: 4 | I108: 0 | J108: 0 | K108: 100 | L108: 完成较好
A109: 3 | B109: 信息化项目运行维护费 | C109: 石家庄市道桥设施管护中心 | F109: 6 | G109: 6 | I109: 0 | J109: 0 | K109: 100 | L109: 完成较好
A110: 4 | B110: 机关公务用车租赁费 | C110: 石家庄市道桥设施管护中心 | F110: 11.54 | G110: 4.8 | I110: 6.74 | J110: 6.74 | K110: 94 | L110: 完成较好
A111: 5 | B111: 道桥管护中心桥涵所办公区及桥梁检测站加固维修经费 | C111: 石家庄市道桥设施管护中心 | F111: 21.16 | G111: 17.13 | I111: 4.03 | J111: 0 | K111: 98.1 | L111: 完成较好
A112: 6 | B112: 道桥设施管护中心办公楼加固改造及恢复工程经费 | C112: 石家庄市道桥设施管护中心 | F112: 266 | G112: 208.45 | I112: 57.55 | J112: 0 | K112: 97.8 | L112: 完成较好
A113: 7 | B113: 公务用车购置经费 | C113: 石家庄市道桥设施管护中心 | F113: 7.58 | G113: 7.58 | I113: 0 | J113: 0 | K113: 100 | L113: 完成较好
A114: 8 | B114: 道路灾害预警雷达系统尾款 | C114: 石家庄市道桥设施管护中心 | F114: 54.35 | G114: 54.35 | I114: 0 | J114: 0 | K114: 100 | L114: 完成较好
A115: 9 | B115: 事业单位更新电脑设备经费 | C115: 石家庄市道桥设施管护中心 | F115: 29.64 | G115: 29.64 | I115: 0 | J115: 0 | K115: 100 | L115: 完成较好
A116: 10 | B116: 三环路积水点改造项目 | C116: 石家庄市道桥设施管护中心 | D116: 5050 | G116: 2898.94 | I116: 2151.06 | J116: 0 | K116: 95.7 | L116: 完成较好
A117: 11 | B117: 桥梁检测仪器采购资金 | C117: 石家庄市道桥设施管护中心 | F117: 26.67 | G117: 0 | I117: 26.67 | J117: 0 | K117: 0 | L117: 完成一般
A118: 12 | B118: 桥梁巡检升降车采购资金 | C118: 石家庄市道桥设施管护中心 | F118: 120 | G118: 111.44 | I118: 8.56 | J118: 0 | K118: 99.29 | L118: 完成较好
A119: 13 | B119: 掘路修复费 | C119: 石家庄市道桥设施管护中心 | F119: 1483.5 | G119: 1479 | I119: 4.5 | J119: 4.5 | K119: 100 | L119: 完成较好 | O119: 重点自评
A120: 14 | B120: 城市道路桥梁设施维护费 | C120: 石家庄市道桥设施管护中心 | F120: 9427 | G120: 9426.11 | I120: 0.89 | J120: 0.89 | K120: 100 | L120: 完成较好 | O120: 重点自评
A121: 15 | B121: 道桥中心2023年及以前年度城建项目资金 | C121: 石家庄市道桥设施管护中心 | F121: 100 | G121: 100 | I121: 0 | J121: 0 | K121: 100 | L121: 完成较好
D122: =SUM(D107:D121) -> 5050 | E122: 0 | F122: 11561.3 | G122: 14351.3 | H122: 0 | I122: 2260 | J122: 12.13 | K122: 1384.89 | L122: 0 | Q122: =F122+D122 -> 16611.3 | R122: =G122/Q122 -> 0.8639480354
A123: 1 | B123: 党组织活动经费 | C123: 石家庄市城市照明管护中心 | F123: 1.69 | G123: 1.69 | I123: 0 | J123: 0 | K123: 100
A124: 2 | B124: 办公设备购置资金 | C124: 石家庄市城市照明管护中心 | F124: 1.29 | G124: 1.29 | I124: 0 | J124: 0 | K124: 100
A125: 3 | B125: 机关公务用车租赁费 | C125: 石家庄市城市照明管护中心 | F125: 9.36 | G125: 9.36 | I125: 0 | J125: 0 | K125: 100
A126: 4 | B126: 事业单位更新电脑设备经费 | C126: 石家庄市城市照明管护中心 | F126: 7.36 | G126: 7.36 | I126: 0 | J126: 0 | K126: 100
A127: 5 | B127: 照明设施维护经费 | C127: 石家庄市城市照明管护中心 | F127: 7225 | G127: 7225 | I127: 0 | J127: 0 | K127: 100 | O127: 重点自评
A128: 6 | B128: 照明中心2023年及以前年度城建项目资金 | C128: 石家庄市城市照明管护中心 | F128: 1805 | G128: 1805 | I128: 0 | J128: 0 | K128: 100
A129: 7 | B129: 街道照明设施提升工程 | C129: 石家庄市城市照明管护中心 | F129: 350 | G129: 350 | I129: 0 | J129: 0 | K129: 100
A130: 8 | B130: 公益广告设置经费 | C130: 石家庄市城市照明管护中心 | F130: 296 | G130: 296 | I130: 0 | J130: 0 | K130: 100
F131: =SUM(F123:F130) -> 9695.7 | G131: 9695.7 | H131: 0 | I131: 0 | J131: 0 | K131: 800
A132: 1 | B132: 党组织活动经费 | C132: 石家庄市危险废弃物处置场 | F132: 0.31 | G132: 0.31 | I132: 0 | J132: 0 | K132: 100 | L132: 完成较好
A133: 2 | B133: 办公设备购置 | C133: 石家庄市危险废弃物处置场 | F133: 0.5 | G133: 0.5 | I133: 0 | J133: 0 | K133: 100 | L133: 完成较好
A134: 3 | B134: 废旧电池处置运行经费 | C134: 石家庄市危险废弃物处置场 | F134: 66 | G134: 66 | I134: 0 | J134: 0 | K134: 100 | L134: 完成较好
F135: =SUM(F132:F134) -> 66.81 | G135: 66.81 | H135: 0 | I135: 0 | J135: 0 | K135: 300
A136: 1 | B136: 党组织活动经费 | C136: 石家庄市生活固体废弃物处置服务中心 | F136: 0.63 | G136: 0.63 | I136: 0 | J136: 0 | K136: 100
A137: 2 | B137: 公务用车租赁费 | C137: 石家庄市生活固体废弃物处置服务中心 | F137: 17.08 | G137: 17.08 | I137: 0 | J137: 0 | K137: 100
A138: 3 | B138: 办公设备购置 | C138: 石家庄市生活固体废弃物处置服务中心 | F138: 1 | G138: 1 | I138: 0 | J138: 0 | K138: 100
F139: =SUM(F136:F138) -> 18.71 | G139: 18.71 | H139: 0 | I139: 0 | J139: 0 | K139: 300
A140: 1 | B140: 党组织活动经费 | C140: 石家庄市卫生垃圾太行填埋场 | F140: 1.07 | G140: 1.02 | I140: =F140-G140 -> 0.05 | J140: =I140 -> 0.05 | K140: 99.53 | L140: 完成较好
A141: 2 | B141: 办公设备购置 | C141: 石家庄市卫生垃圾太行填埋场 | F141: 0.15 | G141: 0.14 | I141: 0.01 | J141: 0.01 | K141: 99.33 | L141: 完成较好
B142: 生活垃圾卫生填埋运行费 | C142: 石家庄市卫生垃圾太行填埋场 | F142: 295.08 | G142: 295.08 | I142: 0 | J142: 0 | K142: 99.3
A143: 3 | B143: 生活垃圾卫生填埋运行费 | C143: 石家庄市卫生垃圾太行填埋场 | F143: 552.4 | G143: 493.41 | I143: 58.99 | J143: 58.99 | K143: 99.3 | L143: 完成较好
A144: 4 | B144: 事业单位更新电脑设备经费 | C144: 石家庄市卫生垃圾太行填埋场 | F144: 1.48 | G144: 1.32 | I144: 0.16 | J144: 0.16 | K144: 98.92 | L144: 完成较好
F145: =SUM(F140:F144) -> 850.18
A146: 1 | B146: 总退水渠维护费（专项资金） | C146: 石家庄市总退水渠管理所 | F146: 162 | G146: 162 | I146: 0 | J146: 0 | K146: 100
F147: =SUM(F146:F146) -> 162 | G147: 162 | H147: 0 | I147: 0 | J147: 0 | K147: 100
A148: 1 | B148: 党组织活动经费 | C148: 石家庄市二环路管护中心 | F148: 2 | G148: 2 | K148: 100
A149: 2 | B149: 办公设备购置 | C149: 石家庄市二环路管护中心 | F149: 5.27 | G149: 5.27 | K149: 100
A150: 3 | B150: 公务用车租赁费 | C150: 石家庄市二环路管护中心 | F150: 4.38 | G150: 4.38 | K150: 100
A151: 4 | B151: 二环路设施维护费 | C151: 石家庄市二环路管护中心 | F151: 7405.13 | G151: 7405.13 | K151: 100 | O151: 重点自评
A152: 5 | B152: 掘路修复费 | C152: 石家庄市二环路管护中心 | F152: 46.68 | G152: 46.68 | K152: 100
A153: 6 | B153: 二环中心2023年及以前年度城建项目资金 | C153: 石家庄市二环路管护中心 | F153: 1046 | G153: 1046 | K153: 100
A154: 7 | B154: 二环路铁路地道桥美化亮化工程 | C154: 石家庄市二环路管护中心 | F154: 110 | G154: 110 | K154: 100
A155: 8 | B155: 北二环路慢行系统改造 | C155: 石家庄市二环路管护中心 | F155: 500 | G155: 386.86 | I155: 113.14 | J155: 113.14 | K155: 97.7
A156: 9 | B156: 事业单位更新电脑设备经费 | C156: 石家庄市二环路管护中心 | F156: 15.3415 | G156: 15.3415 | K156: 100
A157: 10 | B157: 环卫作业车辆采购项目 | C157: 石家庄市二环路管护中心 | F157: 3832 | G157: 3828 | I157: 4 | J157: 4 | K157: 99.99
F158: =SUM(F148:F157) -> 12966.8015 | G158: 12849.6615 | H158: 0 | I158: 117.14 | J158: 117.14 | K158: 997.69 | L158: 0
A159: 1 | B159: 石家庄市城市管理综合行政执法局 | C159: 执法业务费 | F159: 10.53 | G159: 10.53 | I159: 0 | J159: 0 | K159: 80 | L159: 同意
A160: 2 | B160: 石家庄市城市管理综合行政执法局 | C160: 工作场地租赁费 | F160: 332.89 | G160: 332.77 | I160: 0.12 | J160: 0.12 | K160: 100 | L160: 同意
A161: 3 | B161: 石家庄市城市管理综合行政执法局 | C161: 劳动聘用人员经费 | F161: 529.6 | G161: 529.6 | I161: 0 | J161: 0 | K161: 98 | L161: 同意
A162: 4 | B162: 石家庄市城市管理综合行政执法局 | C162: 物业管理费 | F162: 30 | G162: 29.82 | I162: 0.18 | J162: 0.18 | K162: 99.94 | L162: 同意
A163: 5 | B163: 石家庄市城市管理综合行政执法局 | C163: 党组织活动经费 | F163: 10.97 | G163: 10.66 | I163: 0.31 | J163: 0.31 | K163: 99.72 | L163: 同意
A164: 6 | B164: 石家庄市城市管理综合行政执法局 | C164: 办公设备购置费 | F164: 40 | G164: 39.84 | I164: 0.16 | J164: 0.16 | K164: 99.96 | L164: 同意
A166: 1 | B166: 文件资料印刷费 | C166: 石家庄市燃气中心 | F166: 1.6 | G166: 1.6 | I166: 0 | J166: 0 | K166: 100 | L166: 完成较好
A167: 2 | B167: 第三方燃气风险辨识与安全大讲堂经费 | C167: 石家庄市燃气中心 | F167: 60 | G167: 53.89 | I167: 6.11 | J167: 6.11 | K167: 98.98 | L167: 完成较好
A168: 3 | B168: 劳动聘用人员经费 | C168: 石家庄市燃气中心 | F168: 45.7 | G168: 45.7 | I168: 0 | J168: 0 | K168: 100 | L168: 完成较好
A169: 4 | B169: 2024年劳动聘用人员经费 | C169: 石家庄市燃气中心 | F169: 9.7 | G169: 9.7 | I169: 0 | J169: 0 | K169: 100 | L169: 完成较好
A170: 5 | B170: 专项邮电费 | C170: 石家庄市燃气中心 | F170: 1.8 | G170: 1.8 | I170: 0 | J170: 0 | K170: 100 | L170: 完成较好
A171: 6 | B171: 事业单位更新电脑设备经费 | C171: 石家庄市燃气中心 | F171: 1.48 | G171: 1.48 | I171: 0 | J171: 0 | K171: 100 | L171: 完成较好
A172: 7 | B172: 党组织活动经费 | C172: 石家庄市燃气中心 | F172: 0.39 | G172: 0.39 | I172: 0 | J172: 0 | K172: 100 | L172: 完成较好
A173: 8 | B173: 业务咨询委托费 | C173: 石家庄市燃气中心 | F173: 30 | G173: 29.89 | I173: 0.11 | J173: 0.11 | K173: 100 | L173: 完成较好
A175: 1 | B175: 石家庄市城市管理便民服务中心 | C175: 事业单位更新电脑 | F175: 4.4 | G175: 4.4 | I175: 0 | J175: =I175 -> 0 | K175: 100 | L175: 无
A176: 2 | B176: 石家庄市城市管理便民服务中心 | C176: 办公设备购置 | F176: 2.45 | G176: 2.37 | I176: =F176-G176 -> 0.08 | J176: 0.08 | K176: 100 | L176: 无
A177: 3 | B177: 石家庄市城市管理便民服务中心 | C177: 城管热线运行维护费 | F177: 32 | G177: 31.69 | I177: 0.31 | J177: 0.31 | K177: 99 | L177: 无
A178: 4 | B178: 石家庄市城市管理便民服务中心 | C178: 文件资料印刷费 | F178: 2.1 | G178: 2.07 | I178: 0.03 | J178: 0.03 | K178: 100 | L178: 无
A179: 5 | B179: 石家庄市城市管理便民服务中心 | C179: 党组织活动经费 | F179: 0.28 | G179: 0.26 | I179: 0.02 | J179: 0.02 | K179: 98 | L179: 无
A180: 6 | B180: 石家庄市城市管理便民服务中心 | C180: 业务培训费 | F180: 19 | G180: 18.7 | I180: 0.3 | J180: 0.3 | K180: 100 | L180: 无
A181: 7 | B181: 石家庄市城市管理便民服务中心 | C181: 劳动聘用人员经费 | F181: 151.6 | G181: 151.6 | I181: 0 | J181: 0 | K181: 100 | L181: 无
F182: =SUM(F175:F181) -> 211.83 | G182: 211.09 | H182: 0 | I182: 0.74 | J182: 0.74 | K182: 697
A183: 1 | B183: 党组织活动经费 | C183: 石家庄市供热事务中心 | F183: 0.85 | G183: 0.8 | I183: 0.05 | K183: 99.9 | L183: 无
A184: 2 | B184: 业务咨询委托费 | C184: 石家庄市供热事务中心 | F184: 33.64 | G184: 19.72 | I184: 13.92 | K184: 96 | L184: 无
A185: 3 | B185: 专项邮电费 | C185: 石家庄市供热事务中心 | F185: 6.2 | G185: 6.2 | I185: 0 | K185: 100 | L185: 无
A186: 4 | B186: 物业管理费 | C186: 石家庄市供热事务中心 | F186: 5.5 | G186: 4.74 | I186: 0.76 | K186: 99.9 | L186: 无
A187: 5 | B187: 劳动聘用人员经费 | C187: 石家庄市供热事务中心 | F187: 36.6 | G187: 36.6 | I187: 0 | K187: 100 | L187: 无
A188: 6 | B188: 2024年劳动聘用人员经费 | C188: 石家庄市供热事务中心 | F188: 7.9 | G188: 7.75 | I188: 0.15 | K188: 99.9 | L188: 无
A189: 7 | B189: 市城市集中供热专项规划编制费 | C189: 石家庄市供热事务中心 | F189: 39.36 | G189: 39.36 | I189: 0 | K189: 100 | L189: 无
A190: 8 | B190: 供热智慧管理平台扩容项目质保金 | C190: 石家庄市供热事务中心 | F190: 8.28 | G190: 8.28 | I190: 0 | K190: 100 | L190: 无
A191: 9 | B191: 原热一区域替代锅炉占地经费 | C191: 石家庄市供热事务中心 | F191: 43 | G191: 43 | I191: 0 | K191: 100 | L191: 无
A192: 10 | B192: 主城区供热质量第三方监督服务费 | C192: 石家庄市供热事务中心 | F192: 100 | G192: 77.84 | I192: 22.16 | K192: 99 | L192: 无
A193: 11 | B193: 供热补贴经费 | C193: 石家庄市供热事务中心 | F193: 19320 | G193: 19320 | I193: 0 | K193: 100 | L193: 无
A194: 12 | B194: 供热补贴资金 | C194: 石家庄市供热事务中心 | F194: 13880 | G194: 13880 | I194: 0 | K194: 100 | L194: 无 | O194: 重点自评
A195: 13 | B195: 2022-2023年石热九期燃机机组居民部分供热补贴资金 | C195: 石家庄市供热事务中心 | F195: 8000 | G195: 8000 | I195: 0 | K195: 100 | L195: 无
A196: 14 | B196: 2022-2023年采暖季石热九期燃机机组居民部分供热补贴资金 | C196: 石家庄市供热事务中心 | F196: 6323.45 | G196: 6323.45 | I196: 0 | K196: 100 | L196: 无
A197: 15 | B197: 主城区安装居民室温采集系统经费 | C197: 石家庄市供热事务中心 | F197: 31.69 | G197: 31.69 | I197: 0 | K197: 100 | L197: 无
F198: =SUM(F183:F197) -> 47836.47
A199: 1 | B199: 电梯运维费 | C199: 石家庄市排水管护中心 | F199: 1.4 | G199: 1.4 | I199: 0 | J199: 0 | K199: 100
A200: 2 | B200: 办公设备购置资金 | C200: 石家庄市排水管护中心 | F200: 14.34 | G200: 14.34 | I200: 0 | J200: 0 | K200: 100
A201: 3 | B201: 事业单位更新电脑设备经费 | C201: 石家庄市排水管护中心 | F201: 15.14 | G201: 15.14 | I201: 0 | J201: 0 | K201: 100
A202: 4 | B202: 党组织活动经费 | C202: 石家庄市排水管护中心 | F202: 7 | G202: 7 | I202: 0 | J202: 0 | K202: 100
A203: 5 | B203: 排水设施维护费 | C203: 石家庄市排水管护中心 | F203: 4922.16 | G203: 4922.16 | I203: 0 | J203: 0 | K203: 100 | O203: 重点自评
... 32 more rows

Sheet 粘贴 (hidden)
A1: 项目名称 | C1: 项目承担单位 | E1: 功能分类科目编码 | F1: 资金来源
F2: 合 计 | G2: 一般公共预算拨款 | H2: 基金预算拨款 | I2: 国有资本经营预算拨款 | J2: 财政专户核拨 | K2: 单位资金 | L2: 上年结转结余
A3: 合计 | F3: 474206.79 | G3: 81511.8 | H3: 260102.18 | K3: 2389.79 | L3: 130203.02
A4: 特定目标类项目小计 | F4: 473025.47 | G4: 80338.49 | H4: 260102.18 | K4: 2381.78 | L4: 130203.02
A5: 1 | B5: 安全生产监督工作经费 | C5: 石家庄市城市管理综合行政执法局本级 | E5: 2120104 | F5: 12 | G5: 12
A6: 2 | B6: 保安服务费用 | C6: 石家庄火车站站前地区管理委员会 | E6: 2120104 | F6: 1296 | G6: 1296
A7: 3 | B7: 北二环路慢行系统改造 | C7: 石家庄市道桥设施管护中心 | E7: 2120803 | F7: 113.14 | L7: 113.14
A8: 4 | B8: 城管全民动员大会及宣传活动经费 | C8: 石家庄市城市管理综合行政执法局本级 | E8: 2120104 | F8: 17.83 | G8: 17.83
A9: 5 | B9: 城管热线运行维护费 | C9: 石家庄市城市管理便民服务中心 | E9: 2120104 | F9: 32 | G9: 32
A10: 6 | B10: 城区防汛监控系统运行费 | C10: 石家庄市排水管护中心 | E10: 2120399 | F10: 100.4 | G10: 100.4
A11: 7 | B11: 城区防汛汛期应急指挥车租赁经费 | C11: 石家庄市城市管理综合行政执法局本级 | E11: 2120104 | F11: 10.3 | G11: 10.3
A12: 8 | B12: 城市地下市政基础设施普查工作经费 | C12: 石家庄市城市管理综合行政执法局本级 | E12: 2121301 | F12: 600 | H12: 600
A13: 9 | B13: 城市排水（雨水）防涝综合规划编制费 | C13: 石家庄市排水管护中心 | E13: 2121399 | F13: 157 | H13: 157
A14: 10 | B14: 代收生活垃圾处理费手续费 | C14: 石家庄市环境卫生事务中心 | E14: 2120501 | F14: 490 | G14: 490
A15: 11 | B15: 道桥设施管护中心办公区域综合整治 | C15: 石家庄市道桥设施管护中心 | E15: 2120399 | F15: 7 | K15: 7
A16: 12 | B16: 地道桥雨水泵站规划编制费 | C16: 石家庄市排水管护中心 | E16: 2121399 | F16: 129 | H16: 129
A17: 13 | B17: 冬季融雪及移动公厕运行经费 | C17: 石家庄市市容环卫服务中心 | E17: 2120501 | F17: 57 | G17: 57
A18: 14 | B18: 防汛经费 | C18: 石家庄市城市管理综合行政执法局本级 | E18: 2120104 | F18: 30 | G18: 30
A19: 15 | B19: 废旧电池处置运行费 | C19: 石家庄市危险废弃物处置场 | E19: 2121302 | F19: 59 | H19: 59
A20: 16 | B20: 给水、污水再生利用工程两项规划编制经费 | C20: 石家庄市城市管理综合行政执法局本级 | E20: 2121399 | F20: 250 | H20: 250
A21: 17 | B21: 供热补贴经费 | C21: 石家庄市供热事务中心 | E21: 2120803 | F21: 14000 | H21: 14000
A22: 18 | B22: 供热智慧管理平台扩容项目质保金 | C22: 石家庄市供热事务中心 | E22: 2120399 | F22: 8.28 | G22: 8.28
A23: 19 | B23: 供水水质监测经费 | C23: 石家庄市城市管理综合行政执法局本级 | E23: 2120104 | F23: 10 | G23: 10
A24: 20 | B24: 公益广告设置经费 | C24: 石家庄市城市管理综合行政执法局本级 | E24: 2121302 | F24: 298 | H24: 298
A25: 21 | B25: 广场管护费 | C25: 石家庄火车站站前地区管理委员会 | E25: 2120501 | F25: 423.62 | G25: 423.62
A26: 22 | B26: 广场管护经费 | C26: 石家庄火车站站前地区管理委员会 | E26: 2121302 | F26: 781.75 | H26: 781.75
A27: 23 | B27: 国家节水型城市复查迎检工作经费 | C27: 石家庄市城市管理综合行政执法局本级 | E27: 2120104 | F27: 15.1 | G27: 15.1
A28: 24 | B28: 环境卫生绩效考核奖励资金 | C28: 石家庄市环境卫生事务中心 | E28: 2120501 | F28: 1200 | G28: 1200
A29: 25 | B29: 环境卫生事务专项业务经费 | C29: 石家庄市环境卫生事务中心 | E29: 2120501 | F29: 88.4 | G29: 88.4
A30: 26 | B30: 环卫工人意外伤害救助金经费 | C30: 石家庄市城市管理综合行政执法局本级 | E30: 2120104 | F30: 45 | G30: 45
A31: 27 | B31: 环卫维护费 | C31: 石家庄市环境卫生事务中心 | E31: 2120501 | F31: 8.88 | G31: 8.88
A32: 28 | B32: 环卫作业车辆租赁费 | C32: 石家庄市道桥设施管护中心 | E32: 2120501 | F32: 2200 | G32: 2200
A33: 29 | B33: 建设南大街35号院前楼修缮项目 | C33: 石家庄市城市管理综合行政执法局本级 | E33: 2120104 | F33: 68 | G33: 68
A34: 30 | B34: 掘路修复费 | C34: 石家庄市道桥设施管护中心 | E34: 2120399 | F34: 1560 | G34: 1560
A35: 31 | B35: 垃圾监测整治经费 | C35: 石家庄市城市管理综合行政执法局本级 | E35: 2121302 | F35: 370 | H35: 370
A36: 32 | B36: 绿色社区创建宣传及牌匾制作费质保金 | C36: 石家庄市城市管理综合行政执法局本级 | E36: 2120104 | F36: 4.43 | G36: 4.43
A37: 33 | B37: 民心河维护费 | C37: 石家庄市排水管护中心 | E37: 2120399 | F37: 1198 | G37: 1198
A38: 34 | B38: 民心河维护经费 | C38: 石家庄市排水管护中心 | E38: 2121399 | F38: 754.56 | H38: 754.56
A39: 35 | B39: 南栗明渠通水费 | C39: 石家庄市排水管护中心 | E39: 2120399 | F39: 140 | G39: 140
A40: 36 | B40: 南栗明渠通水经费 | C40: 石家庄市排水管护中心 | E40: 2121399 | F40: 145 | H40: 145
A41: 37 | B41: 排水监测站监测运行费 | C41: 石家庄市排水管护中心 | E41: 2121399 | F41: 109.39 | H41: 109.39
A42: 38 | B42: 排水设施维护费 | C42: 石家庄市排水管护中心 | E42: 2120399 | F42: 2150.16 | G42: 2150.16
A43: 39 | B43: 排水设施维护经费 | C43: 石家庄市排水管护中心 | E43: 2121399 | F43: 3432.98 | H43: 3432.98
A44: 40 | B44: 排水收费所工作经费 | C44: 石家庄市排水管护中心 | E44: 2121402 | F44: 18.5 | H44: 18.5
A45: 41 | B45: 排水仪器设备及排水泵购置 | C45: 石家庄市排水管护中心 | E45: 2120399 | F45: 90 | G45: 90
A46: 42 | B46: 普法工作经费 | C46: 石家庄市城市管理综合行政执法局本级 | E46: 2120104 | F46: 5 | G46: 5
A47: 43 | B47: 燃气风险辨识与安全大讲堂 | C47: 石家庄市燃气中心 | E47: 2120399 | F47: 60 | G47: 60
A48: 44 | B48: 山县合河乡外大河村帮扶项目资金 | C48: 石家庄市道桥设施管护中心 | E48: 2120399 | F48: 42.7 | K48: 42.7
A49: 45 | B49: 生活垃圾处理补助 | C49: 石家庄市环境卫生事务中心 | E49: 2120501 | F49: 4600 | G49: 4600
A50: 46 | B50: 生活垃圾处理补助 | C50: 石家庄市环境卫生事务中心 | E50: 2121302 | F50: 9100 | H50: 9100
A51: 47 | B51: 生活垃圾分类工作经费 | C51: 石家庄市城市管理综合行政执法局本级 | E51: 2120104 | F51: 20 | G51: 20
A52: 48 | B52: 生活垃圾分类运行费用 | C52: 石家庄市城市管理综合行政执法局本级 | E52: 2120104 | F52: 58.99 | G52: 58.99
A53: 49 | B53: 生活垃圾分类运行资金 | C53: 石家庄市城市管理综合行政执法局本级 | E53: 2121302 | F53: 20 | H53: 20
A54: 50 | B54: 生活垃圾卫生填埋运行费 | C54: 石家庄市卫生垃圾太行填埋场 | E54: 2120501 | F54: 295.08 | G54: 295.08
A55: 51 | B55: 生活垃圾卫生填埋运行经费 | C55: 石家庄市卫生垃圾太行填埋场 | E55: 2121302 | F55: 495.63 | H55: 495.63
A56: 52 | B56: 市双代办工作经费 | C56: 石家庄市城市管理综合行政执法局本级 | E56: 2120104 | F56: 33.19 | G56: 33.19
A57: 53 | B57: 数字化城市管理运行经费 | C57: 石家庄市市容管理考评中心 | E57: 2120104 | F57: 1100 | G57: 1100
A58: 54 | B58: 摔伤人员及损坏车辆赔偿费 | C58: 石家庄市排水管护中心 | E58: 2120399 | F58: 18 | G58: 18
A59: 55 | B59: 双代办第三方评估监督经费 | C59: 石家庄市城市管理综合行政执法局本级 | E59: 2120104 | F59: 30 | G59: 30
A60: 56 | B60: 四支渠（新华路-南泄洪渠）新建工程国债项目 | C60: 石家庄市城市管理综合行政执法局本级 | E60: 2120803 | F60: 8247.3 | H60: 8247.3
A61: 57 | B61: 特大暴雨防汛费 | C61: 石家庄市排水管护中心 | E61: 2120399 | F61: 123 | G61: 123
A62: 58 | B62: 特许经营项目咨询服务经费 | C62: 石家庄市城市管理综合行政执法局本级 | E62: 2120104 | F62: 30 | G62: 30
A63: 59 | B63: 污水污泥处理费 | C63: 石家庄市城市管理综合行政执法局本级 | E63: 2121401 | F63: 20481.5 | H63: 20481.5
A64: 60 | B64: 污水污泥处理经费 | C64: 石家庄市城市管理综合行政执法局本级 | E64: 2110302 | F64: 17218.5 | G64: 17218.5
A65: 61 | B65: 行政执法经费 | C65: 石家庄市城市管理综合行政执法局本级 | E65: 2120104 | F65: 80 | G65: 80
A66: 62 | B66: 续建(急需)项目建设资金 | C66: 石家庄市城市管理综合行政执法局本级 | E66: 2120803 | F66: 118400 | H66: 118400
A67: 63 | B67: 原热一区域替代锅炉占地费 | C67: 石家庄市供热事务中心 | E67: 2120399 | F67: 43 | G67: 43
A68: 64 | B68: 照明设施维护费 | C68: 石家庄市城市照明管护中心 | E68: 2120399 | F68: 2863.9 | G68: 2863.9
A69: 65 | B69: 照明设施维护经费 | C69: 石家庄市城市照明管护中心 | E69: 2121301 | F69: 4699.66 | H69: 4699.66
A70: 66 | B70: 正太广场、解放广场及周边区域管护资金 | C70: 石家庄市城市管理综合行政执法局本级 | E70: 2120104 | F70: 528.65 | G70: 528.65
A71: 67 | B71: 执法业务费 | C71: 石家庄市排水管护中心 | E71: 2120399 | F71: 50 | G71: 50
A72: 68 | B72: 执法专用设备购置 | C72: 石家庄市排水管护中心 | E72: 2120399 | F72: 23.55 | G72: 23.55
A73: 69 | B73: 智慧排水系统运行费 | C73: 石家庄市排水管护中心 | E73: 2120399 | F73: 9.84 | G73: 9.84
A74: 70 | B74: 质量监督抽测费 | C74: 石家庄市市政建设服务中心 | E74: 2120106 | F74: 2 | G74: 2
A75: 71 | B75: 主城区安装居民室温采集系统 | C75: 石家庄市供热事务中心 | E75: 2120399 | F75: 14.6 | G75: 14.6
A76: 72 | B76: 主城区供热质量第三方监督 | C76: 石家庄市供热事务中心 | E76: 2120399 | F76: 100 | G76: 100
A77: 73 | B77: 专项债券项目前期编制费用 | C77: 石家庄市市政建设服务中心 | E77: 2120104 | F77: 30 | G77: 30
A78: 74 | B78: 总退水渠维护费 | C78: 石家庄市总退水渠管理所 | E78: 2121301 | F78: 162 | H78: 162
A79: 75 | B79: 办公用房大中修项目 | F79: 194.04 | G79: 126 | K79: 68.04
B80: 东华路49号院整修资金 | C80: 石家庄市城市管理综合保障中心 | E80: 2120104 | F80: 126 | G80: 126
B81: 道桥设施管护中心办公楼加固改造及恢复工程经费 | C81: 石家庄市道桥设施管护中心 | E81: 2120399 | F81: 65.7 | K81: 65.7
B82: 道桥设施管护中心桥涵所办公区加固维修经费尾款 | C82: 石家庄市道桥设施管护中心 | E82: 2120399 | F82: 2.34 | K82: 2.34
A83: 76 | B83: 仓丰东路雨水泵站新建工程 | F83: 1884 | H83: 1054 | L83: 830
B84: 仓丰东路雨水泵站新建工程国债项目市级配套资金 | C84: 石家庄市城市管理综合行政执法局本级 | E84: 2120803 | F84: 1054 | H84: 1054
B85: 仓丰东路雨水泵站新建工程省级补助资金 | C85: 石家庄市城市管理综合行政执法局本级 | E85: 2120399 | F85: 117.63 | L85: 117.63
B86: 仓丰东路雨水泵站新建工程中央补助资金 | C86: 石家庄市城市管理综合行政执法局本级 | E86: 2120399 | F86: 712.37 | L86: 712.37
A87: 77 | B87: 超长期特别国债—加快重点地区和城市平战结合建设领域城市地下管网建设改造方向 | F87: 6671.23 | H87: 2615.96 | L87: 4055.27
B88: 液化气居民用户安装物联报警器 和自动切断装置项目 | C88: 石家庄市城市管理综合行政执法局本级 | E88: 2129801 | F88: 1904.22 | L88: 1904.22
B89: 液化气居民用户安装物联报警器和自动切断装置项目市级配套资金 | C89: 石家庄市城市管理综合行政执法局本级 | E89: 2120803 | F89: 39.96 | H89: 39.96
B90: 三环路积水点改造工程 | C90: 石家庄市道桥设施管护中心 | E90: 2249802 | F90: 2151.06 | L90: 2151.06
B91: 三环路积水点改造工程市级配套资金 | C91: 石家庄市道桥设施管护中心 | E91: 2120803 | F91: 2576 | H91: 2576
A92: 78 | B92: 城市更新行动市级配套资金 | F92: 5295.66 | H92: 5295.66
B93: 平安大街架空电力线 入地和市政道路优化 提升工程市级配套资金 | C93: 石家庄市城市管理综合行政执法局本级 | E93: 2120803 | F93: 1710 | H93: 1710
B94: 正太广场开放绿地景观提升 | C94: 石家庄市城市管理综合行政执法局本级 | E94: 2120803 | F94: 10 | H94: 10
B95: 执法智慧监管平台市级配套资金 | C95: 石家庄市城市管理综合行政执法局本级 | E95: 2120803 | F95: 60 | H95: 60
B96: 中华大街（南二环— 北三环）综合提升市级配套资金 | C96: 石家庄市城市管理综合行政执法局本级 | E96: 2120803 | F96: 560 | H96: 560
B97: 二环路照明设施改造市级配套资金 | C97: 石家庄市城市照明管护中心 | E97: 2120803 | F97: 619.7 | H97: 619.7
B98: 北三环、北部排水管网改造项目市级配套资金 | C98: 石家庄市市政建设服务中心 | E98: 2120803 | F98: 493.65 | H98: 493.65
B99: 城市生命线桥梁病害检测工程市级配套资金 | C99: 石家庄市市政建设服务中心 | E99: 2120803 | F99: 282.4 | H99: 282.4
B100: 东垣东路等2处道路 市政排水干管混错接整治工程市级配套资金 | C100: 石家庄市市政建设服务中心 | E100: 2120803 | F100: 6 | H100: 6
B101: 桥西污水厂分区、滹 沱河污水厂分区市政 排水管网深度排查工程 市级配套资金 | C101: 石家庄市市政建设服务中心 | E101: 2120803 | F101: 181 | H101: 181
B102: 桥西污水厂南长街分 区、中华大街分区老旧管道更新改造工程市级配套资金 | C102: 石家庄市市政建设服务中心 | E102: 2120803 | F102: 447 | H102: 447
B103: 桥西污水厂石津干渠 分区道路老化管道更新工程市级配套资金 | C103: 石家庄市市政建设服务中心 | E103: 2120803 | F103: 201.8 | H103: 201.8
B104: 石家庄市主城区庭院 雨污分流改造工程（一）市级配套资金 | C104: 石家庄市市政建设服务中心 | E104: 2120803 | F104: 73.39 | H104: 73.39
B105: 五支渠上游流域雨水管网提升改造工程 （二）市级配套资金 | C105: 石家庄市市政建设服务中心 | E105: 2120803 | F105: 85 | H105: 85
B106: 五支渠上游流域雨水管网提升改造工程 （一）市级配套资金 | C106: 石家庄市市政建设服务中心 | E106: 2120803 | F106: 249 | H106: 249
B107: 中心城区泵站新建工程-槐安路地道桥泵站市级配套资金 | C107: 石家庄市市政建设服务中心 | E107: 2120803 | F107: 84.72 | H107: 84.72
B108: 主城区调蓄及收水设 施提升改造工程市级配套资金 | C108: 石家庄市市政建设服务中心 | E108: 2120803 | F108: 132 | H108: 132
B109: 石家庄市燃气行业综 合监管平台二期—燃气安全监测预警与应急指挥能力提升项目市级配套资金 | C109: 石家庄市燃气中心 | E109: 2120803 | F109: 100 | H109: 100
A110: 79 | B110: 城市建设计划项目资金 | F110: 4200.88 | K110: 94 | L110: 4106.88
B111: 城管局机关2023年及以前年度城建项目资金 | C111: 石家庄市城市管理综合行政执法局本级 | E111: 2120803 | F111: 1096.8 | L111: 1096.8
B112: 建管中心2023年及以前年度城建项目资金 | C112: 石家庄市市政建设服务中心 | E112: 2120803 | F112: 3010.08 | L112: 3010.08
B113: 城建项目资金及城建维护车辆急需资金 | C113: 石家庄市排水管护中心 | E113: 2120399 | F113: 94 | K113: 94
A114: 80 | B114: 城市排水防涝能力提升工程[增发2023年国债省级补助资金0601] | F114: 5966.93 | G114: 4556.43 | L114: 1410.5
B115: 仓丰东路雨水泵站新建工程省级补助第二批 | C115: 石家庄市城市管理综合行政执法局本级 | E115: 2120399 | F115: 117.62 | L115: 117.62
B116: 东南退水明渠建设省级补助资金 | C116: 石家庄市城市管理综合行政执法局本级 | E116: 2120399 | F116: 3367.73 | G116: 3367.73
B117: 明珠街、石铜路 | C117: 石家庄市城市管理综合行政执法局本级 | E117: 2120399 | F117: 261.08 | L117: 261.08
B118: 农机街泵站新建工程省级补助第二批 | C118: 石家庄市城市管理综合行政执法局本级 | E118: 2120399 | F118: 178.55 | L118: 178.55
B119: 市区积水点整治工程省级补助第二批 | C119: 石家庄市城市管理综合行政执法局本级 | E119: 2120399 | F119: 86.95 | L119: 86.95
B120: 四支渠（新华路-南泄洪渠）新建工程国债项目省级补助 | C120: 石家庄市城市管理综合行政执法局本级 | E120: 2120399 | F120: 1188.7 | G120: 1188.7
B121: 雨水调蓄设施建设工程国债省级补助第二批 | C121: 石家庄市城市管理综合行政执法局本级 | E121: 2120399 | F121: 766.3 | L121: 766.3
A122: 81 | B122: 档案归集整理经费 | F122: 40 | K122: 40
B123: 档案库房整修资金 | C123: 石家庄市道桥设施管护中心 | E123: 2120399 | F123: 20 | K123: 20
B124: 档案目标管理认证经费 | C124: 石家庄市排水管护中心 | E124: 2120399 | F124: 20 | K124: 20
A125: 82 | B125: 东南退水明渠建设 | F125: 97162 | H125: 29260.79 | L125: 67901.22
B126: 东南退水明渠建设国债项目市级配套资金 | C126: 石家庄市城市管理综合行政执法局本级 | E126: 2120803 | F126: 29260.79 | H126: 29260.79
B127: 东南退水明渠建设省级补助资金 | C127: 石家庄市城市管理综合行政执法局本级 | E127: 2120399 | F127: 3367.72 | L127: 3367.72
B128: 东南退水明渠建设中央补助资金 | C128: 石家庄市城市管理综合行政执法局本级 | E128: 2120399 | F128: 64533.5 | L128: 64533.5
A129: 83 | B129: 供热补贴费用 | F129: 30000 | G129: 13880 | H129: 16120
B130: 2024-2025年采暖季天然气供热居民部分补贴费用 | C130: 石家庄市供热事务中心 | E130: 2120803 | F130: 16120 | H130: 16120
B131: 2024-2025年采暖季天然气供热居民部分补贴资金 | C131: 石家庄市供热事务中心 | E131: 2110301 | F131: 13880 | G131: 13880
A132: 84 | B132: 公务用车购置经费 | F132: 34 | G132: 34
B133: 公务用车购置经费 | C133: 石家庄市城市管理综合行政执法局本级 | E133: 2120104 | F133: 18 | G133: 18
B134: 公务用车购置经费 | C134: 石家庄市生活固体废弃物处置服务中心 | E134: 2120501 | F134: 8 | G134: 8
B135: 公务用车购置经费 | C135: 石家庄市城市照明管护中心 | E135: 2120399 | F135: 8 | G135: 8
A136: 85 | B136: 规划(方案)编制经费 | F136: 99.68 | G136: 99.68
B137: 建筑垃圾污染环境防治工作规划编制工作经费 | C137: 石家庄市城市管理综合行政执法局本级 | E137: 2120104 | F137: 40 | G137: 40
B138: 石家庄市城市地下管网管廊及设施建设改造实施方案编制工作经费 | C138: 石家庄市城市管理综合行政执法局本级 | E138: 2120104 | F138: 40 | G138: 40
B139: 石家庄市城市集中供热专项规划编制费 | C139: 石家庄市供热事务中心 | E139: 2120399 | F139: 19.68 | G139: 19.68
A140: 86 | B140: 环卫维护资金 | F140: 551.94 | G140: 209.94 | H140: 342
B141: 环卫维护资金 | C141: 石家庄市环境卫生事务中心 | E141: 2120501 | F141: 209.94 | G141: 209.94
B142: 环卫维护资金经费 | C142: 石家庄市环境卫生事务中心 | E142: 2121302 | F142: 342 | H142: 342
A143: 87 | B143: 加固改造办公楼资金 | F143: 170.28 | G143: 170.28
B144: 市城管局办公楼消防设施完善和楼宇整治项目尾款 | C144: 石家庄市城市管理综合行政执法局本级 | E144: 2120104 | F144: 25.28 | G144: 25.28
B145: 加固改造办公楼资金 | C145: 石家庄市环境卫生事务中心 | E145: 2120501 | F145: 145 | G145: 145
A146: 88 | B146: 劳动聘用人员经费 | F146: 4028.73 | G146: 4028.73
B147: 劳动聘用人员经费 | C147: 石家庄市城市管理综合保障中心 | E147: 2120104 | F147: 519.06 | G147: 519.06
B148: 劳动聘用人员经费 | C148: 石家庄市市容管理考评中心 | E148: 2120104 | F148: 1970.72 | G148: 1970.72
B149: 劳动聘用人员经费 | C149: 石家庄市环境卫生事务中心 | E149: 2120501 | F149: 353.87 | G149: 353.87
B150: 劳动聘用人员经费 | C150: 石家庄市道桥设施管护中心 | E150: 2120399 | F150: 53.83 | G150: 53.83
B151: 劳动聘用人员经费 | C151: 石家庄市排水管护中心 | E151: 2120399 | F151: 888.19 | G151: 888.19
B152: 劳动聘用人员经费 | C152: 石家庄市城市管理便民服务中心 | E152: 2120104 | F152: 145.56 | G152: 145.56
B153: 劳动聘用人员经费 | C153: 石家庄市燃气中心 | E153: 2120399 | F153: 54.17 | G153: 54.17
B154: 劳动聘用人员经费 | C154: 石家庄市供热事务中心 | E154: 2120399 | F154: 43.33 | G154: 43.33
A155: 89 | B155: 临时机构工作经费 | F155: 90.28 | G155: 90.28
B156: 建筑垃圾整治工作专班 | C156: 石家庄市城市管理综合行政执法局本级 | E156: 2120104 | F156: 48.12 | G156: 48.12
B157: 正太广场、解放广场及周边区域管理办公室工作经费 | C157: 石家庄市城市管理综合行政执法局本级 | E157: 2120104 | F157: 42.16 | G157: 42.16
A158: 90 | B158: 明珠街、槐中路雨水调蓄设施新建工程 | F158: 3294.51 | L158: 3294.51
B159: 明珠街、石铜路 | C159: 石家庄市城市管理综合行政执法局本级 | E159: 2120399 | F159: 261.07 | L159: 261.07
B160: 明珠街、石铜路 | C160: 石家庄市城市管理综合行政执法局本级 | E160: 2120399 | F160: 3033.44 | L160: 3033.44
A161: 91 | B161: 农机街泵站新建工程 | F161: 847.6 | L161: 847.6
B162: 农机街泵站新建工程省级补助资金 | C162: 石家庄市城市管理综合行政执法局本级 | E162: 2120399 | F162: 178.55 | L162: 178.55
B163: 农机街泵站新建工程中央补助资金 | C163: 石家庄市城市管理综合行政执法局本级 | E163: 2120399 | F163: 669.05 | L163: 669.05
A164: 92 | B164: 市区积水点整治工程 | F164: 387.08 | L164: 387.08
B165: 市区积水点整治工程省级补助资金 | C165: 石家庄市城市管理综合行政执法局本级 | E165: 2120399 | F165: 86.95 | L165: 86.95
B166: 市区积水点整治工程中央补助资金 | C166: 石家庄市城市管理综合行政执法局本级 | E166: 2120399 | F166: 300.13 | L166: 300.13
A167: 93 | B167: 市政基础设施管护经费 | F167: 35648 | G167: 12945.5 | H167: 22702.5
B168: 城市道路桥梁设施维护费 | C168: 石家庄市道桥设施管护中心 | E168: 2120399 | F168: 12939.5 | G168: 12939.5
B169: 城市道路桥梁设施维护经费 | C169: 石家庄市道桥设施管护中心 | E169: 2121399 | F169: 22702.5 | H169: 22702.5
B170: 道路桥梁管理系统运行费 | C170: 石家庄市道桥设施管护中心 | E170: 2120399 | F170: 6 | G170: 6
A171: 94 | B171: 四支渠（新华路-南泄洪渠）新建工程 | F171: 20396.03 | L171: 20396.03
B172: 四支渠（新华路-南泄洪渠）新建工程省级补助资金 | C172: 石家庄市城市管理综合行政执法局本级 | E172: 2120399 | F172: 1188.7 | L172: 1188.7
B173: 四支渠（新华路-南泄洪渠）新建工程中央补助资金 | C173: 石家庄市城市管理综合行政执法局本级 | E173: 2120399 | F173: 19207.33 | L173: 19207.33
A174: 95 | B174: 维护车辆购置 | F174: 3784 | G174: 3784
B175: 购置路面尘土量检测车资金 | C175: 石家庄市环境卫生事务中心 | E175: 2120501 | F175: 360 | G175: 360
B176: 购置小型融清雪设备资金 | C176: 石家庄市环境卫生事务中心 | E176: 2120501 | F176: 275 | G176: 275
B177: 购置移动车载公厕购置资金 | C177: 石家庄市环境卫生事务中心 | E177: 2120501 | F177: 276 | G177: 276
B178: 购置小型融清雪设备资金 | C178: 石家庄市道桥设施管护中心 | E178: 2120399 | F178: 493 | G178: 493
B179: 环卫作业车辆采购资金 | C179: 石家庄市道桥设施管护中心 | E179: 2120399 | F179: 2300 | G179: 2300
B180: 购置小型融清雪设备资金 | C180: 石家庄火车站站前地区管理委员会 | E180: 2120104 | F180: 80 | G180: 80
A181: 96 | B181: 雨水调蓄设施建设工程 | F181: 6860.8 | L181: 6860.8
B182: 雨水调蓄设施建设工程省级补助资金 | C182: 石家庄市城市管理综合行政执法局本级 | E182: 2120399 | F182: 766.3 | L182: 766.3
B183: 雨水调蓄设施建设工程中央补助资金 | C183: 石家庄市城市管理综合行政执法局本级 | E183: 2120399 | F183: 6094.5 | L183: 6094.5
A184: 97 | B184: 中央-城市管网及污水治理补助资金 | F184: 20000 | L184: 20000
B185: 长安区市政燃气地下管网更新改造项目中央补助资金 | C185: 石家庄市城市管理综合行政执法局本级 | E185: 2110302 | F185: 243.47 | L185: 243.47
B186: 城市供水老旧管网修复及漏损治理项目（桥西区）中央补助资金 | C186: 石家庄市城市管理综合行政执法局本级 | E186: 2110302 | F186: 330 | L186: 330
B187: 高新区市政中压老旧管网改造更新工程项目中央补助资金 | C187: 石家庄市城市管理综合行政执法局本级 | E187: 2110302 | F187: 74.8 | L187: 74.8
B188: 桥西区供热老旧管网更新改造工程中央补助资金 | C188: 石家庄市城市管理综合行政执法局本级 | E188: 2110302 | F188: 907.19 | L188: 907.19
B189: 桥西区市政燃气地下管网更新改造项目中央补助资金 | C189: 石家庄市城市管理综合行政执法局本级 | E189: 2110302 | F189: 242.63 | L189: 242.63
B190: 新华区高温水主管网及老旧小区二次供热管网更新改造工程中央补助资金 | C190: 石家庄市城市管理综合行政执法局本级 | E190: 2110302 | F190: 180 | L190: 180
B191: 新华区供热老旧管网更新改造工程中央补助资金 | C191: 石家庄市城市管理综合行政执法局本级 | E191: 2110302 | F191: 301.51 | L191: 301.51
B192: 新华区和高新区热力管网加装计量装置和二网智能调控改造工程中央补助资金 | C192: 石家庄市城市管理综合行政执法局本级 | E192: 2110302 | F192: 140 | L192: 140
B193: 新华区市政燃气地下管网更新改造项目中央补助资金 | C193: 石家庄市城市管理综合行政执法局本级 | E193: 2110302 | F193: 294.36 | L193: 294.36
B194: 裕华区市政燃气地下管网更新改造项目中央补助资金 | C194: 石家庄市城市管理综合行政执法局本级 | E194: 2110302 | F194: 1069.42 | L194: 1069.42
B195: 裕华区市政中压老旧管网改造更新工程项目中央补助资金 | C195: 石家庄市城市管理综合行政执法局本级 | E195: 2110302 | F195: 71.28 | L195: 71.28
B196: 北三环、北部排水管网改造项目中央补助资金 | C196: 石家庄市市政建设服务中心 | E196: 2110302 | F196: 4081.35 | L196: 4081.35
B197: 东垣东路等2处道路市政排水干管混错接整治工程 | C197: 石家庄市市政建设服务中心 | E197: 2110302 | F197: 50 | L197: 50
B198: 桥西污水厂分区、滹沱河污水厂分区市政排水管网深度排查工程 | C198: 石家庄市市政建设服务中心 | E198: 2110302 | F198: 1495 | L198: 1495
B199: 桥西污水厂南长街分区、中华大街分区老旧管道更新改造工程 | C199: 石家庄市市政建设服务中心 | E199: 2110302 | F199: 3697.99 | L199: 3697.99
B200: 桥西污水厂石津干渠分区道路老化管道更新工程 | C200: 石家庄市市政建设服务中心 | E200: 2110302 | F200: 1669 | L200: 1669
... 78 more rows

Sheet 本级 (hidden)
A2: 565001石家庄市城市管理综合行政执法局本级 | G2: 单位：万元
A3: 项目名称 | B3: 功能分类科目编码 | C3: 资 金 来 源
C4: 合 计 | D4: 一般公共 预算拨款 | E4: 基金预算 | F4: 国有资本经营预算拨款 | G4: 财政专户核拨 | H4: 单位资金 | I4: 上年结转
E5: 拨款 | I5: 结余
A6: 合计 | C6: 314150.71 | D6: 24005.76 | E6: 181361.55 | I6: 108783.41
A7: 公务用车购置经费 | B7: 2120104 | C7: 18 | D7: 18
A8: 安全生产监督工作经费 | B8: 2120104 | C8: 12 | D8: 12
A9: 仓丰东路雨水泵站新建工程国债项目市级配套资金 | B9: 2120803 | C9: 1054 | E9: 1054
A10: 仓丰东路雨水泵站新建工程省级补助第二批 | B10: 2120399 | C10: 117.62 | I10: 117.62
A11: 仓丰东路雨水泵站新建工程省级补助资金 | B11: 2120399 | C11: 117.63 | I11: 117.63
A12: 仓丰东路雨水泵站新建工程中央补助资金 | B12: 2120399 | C12: 712.37 | I12: 712.37
A13: 拆迁工地扬尘监测服务资金 | B13: 2120104 | C13: 95.95 | D13: 95.95
A14: 长安区市政燃气地下管网更新改造项目中央补助资金 | B14: 2110302 | C14: 243.47 | I14: 243.47
A15: 城管局机关2023年及以前年度城建项目资金 | B15: 2120803 | C15: 1096.8 | I15: 1096.8
A16: 城管全民动员大会及宣传活动经费 | B16: 2120104 | C16: 17.83 | D16: 17.83
A17: 城区防汛汛期应急指挥车租赁经费 | B17: 2120104 | C17: 10.3 | D17: 10.3
A18: 城市地下市政基础设施普查工作经费 | B18: 2121301 | C18: 600 | E18: 600
A19: 城市更新行动全过程技术咨询及资金绩效管理全过程咨询服务工作经费 | B19: 2120104 | C19: 600 | D19: 600
A20: 城市供水老旧管网修复及漏损治理项目（桥西区）中央补助资金 | B20: 2110302 | C20: 330 | I20: 330
A21: 东南退水明渠建设国债项目市级配套资金 | B21: 2120803 | C21: 29260.79 | E21: 29260.79
A22: 东南退水明渠建设省级补助资金 | B22: 2120399 | C22: 3367.73 | D22: 3367.73
B23: 2120399 | C23: 3367.72 | I23: 3367.72
A24: 东南退水明渠建设中央补助资金 | B24: 2120399 | C24: 64533.5 | I24: 64533.5
A25: 防汛经费 | B25: 2120104 | C25: 30 | D25: 30
A26: 高新区市政中压老旧管网改造更新工程项目中央补助资金 | B26: 2110302 | C26: 74.8 | I26: 74.8
A27: 给水、污水再生利用工程两项规划编制经费尾款 | B27: 2121399 | C27: 250 | E27: 250
A28: 供水水质监测经费 | B28: 2120104 | C28: 10 | D28: 10
A29: 公益广告设置经费 | B29: 2121302 | C29: 298 | E29: 298
A30: 国家节水型城市复查迎检工作经费尾款 | B30: 2120104 | C30: 15.1 | D30: 15.1
A31: 环卫工人意外伤害救助金 | B31: 2120104 | C31: 45 | D31: 45
A32: 建设南大街35号院前楼修缮项目资金尾款 | B32: 2120104 | C32: 68 | D32: 68
A33: 建筑垃圾污染环境防治工作规划编制工作经费 | B33: 2120104 | C33: 40 | D33: 40
A34: 建筑垃圾整治工作专班 | B34: 2120104 | C34: 48.12 | D34: 48.12
A35: 垃圾监测整治经费 | B35: 2121302 | C35: 370 | E35: 370
A36: 绿色社区创建宣传及牌匾制作费质保金 | B36: 2120104 | C36: 4.43 | D36: 4.43
A37: 明珠街、石铜路、槐中路雨水调蓄设施新建工程省级补助第二批 | B37: 2120399 | C37: 261.08 | I37: 261.08
A38: 明珠街、石铜路、槐中路雨水调蓄设施新建工程省级补助资金 | B38: 2120399 | C38: 261.07 | I38: 261.07
A39: 明珠街、石铜路、槐中路雨水调蓄设施新建工程中央补助资金 | B39: 2120399 | C39: 3033.44 | I39: 3033.44
A40: 农机街泵站新建工程省级补助第二批 | B40: 2120399 | C40: 178.55 | I40: 178.55
A41: 农机街泵站新建工程省级补助资金 | B41: 2120399 | C41: 178.55 | I41: 178.55
A42: 农机街泵站新建工程中央补助资金 | B42: 2120399 | C42: 669.05 | I42: 669.05
A43: 平安大街架空电力线 入地和市政道路优化 提升工程市级配套资金 | B43: 2120803 | C43: 1710 | E43: 1710
A44: 桥西区供热老旧管网更新改造工程中央补助资金 | B44: 2110302 | C44: 907.19 | I44: 907.19
A45: 桥西区市政燃气地下管网更新改造项目中央补助资金 | B45: 2110302 | C45: 242.63 | I45: 242.63
A46: 生活垃圾分类工作经费 | B46: 2120104 | C46: 20 | D46: 20
A47: 生活垃圾分类运行经费 | B47: 2120104 | C47: 58.99 | D47: 58.99
A48: 生活垃圾分类运行资金 | B48: 2121302 | C48: 20 | E48: 20
A49: 石家庄市城市地下管网管廊及设施建设改造实施方案编制工作经费 | B49: 2120104 | C49: 40 | D49: 40
A50: 市城管局办公楼消防设施完善和楼宇整治项目尾款 | B50: 2120104 | C50: 25.28 | D50: 25.28
A51: 市区积水点整治工程省级补助第二批 | B51: 2120399 | C51: 86.95 | I51: 86.95
A52: 市区积水点整治工程省级补助资金 | B52: 2120399 | C52: 86.95 | I52: 86.95
A53: 市区积水点整治工程中央补助资金 | B53: 2120399 | C53: 300.13 | I53: 300.13
A54: 市双代办工作经费 | B54: 2120104 | C54: 33.19 | D54: 33.19
A55: 双代办第三方评估监督经费 | B55: 2120104 | C55: 30 | D55: 30
A56: 司法程序及执法案卷评查经费 | B56: 2120104 | C56: 5 | D56: 5
A57: 四支渠（新华路-南泄洪渠）新建工程国债项目省级补助 | B57: 2120399 | C57: 1188.7 | D57: 1188.7
A58: 四支渠（新华路-南泄洪渠）新建工程国债项目市级配套资金 | B58: 2120803 | C58: 8247.3 | E58: 8247.3
A59: 四支渠（新华路-南泄洪渠）新建工程省级补助资金 | B59: 2120399 | C59: 1188.7 | I59: 1188.7
A60: 四支渠（新华路-南泄洪渠）新建工程中央补助资金 | B60: 2120399 | C60: 19207.33 | I60: 19207.33
A61: 特许经营项目咨询服务经费 | B61: 2120104 | C61: 30 | D61: 30
A62: 污水污泥处理费 | B62: 2121401 | C62: 20481.5 | E62: 20481.5
A63: 污水污泥处理经费 | B63: 2110302 | C63: 17218.5 | D63: 17218.5
A64: 新华区高温水主管网及老旧小区二次供热管网更新改造工程中央补助资金 | B64: 2110302 | C64: 180 | I64: 180
A65: 新华区供热老旧管网更新改造工程中央补助资金 | B65: 2110302 | C65: 301.51 | I65: 301.51
A66: 新华区和高新区热力管网加装计量装置和二网智能调控改造工程中央补助资金 | B66: 2110302 | C66: 140 | I66: 140
A67: 新华区市政燃气地下管网更新改造项目中央补助资金 | B67: 2110302 | C67: 294.36 | I67: 294.36
A68: 续建(急需)项目建设资金 | B68: 2120803 | C68: 118400 | E68: 118400
A69: 液化气居民用户安装物联报警器 和自动切断装置项目 | B69: 2129801 | C69: 1904.22 | I69: 1904.22
A70: 液化气居民用户安装物联报警器和自动切断装置项目市级配套资金 | B70: 2120803 | C70: 39.96 | E70: 39.96
A71: 雨水调蓄设施建设工程国债省级补助第二批 | B71: 2120399 | C71: 766.3 | I71: 766.3
A72: 雨水调蓄设施建设工程省级补助资金 | B72: 2120399 | C72: 766.3 | I72: 766.3
A73: 雨水调蓄设施建设工程中央补助资金 | B73: 2120399 | C73: 6094.5 | I73: 6094.5
A74: 裕华区市政燃气地下管网更新改造项目中央补助资金 | B74: 2110302 | C74: 1069.42 | I74: 1069.42
A75: 裕华区市政中压老旧管网改造更新工程项目中央补助资金 | B75: 2110302 | C75: 71.28 | I75: 71.28
A76: 正太广场、解放广场及周边区域管护资金 | B76: 2120104 | C76: 528.65 | D76: 528.65
A77: 正太广场、解放广场及周边区域管理办公室工作经费 | B77: 2120104 | C77: 42.16 | D77: 42.16
A78: 正太广场开放绿地景观提升 | B78: 2120803 | C78: 10 | E78: 10
A79: 执法业务费 | B79: 2120104 | C79: 80 | D79: 80
A80: 执法智慧监管平台市级配套资金 | B80: 2120803 | C80: 60 | E80: 60
A81: 中华大街（南二环— 北三环）综合提升市级配套资金 | B81: 2120803 | C81: 560 | E81: 560
A82: 办公设备购置费 | B82: 2120104 | C82: 20.01 | D82: 20.01
A83: 党组织活动经费 | B83: 2120104 | C83: 9.17 | D83: 9.17
A84: 电梯运维费 | B84: 2120104 | C84: 1.4 | D84: 1.4
A85: 法律顾问经费 | B85: 2120104 | C85: 12 | D85: 12
A86: 工作场地租赁费（城市运营中心场地租用费） | B86: 2120104 | C86: 61 | D86: 61
A87: 物业管理费 | B87: 2120104 | C87: 36.25 | D87: 36.25
A88: 业务培训费 | B88: 2120104 | C88: 32 | D88: 32
A89: 业务咨询委托费 | B89: 2120104 | C89: 117 | D89: 117
A90: 政务新媒体宣传经费 | B90: 2120104 | C90: 10 | D90: 10
A91: 专用设备维修经费 | B91: 2120104 | C91: 24 | D91: 24
